Service Area,Service Division,Expense Type,Expense Code,Detailed Expense Type,Payment Date,Transaction Number,Amount Exc VAT,Supplier Name
Resources BK0010,Legal & Democratic Services,Supplies and Services,332029,Printing Stationery and Gen Off Exps,02/12/2019,3674382-PSI0112658,663.44,ADARE SEC LTD.
Resources BK0010,Legal & Democratic Services,Supplies and Services,340001,Postages E340,02/12/2019,3674382-PSI0112659,"3,062.68",ADARE SEC LTD.
Regeneration and Local Services,Technical Services CM0300,Supplies and Services,304221,Equipment and Materials,02/12/2019,3674384-29100188,964.32,AGGREGATE INDUSTRIES UK LTD.
Regeneration and Local Services,Technical Services CM0300,Supplies and Services,304221,Equipment and Materials,02/12/2019,3674384-29106088,965.30,AGGREGATE INDUSTRIES UK LTD.
Regeneration and Local Services,Technical Services CM0300,Supplies and Services,304221,Equipment and Materials,02/12/2019,3674384-29112118,"1,057.84",AGGREGATE INDUSTRIES UK LTD.
Regeneration and Local Services,Technical Services CM0300,Supplies and Services,304221,Equipment and Materials,02/12/2019,3674384-29112119,950.60,AGGREGATE INDUSTRIES UK LTD.
Regeneration and Local Services,Technical Services CM0300,Supplies and Services,304221,Equipment and Materials,02/12/2019,3674384-29118636,"1,126.06",AGGREGATE INDUSTRIES UK LTD.
Regeneration and Local Services,Technical Services CM0300,Supplies and Services,304221,Equipment and Materials,02/12/2019,3674384-29118637,"1,216.34",AGGREGATE INDUSTRIES UK LTD.
Regeneration and Local Services,Technical Services CM0300,Supplies and Services,304221,Equipment and Materials,02/12/2019,3674384-29118638,"1,178.52",AGGREGATE INDUSTRIES UK LTD.
Regeneration and Local Services,Culture Sport and Tourism,Supplies and Services,304259,Equipment and Materials,02/12/2019,3674387-167408,940.00,ALBANY OFFICE EQUIPMENT (WHOLESALE) LTD.
Adult and Health Services,Commissioning inc Supporting People,Supplies and Services,338089,Services,02/12/2019,3674390-IN0193,"1,050.00",ALYSON CORKISH T/A BODY SHAPE MATTERS.
Regeneration and Local Services,Culture Sport and Tourism,Supplies and Services,384199,Miscellaneous Expenses,02/12/2019,3674392-034AS,"1,035.00",REDACTED - PAYMENT TO INDIVIDUAL
Regeneration and Local Services,Corporate Property and Land,Third Party Payments,430100,Rendered by Private Contractors,02/12/2019,3674409-1946001,"4,845.44",BCE NORTHERN LTD.
Regeneration and Local Services,Corporate Property and Land,Third Party Payments,430100,Rendered by Private Contractors,02/12/2019,3674409-1946002,"4,277.34",BCE NORTHERN LTD.
Regeneration and Local Services,Corporate Property and Land,Third Party Payments,430100,Rendered by Private Contractors,02/12/2019,3674409-1946003,"2,590.88",BCE NORTHERN LTD.
Children and Young Peoples Services,Head of Education and Skills,Transport,230009,Contract Hire,02/12/2019,3674415-26984,"1,408.12",BLUELINE TAXIS.
Children and Young Peoples Services,Head of Education and Skills,Transport,230007,Contract Hire,02/12/2019,3674415-27078,570.00,BLUELINE TAXIS.
Children and Young Peoples Services,Head of Childrens Social Care,Supplies and Services,338044,Services,02/12/2019,3674426-TI007632,738.75,CARTER BROWN THE EXPERT SERVICE LTD.*
Regeneration and Local Services,Culture Sport and Tourism,Supplies and Services,304259,Equipment and Materials,02/12/2019,3674438-CN30004133,992.70,CITRON HYGIENE UK LTD.
Children and Young Peoples Services,Head of Childrens Social Care,Supplies and Services,364359,Grants to Voluntary Organisations,02/12/2019,3674442-CAS-11-2019-208,"4,549.20",CLEVER CLOGS DAY NURSERY (DURHAM) LTD.
Children and Young Peoples Services,Head of Childrens Social Care,Transport,230005,Contract Hire,02/12/2019,3674444-CLUB1947B,575.00,CLUBMAN CABS.
Children and Young Peoples Services,Head of Childrens Social Care,Transport,230005,Contract Hire,02/12/2019,3674444-CLUB1947G,520.00,CLUBMAN CABS.
Regeneration and Local Services,Technical Services CM0300,Stock A926,926900,Stock in hand-Inventory system,02/12/2019,3674445-603938,695.00,CMT EQUIPMENT LTD.
Dedicated Schools Grant BG0015,DSG Early Years Block,Transfer Payments,510032,School Children,02/12/2019,3674453-16747,"1,071.00",CORECARE NA LTD.
Children and Young Peoples Services,Head of Childrens Social Care,Transport,230005,Contract Hire,02/12/2019,3674457-109706,728.80,CROFT BUSINESS SERVICES (UK) LTD T/A CROFT TAXIS.
Children and Young Peoples Services,Head of Childrens Social Care,Transport,230005,Contract Hire,02/12/2019,3674457-109707,882.26,CROFT BUSINESS SERVICES (UK) LTD T/A CROFT TAXIS.
Children and Young Peoples Services,Head of Childrens Social Care,Transport,230005,Contract Hire,02/12/2019,3674457-109723,728.80,CROFT BUSINESS SERVICES (UK) LTD T/A CROFT TAXIS.
Children and Young Peoples Services,Head of Childrens Social Care,Transport,230005,Contract Hire,02/12/2019,3674457-109726,"1,446.54",CROFT BUSINESS SERVICES (UK) LTD T/A CROFT TAXIS.
Children and Young Peoples Services,Head of Childrens Social Care,Transport,230005,Contract Hire,02/12/2019,3674457-109731,"1,446.54",CROFT BUSINESS SERVICES (UK) LTD T/A CROFT TAXIS.
Children and Young Peoples Services,Head of Childrens Social Care,Transport,230005,Contract Hire,02/12/2019,3674457-109733,674.14,CROFT BUSINESS SERVICES (UK) LTD T/A CROFT TAXIS.
Children and Young Peoples Services,Head of Childrens Social Care,Third Party Payments,425041,Rendered by Voluntary Organisations,02/12/2019,3674460-0325105,"43,000.00",CUMBRIA COUNTY COUNCIL..
Regeneration and Local Services,Business Durham CL0850,Supplies and Services,338066,Services,02/12/2019,3674474-336318,"3,009.80",DURHAM UNIVERSITY.
Regeneration and Local Services,Corporate Property and Land,Supplies and Services,304221,Equipment and Materials,02/12/2019,3674480-059-254675,"1,726.58",EDMUNDSON ELECTRICAL LTD.
Regeneration and Local Services,Corporate Property and Land,Supplies and Services,304221,Equipment and Materials,02/12/2019,3674480-059-254685,772.57,EDMUNDSON ELECTRICAL LTD.
Regeneration and Local Services,Corporate Property and Land,Supplies and Services,304221,Equipment and Materials,02/12/2019,3674480-059-254753,640.86,EDMUNDSON ELECTRICAL LTD.
Regeneration and Local Services,Technical Services CM0300,Supplies and Services,304221,Equipment and Materials,02/12/2019,3674490-1910\321,"5,600.63",EPPLETON QUARRY PRODUCTS LTD.
Regeneration and Local Services,Technical Services CM0300,Supplies and Services,304221,Equipment and Materials,02/12/2019,3674490-1911\025,"5,491.69",EPPLETON QUARRY PRODUCTS LTD.
Regeneration and Local Services,Culture Sport and Tourism,Supplies and Services,304252,Equipment and Materials,02/12/2019,3674492-INV-19349,"1,517.37",EVENT LIGHTS LTD.
Children and Young Peoples Services,Head of Education and Skills,Supplies and Services,384199,Miscellaneous Expenses,02/12/2019,3674497-03,"8,625.00",FIRST POINT TRAINING LTD T/A DURHAMWORKS.
Regeneration and Local Services,Technical Services CM0300,Third Party Payments,460303,Contract Payments,02/12/2019,3674498-1811/189,585.00,FIRST STEP TRAINING T/A FIRST STEP EDUCATION & TRAINING LTD.
Dedicated Schools Grant BG0015,DSG Early Years Block,Transfer Payments,510032,School Children,02/12/2019,3674499-16742,872.10,FIRST STEPS NURSERY.
Regeneration and Local Services,Environmental Services,Supplies and Services,304221,Equipment and Materials,02/12/2019,3674500-SI197081,859.95,FLEET (LINE MARKERS) LTD.
Regeneration and Local Services,Business Durham CL0850,Supplies and Services,344033,Telephones,02/12/2019,3674503-DERW01-0017,856.96,FREEDOM COMMUNICATIONS (UK) LTD.
Regeneration and Local Services,Corporate Property and Land,Third Party Payments,430100,Rendered by Private Contractors,02/12/2019,3674505-11187,930.00,FROSTREE LTD.
Dedicated Schools Grant BG0015,DSG Early Years Block,Transfer Payments,510032,School Children,02/12/2019,3674513-16746,"1,071.00",GIANT STEPS LTD.
Regeneration and Local Services,Culture Sport and Tourism,Premises,145023,Cleaning and Domestic Supplies,02/12/2019,3674516-06/030475,990.02,GREENHAM TRADING LTD.
Resources BK0010,Digital and Customer Services,Stock A926,926900,Stock in hand-Inventory system,02/12/2019,3674519-INV0177441,843.53,GV MULTIMEDIA LTD.
Resources BK0010,Digital and Customer Services,Supplies and Services,304303,Equipment and Materials,02/12/2019,3674519-INV0177444,"4,942.66",GV MULTIMEDIA LTD.
Resources BK0010,Digital and Customer Services,Stock A926,926900,Stock in hand-Inventory system,02/12/2019,3674519-INV0177446,"1,605.09",GV MULTIMEDIA LTD.
Regeneration and Local Services,Technical Services CM0300,Third Party Payments,430101,Rendered by Private Contractors,02/12/2019,3674525-3019,"4,830.00",HIGHWAY CONSTRUCTION SERVICES LTD.
Regeneration and Local Services,Technical Services CM0300,Third Party Payments,430101,Rendered by Private Contractors,02/12/2019,3674525-3020,"2,500.00",HIGHWAY CONSTRUCTION SERVICES LTD.
Regeneration and Local Services,Corporate Property and Land,Supplies and Services,304221,Equipment and Materials,02/12/2019,3674529-INV18907,"7,265.00",HYDRATEC LIFT SERVICES LTD.
Regeneration and Local Services,Technical Services CM0300,Stock A926,926900,Stock in hand-Inventory system,02/12/2019,3674533-709542,"2,212.00",INSTARMAC GROUP PLC.
Regeneration and Local Services,Transport and Contracted Services,Supplies and Services,336005,Advertising E336,02/12/2019,3674536-0065251,600.00,JAK HQ LTD.
Dedicated Schools Grant BG0015,DSG Early Years Block,Transfer Payments,510032,School Children,02/12/2019,3674544-16748,"1,071.00",JOANNE MULLANEY (CHILDMINDER).
Regeneration and Local Services,Technical Services CM0300,Stock A926,926900,Stock in hand-Inventory system,02/12/2019,3674548-BII305470,"1,595.88",JT DOVE LTD.
Regeneration and Local Services,Technical Services CM0300,Supplies and Services,304221,Equipment and Materials,02/12/2019,3674548-GO11976/D,"1,280.80",JT DOVE LTD.
Resources BK0010,Corporate Finance & Commercial Services,Supplies and Services,384150,Miscellaneous Expenses,02/12/2019,3674552-0000312387,563.40,KAYS MEDICAL LTD.
Regeneration and Local Services,Culture Sport and Tourism,Supplies and Services,338047,Services,02/12/2019,3674554-KENDAL-0265,"2,100.00",KENDAL MOUNTAIN EVENTS LTD.
Regeneration and Local Services,Technical Services CM0300,Supplies and Services,328041,Clothing uniforms and laundry E328,02/12/2019,3674555-84786,504.00,KING SCIENTIFIC.
Regeneration and Local Services,Technical Services CM0300,Supplies and Services,328041,Clothing uniforms and laundry E328,02/12/2019,3674555-84787,643.80,KING SCIENTIFIC.
Regeneration and Local Services,Technical Services CM0300,Supplies and Services,304221,Equipment and Materials,02/12/2019,3674564-CINV-076946,917.48,LIMELIGHT SIGNS LTD.
Children and Young Peoples Services,Head of Education and Skills,Construction work A908,908105,Construction work,02/12/2019,3674569-97131,"2,400.00",LUCION ENVIRONMENTAL LLP LTD.
Regeneration and Local Services,Technical Services CM0300,Third Party Payments,430100,Rendered by Private Contractors,02/12/2019,3674572-5832,"5,040.00",MAKEPEACE MOTORS.
Regeneration and Local Services,Environmental Services,Cap Exp on Grants & Other Financial Assistance (REFCUS),918501,Exp assets not owned by authority,02/12/2019,3674574-1156,"56,700.00",MARSDEN AES LTD.
Regeneration and Local Services,Technical Services CM0300,Supplies and Services,304221,Equipment and Materials,02/12/2019,3674575-Z000446786,"1,416.24",MARSHALLS MONO LTD.
Adult and Health Services,Public Health CC0450,Third Party Payments,460803,Contract Payments,02/12/2019,3674579-ORD-26617-Q5L9C6,600.00,MHFA ENGLAND CIC.
Resources BK0010,Legal & Democratic Services,Supplies and Services,338042,Services,02/12/2019,3674582-1124063,800.00,MISS GINNY WHITELEY.
Dedicated Schools Grant BG0015,DSG Early Years Block,Transfer Payments,510032,School Children,02/12/2019,3674592-16744,612.00,MRS BRENDA BATES (CHILDMINDER).
Children and Young Peoples Services,Head of Education and Skills,Supplies and Services,384302,Miscellaneous Expenses,02/12/2019,3674598-351,528.00,NASAM LTD T/A CDWES.
Regeneration and Local Services,Environmental Services,Supplies and Services,338066,Services,02/12/2019,3674600-CBS1,"1,000.00",NAT WILKINS.
Children and Young Peoples Services,Head of Childrens Social Care,Third Party Payments,486046,Service level agreements E486,02/12/2019,3674602-47322,"7,304.88",NATIONAL YOUTH ADVOCACY SERVICE.
Regeneration and Local Services,Culture Sport and Tourism,Supplies and Services,384700,Miscellaneous Expenses,02/12/2019,3674605-1276,"3,000.00",NEW WRITING NORTH LTD.
Transformation and Partnerships,Communications Management,Supplies and Services,336005,Advertising E336,02/12/2019,3674606-30981809,600.00,NEWSQUEST (YORKSHIRE & NORTH EAST) LTD.
Regeneration and Local Services,Culture Sport and Tourism,Supplies and Services,336005,Advertising E336,02/12/2019,3674606-30981974,500.00,NEWSQUEST (YORKSHIRE & NORTH EAST) LTD.
Transformation and Partnerships,Communications Management,Supplies and Services,336005,Advertising E336,02/12/2019,3674606-30982293,646.42,NEWSQUEST (YORKSHIRE & NORTH EAST) LTD.
Transformation and Partnerships,Communications Management,Supplies and Services,336005,Advertising E336,02/12/2019,3674606-30982572,"1,500.00",NEWSQUEST (YORKSHIRE & NORTH EAST) LTD.
Transformation and Partnerships,Communications Management,Supplies and Services,336005,Advertising E336,02/12/2019,3674606-31009120,500.00,NEWSQUEST (YORKSHIRE & NORTH EAST) LTD.
Transformation and Partnerships,Communications Management,Supplies and Services,336005,Advertising E336,02/12/2019,3674606-31028788,900.00,NEWSQUEST (YORKSHIRE & NORTH EAST) LTD.
Transformation and Partnerships,Communications Management,Supplies and Services,336005,Advertising E336,02/12/2019,3674606-31030507,900.00,NEWSQUEST (YORKSHIRE & NORTH EAST) LTD.
Transformation and Partnerships,Communications Management,Supplies and Services,336005,Advertising E336,02/12/2019,3674606-31066811,539.75,NEWSQUEST (YORKSHIRE & NORTH EAST) LTD.
Regeneration and Local Services,Development and Housing,Supplies and Services,336005,Advertising E336,02/12/2019,3674606-31506436,565.11,NEWSQUEST (YORKSHIRE & NORTH EAST) LTD.
Regeneration and Local Services,Technical Services CM0300,Third Party Payments,430100,Rendered by Private Contractors,02/12/2019,3674615-DI20330704,957.30,NORTHERN POWERGRID (NORTHEAST) LTD.
Regeneration and Local Services,Environmental Services,Supplies and Services,336005,Advertising E336,02/12/2019,3674619-135393,552.00,OFFSTONE PUBLISHING.
Resources BK0010,Digital and Customer Services,Supplies and Services,342051,Computers and Communications,02/12/2019,3674625-51793,"3,562.50",PANDA SECURITY UK LTD.
Regeneration and Local Services,Technical Services CM0300,Stock A926,926900,Stock in hand-Inventory system,02/12/2019,3674627-XL248408,"1,175.64",PARK ELECTRICAL DISTRIBUTORS LTD.
Children and Young Peoples Services,Head of Childrens Social Care,Third Party Payments,425021,Rendered by Voluntary Organisations,02/12/2019,3674631-300621,"11,886.63",PEARTREE PROJECTS LTD.
Resources BK0010,Digital and Customer Services,Supplies and Services,342033,Computers and Communications,02/12/2019,3674633-82299,553.00,PETERLEE FIRE CO LTD.
Children and Young Peoples Services,Head of Education and Skills,Transport,230006,Contract Hire,02/12/2019,3674635-31900,"1,801.46",PHOENIX TAXIS T/A PRATT`S TAXIS.
Children and Young Peoples Services,Head of Education and Skills,Transport,230006,Contract Hire,02/12/2019,3674635-32639,"1,023.00",PHOENIX TAXIS T/A PRATT`S TAXIS.
Regeneration and Local Services,Culture Sport and Tourism,Supplies and Services,338047,Services,02/12/2019,3674641-1153,"6,448.87",PRESTIGE PRODUCTIONS LTD.
Regeneration and Local Services,Transport and Contracted Services,Fees,901002,Consultants fees 901002,02/12/2019,3674643-1750,"3,200.00",PRODAR SURVEYS LTD.
Regeneration and Local Services,Technical Services CM0300,Third Party Payments,430100,Rendered by Private Contractors,02/12/2019,3674645-127020,550.00,PROTECTOR SECURITY GROUP LTD.
Regeneration and Local Services,Technical Services CM0300,Supplies and Services,304221,Equipment and Materials,02/12/2019,3674645-127021,550.00,PROTECTOR SECURITY GROUP LTD.
Regeneration and Local Services,Technical Services CM0300,Third Party Payments,430100,Rendered by Private Contractors,02/12/2019,3674646-12252,"1,655.69",QUANTUM POWER CONNECTIONS LTD.
Children and Young Peoples Services,Head of Childrens Social Care,Third Party Payments,440038,Other third party payments E440,02/12/2019,3674660-5123,"14,513.10",ROC FAMILY SUPPORT LTD.
Transformation and Partnerships,Business Support,Supplies and Services,340001,Postages E340,02/12/2019,3674662-9059821394,"11,754.15",ROYAL MAIL GROUP PLC.
Adult and Health Services,Head of Adults,Third Party Payments,472101,Purchase of Care,02/12/2019,3674674-SS65,572.88,SENSECARE MEDICAL STAFFING.
Adult and Health Services,Head of Adults,Third Party Payments,472101,Purchase of Care,02/12/2019,3674674-SS66,572.88,SENSECARE MEDICAL STAFFING.
Adult and Health Services,Head of Adults,Third Party Payments,472101,Purchase of Care,02/12/2019,3674674-SS67,572.88,SENSECARE MEDICAL STAFFING.
Adult and Health Services,Head of Adults,Third Party Payments,472101,Purchase of Care,02/12/2019,3674674-SS68,572.88,SENSECARE MEDICAL STAFFING.
Regeneration and Local Services,Technical Services CM0300,Stock A926,926900,Stock in hand-Inventory system,02/12/2019,3674683-193620,"2,805.84",SNAPFAST.
Regeneration and Local Services,Environmental Services,Supplies and Services,338066,Services,02/12/2019,3674684-1920-105,"2,015.00",SOLSTICE HERITAGE LLP.
Children and Young Peoples Services,Head of Education and Skills,Transport,230006,Contract Hire,02/12/2019,3674692-04144,911.84,STANLEY TRAVEL (NORTH EAST) LTD.
Children and Young Peoples Services,Head of Education and Skills,Transport,230008,Contract Hire,02/12/2019,3674692-10-N076,"1,596.00",STANLEY TRAVEL (NORTH EAST) LTD.
Adult and Health Services,Head of Adults,Supplies and Services,338099,Services,02/12/2019,3674695-SA089-19,787.00,STRAY AID LTD.
Regeneration and Local Services,Technical Services CM0300,Supplies and Services,304221,Equipment and Materials,02/12/2019,3674701-9041072527,788.00,TARMAC TRADING LTD.
Regeneration and Local Services,Technical Services CM0300,Supplies and Services,304221,Equipment and Materials,02/12/2019,3674701-9041078518,678.00,TARMAC TRADING LTD.
Children and Young Peoples Services,Head of Early Help Inclusion & Vulnerable Children.,Supplies and Services,338094,Services,02/12/2019,3674710-6220,552.50,THE DURHAM CENTRE LTD.
Regeneration and Local Services,Business Durham CL0850,Supplies and Services,344033,Telephones,02/12/2019,3674713-004455011,"1,009.75",THE PHONE CO-OP.
Regeneration and Local Services,Culture Sport and Tourism,Supplies and Services,384199,Miscellaneous Expenses,02/12/2019,3674715-06/12/2019,"2,025.00",THOMAS ADAMS (THEATRE PERFORMER).
Regeneration and Local Services,Environmental Services,Supplies and Services,328041,Clothing uniforms and laundry E328,02/12/2019,3674716-NSIN00024466,681.00,THOMAS OWEN & SONS (NEWCASTLE) LTD.
Regeneration and Local Services,Environmental Services,Supplies and Services,328041,Clothing uniforms and laundry E328,02/12/2019,3674716-NSIN00024571,755.40,THOMAS OWEN & SONS (NEWCASTLE) LTD.
Regeneration and Local Services,Corporate Property and Land,Supplies and Services,304221,Equipment and Materials,02/12/2019,3674717-121824,919.77,TOMMY WARDLE.
Regeneration and Local Services,Technical Services CM0300,Stock A926,926900,Stock in hand-Inventory system,02/12/2019,3674719-102774,996.00,TOTAL RENTAL SOLUTIONS.
Regeneration and Local Services,Environmental Services,Transport,230005,Contract Hire,02/12/2019,3674723-20487,975.00,TRASH UK LTD.
Regeneration and Local Services,Environmental Services,Transport,230005,Contract Hire,02/12/2019,3674723-20542,975.00,TRASH UK LTD.
Regeneration and Local Services,Technical Services CM0300,Supplies and Services,304221,Equipment and Materials,02/12/2019,3674731-205386,611.22,TYNEDALE ROADSTONE LTD.
Regeneration and Local Services,Technical Services CM0300,Supplies and Services,304221,Equipment and Materials,02/12/2019,3674731-205438,629.52,TYNEDALE ROADSTONE LTD.
Dedicated Schools Grant BG0015,DSG Early Years Block,Transfer Payments,510030,School Children,02/12/2019,3674738-16753,808.50,VICTORIA WINTER YOUNG (CHILDMINDER).
Children and Young Peoples Services,Head of Childrens Social Care,Third Party Payments,440046,Other third party payments E440,02/12/2019,3674745-INV-1769,"6,401.94",WE CARE RECRUITMENT SOLUTIONS LTD.
Children and Young Peoples Services,Head of Childrens Social Care,Third Party Payments,440046,Other third party payments E440,02/12/2019,3674745-INV-1792,"6,558.72",WE CARE RECRUITMENT SOLUTIONS LTD.
Children and Young Peoples Services,Head of Childrens Social Care,Third Party Payments,440046,Other third party payments E440,02/12/2019,3674745-INV-1819,"2,552.24",WE CARE RECRUITMENT SOLUTIONS LTD.
Children and Young Peoples Services,Head of Childrens Social Care,Third Party Payments,440046,Other third party payments E440,02/12/2019,3674745-INV-1926,"6,503.36",WE CARE RECRUITMENT SOLUTIONS LTD.
Children and Young Peoples Services,Head of Childrens Social Care,Third Party Payments,440046,Other third party payments E440,02/12/2019,3674745-INV-1928,"3,287.56",WE CARE RECRUITMENT SOLUTIONS LTD.
Regeneration and Local Services,Corporate Property and Land,Supplies and Services,304221,Equipment and Materials,02/12/2019,3674754-64316658,"1,557.71",WOLSELEY UK LTD.
Resources BK0010,Digital and Customer Services,Vehicles Equipment Furniture and Fittings,912701,Computer equipment,02/12/2019,3674755-KV12381,"4,544.64",XMA LTD.
Resources BK0010,Digital and Customer Services,Vehicles Equipment Furniture and Fittings,912701,Computer equipment,02/12/2019,3674755-KV12392,"1,136.16",XMA LTD.
Resources BK0010,Digital and Customer Services,Vehicles Equipment Furniture and Fittings,912701,Computer equipment,02/12/2019,3674755-KV12393,"1,514.88",XMA LTD.
Resources BK0010,Digital and Customer Services,Vehicles Equipment Furniture and Fittings,912701,Computer equipment,02/12/2019,3674755-KV12582,675.00,XMA LTD.
Regeneration and Local Services,Environmental Services,Third Party Payments,430100,Rendered by Private Contractors,03/12/2019,3675486-2880,"3,105.00",A & J GUTHRIE.
Regeneration and Local Services,Technical Services CM0300,Supplies and Services,304221,Equipment and Materials,03/12/2019,3675491-29106089,661.04,AGGREGATE INDUSTRIES UK LTD.
Regeneration and Local Services,Technical Services CM0300,Supplies and Services,304221,Equipment and Materials,03/12/2019,3675491-29112116,"1,575.62",AGGREGATE INDUSTRIES UK LTD.
Regeneration and Local Services,Technical Services CM0300,Supplies and Services,304221,Equipment and Materials,03/12/2019,3675491-29125990,529.48,AGGREGATE INDUSTRIES UK LTD.
Children and Young Peoples Services,Head of Education and Skills,Supplies and Services,338094,Services,03/12/2019,3675493-6334,600.00,ALINGTON HOUSE COMMUNITY ASSOCIATION.
Regeneration and Local Services,Development and Housing,Supplies and Services,342053,Computers and Communications,03/12/2019,3675495-9946857,956.58,ANCHOR COMPUTER SYSTEMS LTD.
Children and Young Peoples Services,Head of Childrens Social Care,Third Party Payments,425041,Rendered by Voluntary Organisations,03/12/2019,3675509-146017528,"31,620.00",BARNARDO SERVICES LTD.
Regeneration and Local Services,Culture Sport and Tourism,Supplies and Services,384199,Miscellaneous Expenses,03/12/2019,3675528-DANCER,"2,632.50",REDACTED - PAYMENT TO INDIVIDUAL
Regeneration and Local Services,Technical Services CM0300,Supplies and Services,304221,Equipment and Materials,03/12/2019,3675533-3011823659,809.32,CEMEX UK MATERIALS LTD.
Regeneration and Local Services,Technical Services CM0300,Supplies and Services,304358,Equipment and Materials,03/12/2019,3675536-1735,"4,291.40",CG SIMPSON & SON.
Regeneration and Local Services,Culture Sport and Tourism,Supplies and Services,338047,Services,03/12/2019,3675542-UK109048,665.00,CINEMALIVE LTD.
Regeneration and Local Services,Culture Sport and Tourism,Supplies and Services,338047,Services,03/12/2019,3675542-UK109175,532.00,CINEMALIVE LTD.
Children and Young Peoples Services,Head of Early Help Inclusion & Vulnerable Children.,Supplies and Services,352001,Conference Expenses,03/12/2019,3675545-2001512459,"4,000.00",CITY & GUILDS OF LONDON INSTITUTE.
Regeneration and Local Services,Culture Sport and Tourism,Supplies and Services,384199,Miscellaneous Expenses,03/12/2019,3675558-608PC7,"2,632.50",COWLEY KNOX & GUY.
Adult and Health Services,Head of Adults,Third Party Payments,478151,Purchase of Care,03/12/2019,3675560-0000157275.,"7,717.50",CREATIVE SUPPORT LTD.
Adult and Health Services,Head of Adults,Third Party Payments,478151,Purchase of Care,03/12/2019,3675560-0000182661.,"2,508.08",CREATIVE SUPPORT LTD.
Children and Young Peoples Services,Head of Childrens Social Care,Transport,230005,Contract Hire,03/12/2019,3675562-109734,532.68,CROFT BUSINESS SERVICES (UK) LTD T/A CROFT TAXIS.
Regeneration and Local Services,Technical Services CM0300,Third Party Payments,430127,Rendered by Private Contractors,03/12/2019,3675565-029,"2,235.00",D & L HOPPS.
Regeneration and Local Services,Technical Services CM0300,Third Party Payments,430127,Rendered by Private Contractors,03/12/2019,3675565-030,"1,410.00",D & L HOPPS.
Regeneration and Local Services,Environmental Services,Third Party Payments,430101,Rendered by Private Contractors,03/12/2019,3675569-IV1208393,"1,360.97",DIRECT TYRE MANAGEMENT LTD (DTM).
Regeneration and Local Services,Environmental Services,Third Party Payments,430101,Rendered by Private Contractors,03/12/2019,3675569-IV1211446,"7,222.67",DIRECT TYRE MANAGEMENT LTD (DTM).
Regeneration and Local Services,Development and Housing,Supplies and Services,384437,Miscellaneous Expenses,03/12/2019,3675573-28849,"1,085.00",DURHAM CITY COACHES.
Regeneration and Local Services,Development and Housing,Supplies and Services,384437,Miscellaneous Expenses,03/12/2019,3675573-28850,750.00,DURHAM CITY COACHES.
Regeneration and Local Services,Development and Housing,Supplies and Services,384437,Miscellaneous Expenses,03/12/2019,3675573-28851,835.00,DURHAM CITY COACHES.
Regeneration and Local Services,Environmental Services,Third Party Payments,430100,Rendered by Private Contractors,03/12/2019,3675579-INV-602,"3,000.00",ECO ENTERPRISES LTD.
Children and Young Peoples Services,Head of Education and Skills,Supplies and Services,338094,Services,03/12/2019,3675590-5102602,713.20,EXCEL ACADEMY PARTNERSHIP T/A FRAMWELLGATE SCHOOL DURHAM.
Children and Young Peoples Services,Head of Early Help Inclusion & Vulnerable Children.,Supplies and Services,384199,Miscellaneous Expenses,03/12/2019,3675591-6288,"1,156.00",EXCLUSIVE SECURE CARE SERVICES LTD.
Adult and Health Services,Head of Adults,Supplies and Services,338365,Services,03/12/2019,3675592-22/11/2019,960.00,F TIFFEN BUILDING SERVICES.
Regeneration and Local Services,Technical Services CM0300,Supplies and Services,304358,Equipment and Materials,03/12/2019,3675604-75494,681.75,GEORGE VARDY HAULAGE.
Regeneration and Local Services,Technical Services CM0300,Supplies and Services,304358,Equipment and Materials,03/12/2019,3675604-75794,532.00,GEORGE VARDY HAULAGE.
Children and Young Peoples Services,Head of Education and Skills,Transport,235005,Public Transport,03/12/2019,3675606-71345,"20,880.00",GO GATESHEAD LTD.
Regeneration and Local Services,Technical Services CM0300,Supplies and Services,304358,Equipment and Materials,03/12/2019,3675616-C400,"5,423.50",IAN WILSON.
Regeneration and Local Services,Development and Housing,Supplies and Services,342051,Computers and Communications,03/12/2019,3675617-7026935,950.00,IDOX SOFTWARE LTD.
Resources BK0010,Finance & Transactional Services,Supplies and Services,342053,Computers and Communications,03/12/2019,3675618-4633380,"45,148.02",INSIGHT DIRECT (UK) LTD.
Regeneration and Local Services,Technical Services CM0300,Supplies and Services,304358,Equipment and Materials,03/12/2019,3675622-1076/2019,636.00,J & JG GILL & SONS LTD.
Regeneration and Local Services,Technical Services CM0300,Supplies and Services,304358,Equipment and Materials,03/12/2019,3675622-1093/2019,987.00,J & JG GILL & SONS LTD.
Regeneration and Local Services,Technical Services CM0300,Supplies and Services,304358,Equipment and Materials,03/12/2019,3675622-1139/2019,"1,296.50",J & JG GILL & SONS LTD.
Regeneration and Local Services,Technical Services CM0300,Supplies and Services,304358,Equipment and Materials,03/12/2019,3675622-1210/2019,"1,701.50",J & JG GILL & SONS LTD.
Regeneration and Local Services,Technical Services CM0300,Third Party Payments,430100,Rendered by Private Contractors,03/12/2019,3675622-1236/2019,"4,200.00",J & JG GILL & SONS LTD.
Children and Young Peoples Services,Head of Education and Skills,Transfer Payments,510027,School Children,03/12/2019,3675629-OW/04-07/19,"1,231.50",JOANNE HARDY T/A DAYBREAK NURSERY.
Dedicated Schools Grant BG0015,DSG Early Years Block,Transfer Payments,510032,School Children,03/12/2019,3675636-16754,"1,071.00",KIRSTIE HALL.
Children and Young Peoples Services,Head of Education and Skills,Transport,230005,Contract Hire,03/12/2019,3675641-7597,"2,176.00",LEE`S COACHES LTD.
Regeneration and Local Services,Culture Sport and Tourism,Supplies and Services,338047,Services,03/12/2019,3675646-INV-0058,"4,947.11",LMS WORLDWIDE LTD.
Regeneration and Local Services,Technical Services CM0300,Third Party Payments,430100,Rendered by Private Contractors,03/12/2019,3675647-30580,816.50,LONGWORTH LTD.
Regeneration and Local Services,Technical Services CM0300,Supplies and Services,304358,Equipment and Materials,03/12/2019,3675650-MS1918,583.20,M SPENCE SURFACING LTD.
Children and Young Peoples Services,Head of Childrens Social Care,Supplies and Services,338044,Services,03/12/2019,3675664-002,"2,264.00",MJDEAN LTD.
Regeneration and Local Services,Technical Services CM0300,Premises,150015,Apportioned Exps of Operational Blds,03/12/2019,3675665-7001431950,770.13,MOBILE MINI UK LTD.
Regeneration and Local Services,Technical Services CM0300,Premises,150015,Apportioned Exps of Operational Blds,03/12/2019,3675665-7001431953,859.16,MOBILE MINI UK LTD.
Children and Young Peoples Services,Head of Education and Skills,Supplies and Services,338027,Services,03/12/2019,3675671-0017,750.00,MRS NATALIE ANNE DALTON (EDUCATIONAL CONSULTANT).
Regeneration and Local Services,Development and Housing,Supplies and Services,384999,Miscellaneous Expenses,03/12/2019,3675673-RED-12-2109-001,"1,208.08",MRS VEENA SONI T/A EAL DIVERSITY SOLUTIONS.
Transformation and Partnerships,Communications Management,Supplies and Services,336005,Advertising E336,03/12/2019,3675681-31325483,600.00,NEWSQUEST (YORKSHIRE & NORTH EAST) LTD.
Transformation and Partnerships,Communications Management,Supplies and Services,336005,Advertising E336,03/12/2019,3675681-31341911,750.00,NEWSQUEST (YORKSHIRE & NORTH EAST) LTD.
Transformation and Partnerships,Communications Management,Supplies and Services,336005,Advertising E336,03/12/2019,3675681-31419086,"1,500.00",NEWSQUEST (YORKSHIRE & NORTH EAST) LTD.
Regeneration and Local Services,Technical Services CM0300,Third Party Payments,430100,Rendered by Private Contractors,03/12/2019,3675689-DI20329313,"1,159.90",NORTHERN POWERGRID (NORTHEAST) LTD.
Adult and Health Services,Public Health CC0450,Third Party Payments,460803,Contract Payments,03/12/2019,3675691-914674749,"4,500.00",NORTHUMBRIAN WATER LTD.
Children and Young Peoples Services,Head of Education and Skills,Third Party Payments,410037,Rendered by Other Local Authorities,03/12/2019,3675692-INV-0438,"1,192.50",NUDGE EDUCATION LTD.
Children and Young Peoples Services,Head of Education and Skills,Third Party Payments,410037,Rendered by Other Local Authorities,03/12/2019,3675692-INV0490,"1,192.50",NUDGE EDUCATION LTD.
Regeneration and Local Services,Environmental Services,Transport,215005,Running Costs of Vehicles,03/12/2019,3675695-498819,"10,092.00",OIL NRG LTD.
Regeneration and Local Services,Corporate Property and Land,Third Party Payments,430100,Rendered by Private Contractors,03/12/2019,3675700-2249,565.00,PARAMOUNT CEILINGS & PARTITIONS.
Children and Young Peoples Services,Head of Education and Skills,Third Party Payments,440999,Other third party payments E440,03/12/2019,142-1436B,"6,160.00",PENSHAW VIEW TRAINING.
Regeneration and Local Services,Technical Services CM0300,Third Party Payments,430100,Rendered by Private Contractors,03/12/2019,3675712-5740,"4,331.17",PINKNEY BUILDING CONTRACTORS LTD.
Regeneration and Local Services,Technical Services CM0300,Third Party Payments,430100,Rendered by Private Contractors,03/12/2019,3675712-5747,"4,331.17",PINKNEY BUILDING CONTRACTORS LTD.
Regeneration and Local Services,Technical Services CM0300,Third Party Payments,430100,Rendered by Private Contractors,03/12/2019,3675712-5752,"2,464.76",PINKNEY BUILDING CONTRACTORS LTD.
Regeneration and Local Services,Technical Services CM0300,Third Party Payments,430100,Rendered by Private Contractors,03/12/2019,3675712-5753,"1,270.22",PINKNEY BUILDING CONTRACTORS LTD.
Regeneration and Local Services,Technical Services CM0300,Supplies and Services,338027,Services,03/12/2019,3675712-5754,"1,047.48",PINKNEY BUILDING CONTRACTORS LTD.
Regeneration and Local Services,Technical Services CM0300,Supplies and Services,338027,Services,03/12/2019,3675712-5755,610.60,PINKNEY BUILDING CONTRACTORS LTD.
Adult and Health Services,Head of Adults,Third Party Payments,478151,Purchase of Care,03/12/2019,3675714-124000527,781.96,POTENSIAL LTD.
Regeneration and Local Services,Technical Services CM0300,Third Party Payments,430100,Rendered by Private Contractors,03/12/2019,3675718-12250,766.33,QUANTUM POWER CONNECTIONS LTD.
Transformation and Partnerships,Business Support,Supplies and Services,340001,Postages E340,03/12/2019,3675731-9059780929,"1,870.91",ROYAL MAIL GROUP PLC.
Regeneration and Local Services,Technical Services CM0300,Supplies and Services,304358,Equipment and Materials,03/12/2019,3675734-2164,"1,755.00",S & R LANDSCAPES.
Regeneration and Local Services,Technical Services CM0300,Supplies and Services,304358,Equipment and Materials,03/12/2019,3675734-2166,"1,037.75",S & R LANDSCAPES.
Regeneration and Local Services,Technical Services CM0300,Supplies and Services,304358,Equipment and Materials,03/12/2019,3675734-2168,986.75,S & R LANDSCAPES.
Regeneration and Local Services,Technical Services CM0300,Supplies and Services,304358,Equipment and Materials,03/12/2019,3675734-2244,"1,061.00",S & R LANDSCAPES.
Adult and Health Services,Head of Adults,Third Party Payments,472101,Purchase of Care,03/12/2019,3675743-SS56,572.88,SENSECARE MEDICAL STAFFING.
Adult and Health Services,Head of Adults,Third Party Payments,472101,Purchase of Care,03/12/2019,3675743-SS57,572.88,SENSECARE MEDICAL STAFFING.
Adult and Health Services,Head of Adults,Third Party Payments,472101,Purchase of Care,03/12/2019,3675743-SS58,572.88,SENSECARE MEDICAL STAFFING.
Adult and Health Services,Head of Adults,Third Party Payments,472101,Purchase of Care,03/12/2019,3675743-SS59,572.88,SENSECARE MEDICAL STAFFING.
Adult and Health Services,Head of Adults,Third Party Payments,472101,Purchase of Care,03/12/2019,3675743-SS60,572.88,SENSECARE MEDICAL STAFFING.
Adult and Health Services,Head of Adults,Third Party Payments,472101,Purchase of Care,03/12/2019,3675743-SS61,572.88,SENSECARE MEDICAL STAFFING.
Adult and Health Services,Head of Adults,Third Party Payments,472101,Purchase of Care,03/12/2019,3675743-SS62,572.88,SENSECARE MEDICAL STAFFING.
Adult and Health Services,Head of Adults,Third Party Payments,472101,Purchase of Care,03/12/2019,3675743-SS63,572.88,SENSECARE MEDICAL STAFFING.
Adult and Health Services,Head of Adults,Third Party Payments,472101,Purchase of Care,03/12/2019,3675743-SS64,572.88,SENSECARE MEDICAL STAFFING.
Transformation and Partnerships,Partnerships & Community Engagement Div.,Cap Exp on Grants & Other Financial Assistance (REFCUS),918004,Contributions to other bodies 918004,03/12/2019,3675764-VOUCHER19NB-TEES003,"6,000.00",STAINTON & STREATLAM PARISH COUNCIL.
Regeneration and Local Services,Business Durham CL0850,Third Party Payments,460305,Contract Payments,03/12/2019,3675797-INV-13640,"39,087.50",UMI COMMERCIAL LTD.
Regeneration and Local Services,Business Durham CL0850,Supplies and Services,368008,Incentives to Industrialists,03/12/2019,3675798-RED-12-2019-006,"2,500.00",UNBOX LTD.
Resources BK0010,Legal & Democratic Services,Supplies and Services,344014,Telephones,03/12/2019,3675810-NN69328,643.55,VODAFONE LTD.
Regeneration and Local Services,Technical Services CM0300,Premises,150015,Apportioned Exps of Operational Blds,03/12/2019,3675812-940057,697.82,WERNICK HIRE LTD.
Regeneration and Local Services,Technical Services CM0300,Premises,150015,Apportioned Exps of Operational Blds,03/12/2019,3675812-940069,655.27,WERNICK HIRE LTD.
Regeneration and Local Services,Technical Services CM0300,Premises,150015,Apportioned Exps of Operational Blds,03/12/2019,3675812-940076,765.90,WERNICK HIRE LTD.
Regeneration and Local Services,Environmental Services,Premises,150015,Apportioned Exps of Operational Blds,03/12/2019,3675812-940077,697.82,WERNICK HIRE LTD.
Regeneration and Local Services,Technical Services CM0300,Premises,150015,Apportioned Exps of Operational Blds,03/12/2019,3675812-940080,697.82,WERNICK HIRE LTD.
Regeneration and Local Services,Corporate Property and Land,Third Party Payments,430100,Rendered by Private Contractors,03/12/2019,3675814-49436,"1,392.69",WILLOWCRETE MANUFACTURING COMPANY LTD (MFG).
Transformation and Partnerships,Partnerships & Community Engagement Div.,Cap Exp on Grants & Other Financial Assistance (REFCUS),918004,Contributions to other bodies 918004,03/12/2019,3675815-VOUCHER19NB-DVLY015,"1,443.00",WINDSOR HENLEY ALLOTMENTS ASSOCIATION.
Regeneration and Local Services,Business Durham CL0850,Supplies and Services,338094,Services,03/12/2019,3675818-979,"1,850.00",XCEL CONFERENCE & EVENTS (INNOVATE COUNTY DURHAM) LTD.
Regeneration and Local Services,Corporate Property and Land,Supplies and Services,304221,Equipment and Materials,04/12/2019,3675824-4016443,613.05,A & A ELECTRICAL DISTRIBUTORS LTD.
Children and Young Peoples Services,Head of Education and Skills,Transport,230008,Contract Hire,04/12/2019,3675833-17/19A,"1,100.00",ADVANCE TRAVEL.
Regeneration and Local Services,Technical Services CM0300,Supplies and Services,304221,Equipment and Materials,04/12/2019,3675835-29127632,"1,566.80",AGGREGATE INDUSTRIES UK LTD.
Regeneration and Local Services,Technical Services CM0300,Supplies and Services,304221,Equipment and Materials,04/12/2019,3675835-29127633,"1,179.74",AGGREGATE INDUSTRIES UK LTD.
Regeneration and Local Services,Technical Services CM0300,Supplies and Services,304221,Equipment and Materials,04/12/2019,3675835-29127634,"1,131.94",AGGREGATE INDUSTRIES UK LTD.
Regeneration and Local Services,Technical Services CM0300,Supplies and Services,304221,Equipment and Materials,04/12/2019,3675835-29127635,967.00,AGGREGATE INDUSTRIES UK LTD.
Regeneration and Local Services,Technical Services CM0300,Supplies and Services,304221,Equipment and Materials,04/12/2019,3675835-29127636,983.00,AGGREGATE INDUSTRIES UK LTD.
Children and Young Peoples Services,Head of Education and Skills,Supplies and Services,338094,Services,04/12/2019,3675837-6333,540.00,ALINGTON HOUSE COMMUNITY ASSOCIATION.
Dedicated Schools Grant BG0015,DSG High Needs Block,Central Support and Other Recharges,689996,Unclassified E690,04/12/2019,3675842-CAS-12-2019-014,"70,000.00",APOLLO SCHOOLS TRUST T/A ENDEAVOUR ACADEMY.
Adult and Health Services,Head of Adults,Supplies and Services,304516,Equipment and Materials,04/12/2019,3675855-INV-305,976.50,BILL SCOTT TAXIS LTD.
Regeneration and Local Services,Business Durham CL0850,Supplies and Services,338027,Services,04/12/2019,3675857-I000243,659.99,BONACCORD ECOSSE LTD.
Adult and Health Services,Public Health CC0450,Third Party Payments,460802,Contract Payments,04/12/2019,3675860-9224-1800023299,501.50,BOOTS THE CHEMISTS LTD.*
Regeneration and Local Services,Culture Sport and Tourism,Premises,145023,Cleaning and Domestic Supplies,04/12/2019,3675862-22SI2254440,"1,689.34",BRENNTAG UK LTD.
Regeneration and Local Services,Environmental Services,Transport,215012,Running Costs of Vehicles,04/12/2019,3675876-194776,"1,939.00",CHEVIN FLEET SOLUTIONS LTD.
Regeneration and Local Services,Environmental Services,Transport,215012,Running Costs of Vehicles,04/12/2019,3675876-194780,"1,564.50",CHEVIN FLEET SOLUTIONS LTD.
Regeneration and Local Services,Corporate Property and Land,Third Party Payments,430100,Rendered by Private Contractors,04/12/2019,3675881-CC123263,795.00,CITY CLEAN NORTHERN LTD.
Children and Young Peoples Services,Head of Education and Skills,Transport,230008,Contract Hire,04/12/2019,3675882-INV-034,"1,550.00",CLARE LYNSEY STEWART T/A K&C TAXIS.
Regeneration and Local Services,Transport and Contracted Services,Supplies and Services,384899,Miscellaneous Expenses,04/12/2019,3675896-RED-12-2019-017,574.00,COXHOE PARISH COUNCIL.
Regeneration and Local Services,Environmental Services,Third Party Payments,430101,Rendered by Private Contractors,04/12/2019,3675906-IV1187120,"1,409.20",DIRECT TYRE MANAGEMENT LTD (DTM).
Regeneration and Local Services,Environmental Services,Third Party Payments,430101,Rendered by Private Contractors,04/12/2019,3675906-IV1211453,"2,510.48",DIRECT TYRE MANAGEMENT LTD (DTM).
Children and Young Peoples Services,Head of Childrens Social Care,Supplies and Services,338044,Services,04/12/2019,3675912-LT-1-231019,"1,194.90",DR URSULA CAWTHORNE T/A CAWTHORNE PSYCHOLOGICAL SERVICES LTD.
Transformation and Partnerships,Partnerships & Community Engagement Div.,Supplies and Services,384871,Miscellaneous Expenses,04/12/2019,3675916-TAP-12-2019-001,"2,743.88",DURHAM UNIVERSITY.
Regeneration and Local Services,Business Durham CL0850,Supplies and Services,352001,Conference Expenses,04/12/2019,3675917-UTC2661,950.00,DURHAM UTC LTD (UNIVERSITY TECHNICAL COLLEGE).
Regeneration and Local Services,Technical Services CM0300,Supplies and Services,304358,Equipment and Materials,04/12/2019,3675932-SI-702,"2,497.50",ENVIROROD LTD.
Children and Young Peoples Services,Head of Education and Skills,Supplies and Services,338094,Services,04/12/2019,3675935-0000000041,586.60,EXCEL ACADEMY PARTNERSHIP T/A FRAMWELLGATE SCHOOL DURHAM.
Regeneration and Local Services,Culture Sport and Tourism,Supplies and Services,384199,Miscellaneous Expenses,04/12/2019,3675936-2192405,508.00,FALLON NAMEPLATES LTD.
Regeneration and Local Services,Corporate Property and Land,Supplies and Services,304221,Equipment and Materials,04/12/2019,3675941-0002/00017765,975.47,FLAME HEATING SPARES LTD.
Children and Young Peoples Services,Head of Childrens Social Care,Employees,080025,Agency Staff,04/12/2019,3675957-2434148,"94,435.25",GEOMETRIC RESULTS INTERNATIONAL.
Non-Service Specific,Non Service Specific-Financing,Long Term Debtors,924001,Car loans,04/12/2019,3675962-71746,765.00,GO GATESHEAD LTD.
Regeneration and Local Services,Technical Services CM0300,Supplies and Services,304358,Equipment and Materials,04/12/2019,3675963-0001086416,850.50,GO PLANT LTD T/A GPL HIRE.
Regeneration and Local Services,Corporate Property and Land,Third Party Payments,430100,Rendered by Private Contractors,04/12/2019,3675971-41761,"25,495.50",HALL CONSTRUCTION SERVICES LTD.
Regeneration and Local Services,Technical Services CM0300,Supplies and Services,304358,Equipment and Materials,04/12/2019,3675977-60719,"1,002.45",HF COLTON PLANT HIRE LTD.*
Regeneration and Local Services,Technical Services CM0300,Supplies and Services,304358,Equipment and Materials,04/12/2019,3675977-60720,629.40,HF COLTON PLANT HIRE LTD.*
Regeneration and Local Services,Technical Services CM0300,Supplies and Services,304358,Equipment and Materials,04/12/2019,3675977-60735,818.30,HF COLTON PLANT HIRE LTD.*
Regeneration and Local Services,Technical Services CM0300,Supplies and Services,304358,Equipment and Materials,04/12/2019,3675977-60798,"1,594.90",HF COLTON PLANT HIRE LTD.*
Regeneration and Local Services,Technical Services CM0300,Supplies and Services,304358,Equipment and Materials,04/12/2019,3675977-60852,558.85,HF COLTON PLANT HIRE LTD.*
Regeneration and Local Services,Corporate Property and Land,Premises,108099,Service Repairs and Maintenance,04/12/2019,3675979-7080784666,"38,042.00",HONEYWELL NOVAR SYSTEMS LTD.
Regeneration and Local Services,Culture Sport and Tourism,Premises,106082,Centrally Controlled Rep and Maint,04/12/2019,3675979-7080790777,654.66,HONEYWELL NOVAR SYSTEMS LTD.
Regeneration and Local Services,Environmental Services,Supplies and Services,342033,Computers and Communications,04/12/2019,3675984-4610507,539.91,INSIGHT DIRECT (UK) LTD.
Children and Young Peoples Services,Head of Early Help Inclusion & Vulnerable Children.,Premises,108099,Service Repairs and Maintenance,04/12/2019,3675994-20834,"7,152.67",JC MAINTENANCE SERVICES LTD.
Regeneration and Local Services,Transport and Contracted Services,Third Party Payments,430106,Rendered by Private Contractors,04/12/2019,3675998-28566,"5,414.00",JIM HUGHES COACHES LTD.
Regeneration and Local Services,Technical Services CM0300,Supplies and Services,304358,Equipment and Materials,04/12/2019,3676002-30143,"1,196.00",JOHN R BUTTERFIELD LTD.
Regeneration and Local Services,Corporate Property and Land,Supplies and Services,304358,Equipment and Materials,04/12/2019,3676002-30149,512.00,JOHN R BUTTERFIELD LTD.
Regeneration and Local Services,Technical Services CM0300,Supplies and Services,304358,Equipment and Materials,04/12/2019,3676002-30165,"1,144.50",JOHN R BUTTERFIELD LTD.
Regeneration and Local Services,Technical Services CM0300,Supplies and Services,304358,Equipment and Materials,04/12/2019,3676002-30168,996.00,JOHN R BUTTERFIELD LTD.
Regeneration and Local Services,Technical Services CM0300,Supplies and Services,304358,Equipment and Materials,04/12/2019,3676002-30193,954.50,JOHN R BUTTERFIELD LTD.
Regeneration and Local Services,Technical Services CM0300,Supplies and Services,304358,Equipment and Materials,04/12/2019,3676002-30197,980.50,JOHN R BUTTERFIELD LTD.
Regeneration and Local Services,Technical Services CM0300,Supplies and Services,304358,Equipment and Materials,04/12/2019,3676002-30210,"1,056.00",JOHN R BUTTERFIELD LTD.
Regeneration and Local Services,Technical Services CM0300,Supplies and Services,304358,Equipment and Materials,04/12/2019,3676002-30211,"1,056.00",JOHN R BUTTERFIELD LTD.
Regeneration and Local Services,Technical Services CM0300,Supplies and Services,304358,Equipment and Materials,04/12/2019,3676002-30219,"1,091.00",JOHN R BUTTERFIELD LTD.
Regeneration and Local Services,Technical Services CM0300,Supplies and Services,304358,Equipment and Materials,04/12/2019,3676002-30221,957.50,JOHN R BUTTERFIELD LTD.
Regeneration and Local Services,Technical Services CM0300,Supplies and Services,304358,Equipment and Materials,04/12/2019,3676003-0000082201,750.00,JOHN WADE (HAULAGE) LTD.
Regeneration and Local Services,Technical Services CM0300,Supplies and Services,304358,Equipment and Materials,04/12/2019,3676003-0000082202,750.00,JOHN WADE (HAULAGE) LTD.
Regeneration and Local Services,Technical Services CM0300,Supplies and Services,304358,Equipment and Materials,04/12/2019,3676003-0000082203,750.00,JOHN WADE (HAULAGE) LTD.
Regeneration and Local Services,Technical Services CM0300,Supplies and Services,304358,Equipment and Materials,04/12/2019,3676003-0000082204,750.00,JOHN WADE (HAULAGE) LTD.
Regeneration and Local Services,Technical Services CM0300,Supplies and Services,304221,Equipment and Materials,04/12/2019,3676009-B11305740,738.58,JT DOVE LTD.
Regeneration and Local Services,Technical Services CM0300,Supplies and Services,304221,Equipment and Materials,04/12/2019,3676009-BII305734,780.02,JT DOVE LTD.
Regeneration and Local Services,Technical Services CM0300,Supplies and Services,304221,Equipment and Materials,04/12/2019,3676009-GOI1977/D,816.48,JT DOVE LTD.
Regeneration and Local Services,Technical Services CM0300,Supplies and Services,304358,Equipment and Materials,04/12/2019,3676013-2984,"1,384.00",KEVIN SNOWDON GROUNDWORKS LTD.
Regeneration and Local Services,Technical Services CM0300,Supplies and Services,304358,Equipment and Materials,04/12/2019,3676013-2985,"1,424.00",KEVIN SNOWDON GROUNDWORKS LTD.
Regeneration and Local Services,Technical Services CM0300,Supplies and Services,304358,Equipment and Materials,04/12/2019,3676013-2990,908.50,KEVIN SNOWDON GROUNDWORKS LTD.
Regeneration and Local Services,Technical Services CM0300,Supplies and Services,304358,Equipment and Materials,04/12/2019,3676013-3005,"1,114.00",KEVIN SNOWDON GROUNDWORKS LTD.
Children and Young Peoples Services,Head of Education and Skills,Transport,230005,Contract Hire,04/12/2019,3676021-7554,"3,019.00",LEE`S COACHES LTD.
Children and Young Peoples Services,Head of Education and Skills,Supplies and Services,384199,Miscellaneous Expenses,04/12/2019,3676029-25S16P00071,719.11,LOUISE HOLLIDAY T/A LOU`S.
Regeneration and Local Services,Environmental Services,Construction work A908,908105,Construction work,04/12/2019,3676030-99785,"2,040.00",LUCION ENVIRONMENTAL LLP LTD.
Children and Young Peoples Services,Head of Education and Skills,Transport,230008,Contract Hire,04/12/2019,3676038-KW990,950.00,MARK O`NEILL T/A KWIK CABS.
Children and Young Peoples Services,Head of Education and Skills,Transport,230008,Contract Hire,04/12/2019,3676039-INV183,"1,448.00",MICHAEL COBB T/A HAIL TAXIS.
Children and Young Peoples Services,Head of Education and Skills,Supplies and Services,384199,Miscellaneous Expenses,04/12/2019,3676042-25S16P00071-PW,632.74,MISS ELEPHANT LTD.
Children and Young Peoples Services,Head of Education and Skills,Supplies and Services,384199,Miscellaneous Expenses,04/12/2019,3676042-25S16P00071-RS,610.15,MISS ELEPHANT LTD.
Regeneration and Local Services,Technical Services CM0300,Supplies and Services,304358,Equipment and Materials,04/12/2019,3676058-NC/104/BW,"2,062.50",NEDCO CONTRACTS (NE) LTD.
Regeneration and Local Services,Technical Services CM0300,Supplies and Services,304358,Equipment and Materials,04/12/2019,3676058-NC/105/BW,"2,337.50",NEDCO CONTRACTS (NE) LTD.
Regeneration and Local Services,Culture Sport and Tourism,Supplies and Services,340001,Postages E340,04/12/2019,3676059-NEI-HCL-12-2019-002,750.00,NEOPOST LTD.
Regeneration and Local Services,Culture Sport and Tourism,Supplies and Services,338047,Services,04/12/2019,3676061-19-290,"4,151.65",NETT (UK) LTD.
Regeneration and Local Services,Business Durham CL0850,Supplies and Services,336005,Advertising E336,04/12/2019,3676071-190125,"1,912.50",NORTH EAST TIMES MAGAZINE LTD.
Children and Young Peoples Services,Head of Education and Skills,Third Party Payments,410037,Rendered by Other Local Authorities,04/12/2019,3676074-INV-0451,"1,192.50",NUDGE EDUCATION LTD.
Regeneration and Local Services,Environmental Services,Transport,215005,Running Costs of Vehicles,04/12/2019,3676077-497003,"16,067.20",OIL NRG LTD.
Regeneration and Local Services,Environmental Services,Transport,215022,Running Costs of Vehicles,04/12/2019,3676077-497006,"1,115.20",OIL NRG LTD.
Regeneration and Local Services,Environmental Services,Transport,215005,Running Costs of Vehicles,04/12/2019,3676077-497008,"4,077.78",OIL NRG LTD.
Regeneration and Local Services,Environmental Services,Transport,215022,Running Costs of Vehicles,04/12/2019,3676077-497011,563.60,OIL NRG LTD.
Regeneration and Local Services,Environmental Services,Transport,215005,Running Costs of Vehicles,04/12/2019,3676077-497013,"3,060.12",OIL NRG LTD.
Regeneration and Local Services,Environmental Services,Transport,215022,Running Costs of Vehicles,04/12/2019,3676077-497014,"1,127.20",OIL NRG LTD.
Regeneration and Local Services,Corporate Property and Land,Supplies and Services,304221,Equipment and Materials,04/12/2019,3676096-INV234738,"4,800.00",POINTER FIRE LTD.
Regeneration and Local Services,Corporate Property and Land,Supplies and Services,304221,Equipment and Materials,04/12/2019,3676096-INV234739,"1,215.52",POINTER FIRE LTD.
Regeneration and Local Services,Corporate Property and Land,Supplies and Services,304221,Equipment and Materials,04/12/2019,3676096-INV234740,"1,367.98",POINTER FIRE LTD.
Regeneration and Local Services,Culture Sport and Tourism,Supplies and Services,384199,Miscellaneous Expenses,04/12/2019,3676097-214113514,537.87,PRECISE MEDIA MONITORING LTD.
Resources BK0010,Finance & Transactional Services,Supplies and Services,384999,Miscellaneous Expenses,04/12/2019,3676098-15724-DURHAMCOUNTYCOUNCIL-1019,"4,709.40",PREPAID FINANCIAL SERVICES LTD.
Regeneration and Local Services,Culture Sport and Tourism,Supplies and Services,338047,Services,04/12/2019,3676099-1162,"3,576.59",PRESTIGE PRODUCTIONS LTD.
Regeneration and Local Services,Technical Services CM0300,Supplies and Services,304221,Equipment and Materials,04/12/2019,3676100-127143,"2,115.12",PROTECTOR SECURITY GROUP LTD.
Children and Young Peoples Services,Head of Education and Skills,Supplies and Services,384199,Miscellaneous Expenses,04/12/2019,3676114-25S16P00071,622.34,ROY WHITE T/A NORTHERN ASPECTS LANDSCAPING.
Transformation and Partnerships,Business Support,Supplies and Services,340001,Postages E340,04/12/2019,3676115-9059864663,"1,267.34",ROYAL MAIL GROUP PLC.
Resources BK0010,Legal & Democratic Services,Supplies and Services,340001,Postages E340,04/12/2019,3676115-9059880778,"1,476.79",ROYAL MAIL GROUP PLC.
Regeneration and Local Services,Technical Services CM0300,Third Party Payments,460224,Contract Payments,04/12/2019,3676127-20631,"169,439.87",SEYMOUR (CIVIL ENGINEERING CONTRACTORS) LTD.
Regeneration and Local Services,Technical Services CM0300,Stock A926,926900,Stock in hand-Inventory system,04/12/2019,3676135-193624,"3,030.48",SNAPFAST.
Children and Young Peoples Services,Head of Education and Skills,Supplies and Services,336005,Advertising E336,04/12/2019,3676145-INV-4857,"7,229.74",STEVE DAVIDSON ADVERTISING LTD T/A SD ADVERTISING LTD.
Resources BK0010,Digital and Customer Services,Supplies and Services,304040,Equipment and Materials,04/12/2019,3676150-131874,698.58,SWITCHSHOP LTD.
Regeneration and Local Services,Technical Services CM0300,Supplies and Services,304221,Equipment and Materials,04/12/2019,3676152-9041096680,"1,184.40",TARMAC TRADING LTD.
Regeneration and Local Services,Culture Sport and Tourism,Supplies and Services,312010,Newspapers books and periodicals E312,04/12/2019,3676159-INV-1192,"1,324.50",THE BIGGER SCENE.
Regeneration and Local Services,Environmental Services,Premises,108099,Service Repairs and Maintenance,04/12/2019,3676168-0332,766.67,THE SKILL MILL LTD.
Regeneration and Local Services,Environmental Services,Premises,108099,Service Repairs and Maintenance,04/12/2019,3676168-0338,730.83,THE SKILL MILL LTD.
Regeneration and Local Services,Environmental Services,Premises,108099,Service Repairs and Maintenance,04/12/2019,3676168-0339,708.33,THE SKILL MILL LTD.
Resources BK0010,Digital and Customer Services,Supplies and Services,304303,Equipment and Materials,04/12/2019,3676176-129076,"1,462.73",TP ELECTRICAL SUPPLIES & FIXINGS LTD.
Children and Young Peoples Services,Head of Education and Skills,Transport,230008,Contract Hire,04/12/2019,3676177-119,620.00,TRIDENT TAXIS.
Regeneration and Local Services,Corporate Property and Land,Premises,108099,Service Repairs and Maintenance,04/12/2019,3676181-DL976492,"1,315.00",TYCO FIRE & INTEGRATED SOLUTIONS (UK) LTD.
Regeneration and Local Services,Business Durham CL0850,Supplies and Services,338066,Services,04/12/2019,3676186-47860,"5,820.00",UNW LLP.
Regeneration and Local Services,Culture Sport and Tourism,Supplies and Services,384956,Miscellaneous Expenses,04/12/2019,3676188-7501135538,"5,109.00",VERIFONE (UK) LTD.
Regeneration and Local Services,Technical Services CM0300,Supplies and Services,304358,Equipment and Materials,04/12/2019,3676194-47280,"2,560.00",W MARLEY AGRICULTURAL CONTRACTORS LTD.
Regeneration and Local Services,Technical Services CM0300,Supplies and Services,304358,Equipment and Materials,04/12/2019,3676194-47466,"2,535.00",W MARLEY AGRICULTURAL CONTRACTORS LTD.
Regeneration and Local Services,Environmental Services,Premises,108099,Service Repairs and Maintenance,04/12/2019,3676196-11751,860.00,WATERMAN ENVIRONMENTAL SERVICES.
Regeneration and Local Services,Environmental Services,Supplies and Services,304259,Equipment and Materials,04/12/2019,3676204-38627,"2,460.00",WIRELESS CCTV LTD.
Resources BK0010,Digital and Customer Services,Supplies and Services,304303,Equipment and Materials,04/12/2019,3676206-KV16309,619.92,XMA LTD.
Adult and Health Services,Public Health CC0450,Supplies and Services,384899,Miscellaneous Expenses,05/12/2019,3676210-CREE19/20MEN,"1,500.00",(DVCP) DENE VALLEY COMMUNITY PARTNERSHIP.
Adult and Health Services,Public Health CC0450,Supplies and Services,384899,Miscellaneous Expenses,05/12/2019,3676210-CREE19/20WOMEN,"1,500.00",(DVCP) DENE VALLEY COMMUNITY PARTNERSHIP.
Children and Young Peoples Services,Head of Education and Skills,Transport,230034,Contract Hire,05/12/2019,3676211-111901,"2,280.00",24/7 TAXI SERVICES LTD.
Children and Young Peoples Services,Head of Education and Skills,Transport,230034,Contract Hire,05/12/2019,3676211-111902,"1,974.42",24/7 TAXI SERVICES LTD.
Children and Young Peoples Services,Head of Education and Skills,Transport,230034,Contract Hire,05/12/2019,3676211-111903,"2,300.00",24/7 TAXI SERVICES LTD.
Children and Young Peoples Services,Head of Education and Skills,Transport,230007,Contract Hire,05/12/2019,3676211-111904,600.00,24/7 TAXI SERVICES LTD.
Children and Young Peoples Services,Head of Education and Skills,Transport,230008,Contract Hire,05/12/2019,3676211-111908,"2,157.60",24/7 TAXI SERVICES LTD.
Children and Young Peoples Services,Head of Education and Skills,Transport,230008,Contract Hire,05/12/2019,3676211-111909,"2,787.09",24/7 TAXI SERVICES LTD.
Children and Young Peoples Services,Head of Education and Skills,Transport,230010,Contract Hire,05/12/2019,3676211-111910,"1,140.00",24/7 TAXI SERVICES LTD.
Children and Young Peoples Services,Head of Education and Skills,Transport,230008,Contract Hire,05/12/2019,3676211-111911,"3,270.64",24/7 TAXI SERVICES LTD.
Children and Young Peoples Services,Head of Education and Skills,Transport,230008,Contract Hire,05/12/2019,3676211-111912,"3,351.20",24/7 TAXI SERVICES LTD.
Adult and Health Services,Head of Adults,Transport,230005,Contract Hire,05/12/2019,3676211-111913,577.86,24/7 TAXI SERVICES LTD.
Children and Young Peoples Services,Head of Education and Skills,Transport,230006,Contract Hire,05/12/2019,3676211-111915,"1,448.97",24/7 TAXI SERVICES LTD.
Children and Young Peoples Services,Head of Education and Skills,Transport,230006,Contract Hire,05/12/2019,3676211-111916,"1,526.00",24/7 TAXI SERVICES LTD.
Children and Young Peoples Services,Head of Education and Skills,Transport,230006,Contract Hire,05/12/2019,3676211-111917,960.00,24/7 TAXI SERVICES LTD.
Dedicated Schools Grant BG0015,DSG High Needs Block,Transport,230009,Contract Hire,05/12/2019,3676211-111918,560.00,24/7 TAXI SERVICES LTD.
Children and Young Peoples Services,Head of Education and Skills,Transport,230008,Contract Hire,05/12/2019,3676211-111920,"3,000.00",24/7 TAXI SERVICES LTD.
Children and Young Peoples Services,Head of Education and Skills,Transport,230012,Contract Hire,05/12/2019,3676211-111921,"2,603.00",24/7 TAXI SERVICES LTD.
Children and Young Peoples Services,Head of Education and Skills,Transport,230006,Contract Hire,05/12/2019,3676213-3/F728,"1,140.00",A & C TAXIS.
Children and Young Peoples Services,Head of Education and Skills,Transport,230007,Contract Hire,05/12/2019,3676214-NOVEMBER04-2051,650.00,A & P TAXIS.
Regeneration and Local Services,Environmental Services,Third Party Payments,430115,Rendered by Private Contractors,05/12/2019,3676218-0080,"9,955.66",A WILLEY T/A GREENTECH RECYCLING.
Regeneration and Local Services,Environmental Services,Third Party Payments,430115,Rendered by Private Contractors,05/12/2019,3676218-DCCPG007,"1,849.76",A WILLEY T/A GREENTECH RECYCLING.
Regeneration and Local Services,Culture Sport and Tourism,Supplies and Services,304259,Equipment and Materials,05/12/2019,3676221-116360608,588.00,AC ENTERTAINMENT TECHNOLOGIES.
Regeneration and Local Services,Culture Sport and Tourism,Supplies and Services,338047,Services,05/12/2019,3676222-4100678934,"2,000.00",ADAM RUSSELL DANCE (GALLERY CONTRACTOR).
Regeneration and Local Services,Technical Services CM0300,Supplies and Services,304221,Equipment and Materials,05/12/2019,3676225-29112117,599.02,AGGREGATE INDUSTRIES UK LTD.
Regeneration and Local Services,Technical Services CM0300,Supplies and Services,304221,Equipment and Materials,05/12/2019,3676225-29134001,"1,579.90",AGGREGATE INDUSTRIES UK LTD.
Regeneration and Local Services,Technical Services CM0300,Supplies and Services,304221,Equipment and Materials,05/12/2019,3676225-29134002,"1,185.84",AGGREGATE INDUSTRIES UK LTD.
Regeneration and Local Services,Technical Services CM0300,Supplies and Services,304221,Equipment and Materials,05/12/2019,3676225-29134003,"1,085.80",AGGREGATE INDUSTRIES UK LTD.
Regeneration and Local Services,Technical Services CM0300,Supplies and Services,304221,Equipment and Materials,05/12/2019,3676225-29134005,"1,493.90",AGGREGATE INDUSTRIES UK LTD.
Regeneration and Local Services,Technical Services CM0300,Supplies and Services,304221,Equipment and Materials,05/12/2019,3676225-29134006,561.08,AGGREGATE INDUSTRIES UK LTD.
Children and Young Peoples Services,Head of Early Help Inclusion & Vulnerable Children.,Supplies and Services,308011,Furniture,05/12/2019,3676226-167443,"1,368.00",ALBANY OFFICE EQUIPMENT (WHOLESALE) LTD.
Children and Young Peoples Services,Head of Education and Skills,Transfer Payments,510034,School Children,05/12/2019,3676227-LACPP1920AUTUMN,"1,200.00",ALBANY VILLAGE PRIMARY SCHOOL.
Children and Young Peoples Services,Head of Education and Skills,Transport,230008,Contract Hire,05/12/2019,3676232-M002/11,"1,977.60",ANDREW PYGALL T/A ARP TAXIS.
Children and Young Peoples Services,Head of Education and Skills,Transport,230006,Contract Hire,05/12/2019,3676233-1-NOV,"1,308.00",ANDREW ROBSON`S TAXI.
Children and Young Peoples Services,Head of Education and Skills,Transfer Payments,510034,School Children,05/12/2019,3676237-LACPP1920AUTUMN,600.00,ARETE LEARNING TRUST T/A RICHMOND SCHOOL.
Children and Young Peoples Services,Head of Education and Skills,Transport,230007,Contract Hire,05/12/2019,3676242-291119,"1,140.00",AVALON TAXIS.
Regeneration and Local Services,Corporate Property and Land,Third Party Payments,430100,Rendered by Private Contractors,05/12/2019,3676243-1991,"4,832.00",AWR ROOFING & ALUMIN RAINWATER SYSTEMS LTD.
Dedicated Schools Grant BG0015,DSG High Needs Block,Third Party Payments,410037,Rendered by Other Local Authorities,05/12/2019,3676246-2019/20HLPS04,"4,387.30",BALMORAL LEARNING TRUST T/A HETTON LYONS PRIMARY SCHOOL.
Adult and Health Services,Public Health CC0450,Supplies and Services,384899,Miscellaneous Expenses,05/12/2019,3676247-CREE19/20,"1,500.00",BEAMISH MUSEUM LTD.
Children and Young Peoples Services,Head of Education and Skills,Transport,230006,Contract Hire,05/12/2019,3676250-3/11,"1,908.00",BELMONT TAXIS.
Children and Young Peoples Services,Head of Education and Skills,Transfer Payments,510034,School Children,05/12/2019,3676251-LACPP1920AUTUMN,600.00,BENFIELD SCHOOL.
Children and Young Peoples Services,Head of Education and Skills,Transfer Payments,510034,School Children,05/12/2019,3676256-LACPP1920AUTUMN,"1,200.00",BISHOP AUCKLAND COLLEGE.
Adult and Health Services,Public Health CC0450,Supplies and Services,384899,Miscellaneous Expenses,05/12/2019,3676257-CREE19/20,"1,500.00",BISHOP AUCKLAND COMMUNITY PARTNERSHIP.
Adult and Health Services,Public Health CC0450,Supplies and Services,384899,Miscellaneous Expenses,05/12/2019,3676260-CREE19/20MEN,"1,500.00",BLACKHALL COMMUNITY ASSOCIATION.
Adult and Health Services,Public Health CC0450,Supplies and Services,384899,Miscellaneous Expenses,05/12/2019,3676260-CREE19/20WOMEN,"1,500.00",BLACKHALL COMMUNITY ASSOCIATION.
Children and Young Peoples Services,Head of Education and Skills,Transport,230008,Contract Hire,05/12/2019,3676261-E013,"1,900.00",BLACKHALL TAXIS.
Children and Young Peoples Services,Head of Education and Skills,Transport,230007,Contract Hire,05/12/2019,3676262-25861,"1,035.50",BLUELINE TAXIS.
Children and Young Peoples Services,Head of Education and Skills,Transport,230008,Contract Hire,05/12/2019,3676262-27104,"1,292.00",BLUELINE TAXIS.
Adult and Health Services,Public Health CC0450,Supplies and Services,384899,Miscellaneous Expenses,05/12/2019,3676263-CREE19/20,"1,500.00",BREATHING SPACE ST MICHAELS.
Regeneration and Local Services,Technical Services CM0300,Third Party Payments,430100,Rendered by Private Contractors,05/12/2019,3676264-45807,"3,175.43",BRIDGEWAY CONSULTING LTD.
Adult and Health Services,Public Health CC0450,Supplies and Services,384899,Miscellaneous Expenses,05/12/2019,3676266-CREE19/20,"1,500.00",BULLION COMMUNITY RESOURCE CENTRE.
Children and Young Peoples Services,Head of Education and Skills,Third Party Payments,440999,Other third party payments E440,05/12/2019,3676267-DCCALS/BI/0071920,"6,271.39",BUSINESS IMPROVEMENT LTD T/A SKILLS ACADEMY GROUP.
Adult and Health Services,Public Health CC0450,Third Party Payments,460803,Contract Payments,05/12/2019,3676268-701,"1,750.00",C HEWISON (CONSULTANT PROJECT MANAGEMENT TRAINING).
Regeneration and Local Services,Environmental Services,Transport,210057,Repair and Maintenance of Vehicles,05/12/2019,3676273-408897,"3,522.39",CARRS BILLINGTON AGRICULTURE.
Regeneration and Local Services,Culture Sport and Tourism,Supplies and Services,384199,Miscellaneous Expenses,05/12/2019,3676275-6464,"18,376.33",CATHEDRAL LOCK & SAFE SERVICES LTD.
Regeneration and Local Services,Culture Sport and Tourism,Supplies and Services,384199,Miscellaneous Expenses,05/12/2019,3676275-6473,"1,848.00",CATHEDRAL LOCK & SAFE SERVICES LTD.
Regeneration and Local Services,Corporate Property and Land,Third Party Payments,430100,Rendered by Private Contractors,05/12/2019,3676277-436,"3,634.07",CEILINGS DIRECT LTD.
Transformation and Partnerships,Partnerships & Community Engagement Div.,Supplies and Services,384086,Miscellaneous Expenses,05/12/2019,3676278-VOUCHER19NB-CHES031,"1,250.00",CESTRIAN FLOWER CLUB.
Resources BK0010,Finance & Transactional Services,Supplies and Services,312075,Newspapers books and periodicals E312,05/12/2019,3676282-SI203379,"1,796.49",CHILD POVERTY ACTION GROUP.
Regeneration and Local Services,Environmental Services,Third Party Payments,430100,Rendered by Private Contractors,05/12/2019,3676287-CN30004482,624.80,CITRON HYGIENE UK LTD.
Resources BK0010,Finance & Transactional Services,Supplies and Services,344138,Telephones,05/12/2019,3676289-C/RB187979,"1,600.00",CIVICA UK LTD.
Children and Young Peoples Services,Head of Education and Skills,Transport,230007,Contract Hire,05/12/2019,3676292-1148,959.58,CLIVE HUBERY.
Regeneration and Local Services,Culture Sport and Tourism,Third Party Payments,430100,Rendered by Private Contractors,05/12/2019,3676295-1NV043S5,766.35,COMPETITION LINE UK LTD T/A LIFESTYLE FITNESS.
Regeneration and Local Services,Culture Sport and Tourism,Third Party Payments,430100,Rendered by Private Contractors,05/12/2019,3676295-PSINV04342,"89,190.16",COMPETITION LINE UK LTD T/A LIFESTYLE FITNESS.
Regeneration and Local Services,Culture Sport and Tourism,Third Party Payments,430100,Rendered by Private Contractors,05/12/2019,3676295-PSINV04343,"9,944.61",COMPETITION LINE UK LTD T/A LIFESTYLE FITNESS.
Regeneration and Local Services,Culture Sport and Tourism,Third Party Payments,430100,Rendered by Private Contractors,05/12/2019,3676295-PSINV04344,"35,403.83",COMPETITION LINE UK LTD T/A LIFESTYLE FITNESS.
Regeneration and Local Services,Culture Sport and Tourism,Third Party Payments,430100,Rendered by Private Contractors,05/12/2019,3676295-PSINV04346,"25,132.20",COMPETITION LINE UK LTD T/A LIFESTYLE FITNESS.
Regeneration and Local Services,Culture Sport and Tourism,Third Party Payments,430100,Rendered by Private Contractors,05/12/2019,3676295-PSINV04347,"24,360.41",COMPETITION LINE UK LTD T/A LIFESTYLE FITNESS.
Children and Young Peoples Services,Head of Education and Skills,Transport,230008,Contract Hire,05/12/2019,3676297-1554,"1,952.00",CONNORS MINI BUSES.*
Children and Young Peoples Services,Head of Education and Skills,Transport,230008,Contract Hire,05/12/2019,3676297-1555,"2,279.40",CONNORS MINI BUSES.*
Children and Young Peoples Services,Head of Education and Skills,Transport,230008,Contract Hire,05/12/2019,3676297-1556,"1,994.40",CONNORS MINI BUSES.*
Children and Young Peoples Services,Head of Education and Skills,Transport,230008,Contract Hire,05/12/2019,3676297-1557,"2,546.20",CONNORS MINI BUSES.*
Children and Young Peoples Services,Head of Education and Skills,Supplies and Services,384199,Miscellaneous Expenses,05/12/2019,3676300-19/20-136,"7,980.00",CORNFORTH PARTNERSHIP.
Children and Young Peoples Services,Head of Early Help Inclusion & Vulnerable Children.,Supplies and Services,384899,Miscellaneous Expenses,05/12/2019,3676302-THK044,"2,414.00",COUNTY DURHAM FURNITURE HELP SCHEME (CDFHS).
Adult and Health Services,Public Health CC0450,Supplies and Services,384899,Miscellaneous Expenses,05/12/2019,3676303-CREE2019/20MEN,"1,500.00",CRAGHEAD DEVELOPMENT TRUST.
Adult and Health Services,Public Health CC0450,Supplies and Services,384899,Miscellaneous Expenses,05/12/2019,3676303-CREE2019/20WOMEN,"1,500.00",CRAGHEAD DEVELOPMENT TRUST.
Adult and Health Services,Head of Adults,Third Party Payments,478151,Purchase of Care,05/12/2019,3676305-0000402939,888.32,CREATIVE SUPPORT LTD.
Children and Young Peoples Services,Head of Education and Skills,Transport,230006,Contract Hire,05/12/2019,3676306-109760,"3,765.61",CROFT BUSINESS SERVICES (UK) LTD T/A CROFT TAXIS.
Children and Young Peoples Services,Head of Education and Skills,Transport,230008,Contract Hire,05/12/2019,3676306-109761,"2,850.00",CROFT BUSINESS SERVICES (UK) LTD T/A CROFT TAXIS.
Children and Young Peoples Services,Head of Education and Skills,Transport,230008,Contract Hire,05/12/2019,3676306-109768,"2,753.00",CROFT BUSINESS SERVICES (UK) LTD T/A CROFT TAXIS.
Children and Young Peoples Services,Head of Education and Skills,Transport,230008,Contract Hire,05/12/2019,3676306-109769,"2,620.00",CROFT BUSINESS SERVICES (UK) LTD T/A CROFT TAXIS.
Children and Young Peoples Services,Head of Education and Skills,Transport,230008,Contract Hire,05/12/2019,3676306-109771,"2,574.20",CROFT BUSINESS SERVICES (UK) LTD T/A CROFT TAXIS.
Regeneration and Local Services,Environmental Services,Cap Exp on Grants & Other Financial Assistance (REFCUS),918501,Exp assets not owned by authority,05/12/2019,3676307-CW0740,"5,160.00",CUMBRIA WILDFLOWERS LTD.
Children and Young Peoples Services,Head of Education and Skills,Transport,230006,Contract Hire,05/12/2019,3676311-374,"1,500.00",DA TRAVEL.
Children and Young Peoples Services,Head of Education and Skills,Transport,230006,Contract Hire,05/12/2019,3676311-375,"1,080.00",DA TRAVEL.
Children and Young Peoples Services,Head of Education and Skills,Transport,230007,Contract Hire,05/12/2019,3676311-378,800.00,DA TRAVEL.
Children and Young Peoples Services,Head of Education and Skills,Transfer Payments,510034,School Children,05/12/2019,3676312-LACPP1920AUTUMN,600.00,DALES ACADEMIES TRUST T/A THORNABY C OF E PRIMARY SCHOOL.
Adult and Health Services,Head of Adults,Transport,230005,Contract Hire,05/12/2019,3676313-F003,720.00,DAVID BRIDDICK T/A COUNDONS TAXIS.
Adult and Health Services,Public Health CC0450,Supplies and Services,384899,Miscellaneous Expenses,05/12/2019,3676316-CREE19/20,"1,500.00",DAWDON YOUTH & COMMUNITY CENTRE.
Adult and Health Services,Public Health CC0450,Supplies and Services,384899,Miscellaneous Expenses,05/12/2019,3676318-CREE19/20MEN,"1,500.00",DEAF HILL WARD REGENERATION PARTNERSHIP.
Adult and Health Services,Public Health CC0450,Supplies and Services,384899,Miscellaneous Expenses,05/12/2019,3676318-CREE19/20WOMEN,"1,500.00",DEAF HILL WARD REGENERATION PARTNERSHIP.
Adult and Health Services,Public Health CC0450,Supplies and Services,384899,Miscellaneous Expenses,05/12/2019,3676318-CREE19/20YOUTH,"1,500.00",DEAF HILL WARD REGENERATION PARTNERSHIP.
Resources BK0010,Digital and Customer Services,Supplies and Services,342225,Computers and Communications,05/12/2019,3676320-7402569470A,"1,794.90",DELL COMPUTER CORPORATION LTD.
Regeneration and Local Services,Environmental Services,Stock A926,926004,Stock,05/12/2019,3676321-96380849,"1,089.35",DENNIS EAGLE LTD T/A TERBERG MATEC (UK) LTD.
Regeneration and Local Services,Community Protection,Supplies and Services,338066,Services,05/12/2019,3676323-351280/INVMS110,750.00,DERE STREET BARRISTERS.
Regeneration and Local Services,Environmental Services,Third Party Payments,430101,Rendered by Private Contractors,05/12/2019,3676324-IV1208391,513.06,DIRECT TYRE MANAGEMENT LTD (DTM).
Regeneration and Local Services,Corporate Property and Land,Third Party Payments,430100,Rendered by Private Contractors,05/12/2019,3676332-1887,"4,000.00",ECO FACILITIES SOLUTIONS LTD.
Regeneration and Local Services,Corporate Property and Land,Third Party Payments,430100,Rendered by Private Contractors,05/12/2019,3676332-1897,"4,000.00",ECO FACILITIES SOLUTIONS LTD.
Regeneration and Local Services,Corporate Property and Land,Third Party Payments,430100,Rendered by Private Contractors,05/12/2019,3676332-1903,"4,277.27",ECO FACILITIES SOLUTIONS LTD.
Regeneration and Local Services,Technical Services CM0300,Stock A926,926900,Stock in hand-Inventory system,05/12/2019,3676333-059-254976,"2,170.08",EDMUNDSON ELECTRICAL LTD.
Children and Young Peoples Services,Head of Education and Skills,Supplies and Services,338094,Services,05/12/2019,3676340-0000000038,702.00,EXCEL ACADEMY PARTNERSHIP T/A FRAMWELLGATE SCHOOL DURHAM.
Children and Young Peoples Services,Head of Education and Skills,Transfer Payments,510034,School Children,05/12/2019,3676343-LACPP1920AUTUMN,"1,600.00",FAIRFIELD PRIMARY SCHOOL.
Regeneration and Local Services,Corporate Property and Land,Supplies and Services,304221,Equipment and Materials,05/12/2019,3676346-0002/00018132,518.80,FLAME HEATING SPARES LTD.
Children and Young Peoples Services,Head of Education and Skills,Transport,230034,Contract Hire,05/12/2019,3676350-60,704.86,GP TAXIS.
Regeneration and Local Services,Culture Sport and Tourism,Supplies and Services,384199,Miscellaneous Expenses,05/12/2019,3676351-8,"1,320.00",REDACTED - PAYMENT TO INDIVIDUAL
Adult and Health Services,Public Health CC0450,Supplies and Services,384899,Miscellaneous Expenses,05/12/2019,3676352-CREE19/20MEN,"1,500.00",GREENFIELD COMMUNITY & ARTS CENTRE.
Adult and Health Services,Public Health CC0450,Supplies and Services,384899,Miscellaneous Expenses,05/12/2019,3676352-CREE19/20YOUTH,"1,500.00",GREENFIELD COMMUNITY & ARTS CENTRE.
Regeneration and Local Services,Culture Sport and Tourism,Premises,145023,Cleaning and Domestic Supplies,05/12/2019,3676353-06/031912,943.90,GREENHAM TRADING LTD.
Regeneration and Local Services,Technical Services CM0300,Stock A926,926900,Stock in hand-Inventory system,05/12/2019,3676353-06/031943,510.01,GREENHAM TRADING LTD.
Adult and Health Services,Head of Adults,Transport,230005,Contract Hire,05/12/2019,3676357-03-DM208,828.00,HARDIP SINGH MAHIL T/A AMBER CARS.
Children and Young Peoples Services,Head of Education and Skills,Transport,230006,Contract Hire,05/12/2019,3676357-35,"1,380.00",HARDIP SINGH MAHIL T/A AMBER CARS.
Adult and Health Services,Public Health CC0450,Third Party Payments,460803,Contract Payments,05/12/2019,3676358-2510027763,"4,265.08",HARROGATE & DISTRICT NHS FOUNDATION TRUST.
Adult and Health Services,Public Health CC0450,Third Party Payments,460803,Contract Payments,05/12/2019,3676358-2510028632,"4,734.34",HARROGATE & DISTRICT NHS FOUNDATION TRUST.
Adult and Health Services,Public Health CC0450,Third Party Payments,460803,Contract Payments,05/12/2019,3676358-2510029324,"4,482.03",HARROGATE & DISTRICT NHS FOUNDATION TRUST.
Adult and Health Services,Public Health CC0450,Third Party Payments,460803,Contract Payments,05/12/2019,3676358-2510030751,"4,554.46",HARROGATE & DISTRICT NHS FOUNDATION TRUST.
Resources BK0010,Corporate Finance & Commercial Services,Supplies and Services,338221,Services,05/12/2019,3676359-SF-041398,"1,019.34",HEALTH ASSURED LTD.
Resources BK0010,Corporate Finance & Commercial Services,Supplies and Services,338221,Services,05/12/2019,3676359-SF-043271,"1,019.34",HEALTH ASSURED LTD.
Children and Young Peoples Services,Head of Education and Skills,Transfer Payments,510034,School Children,05/12/2019,3676360-LACPP1920AUTUMN,600.00,HEBBURN LAKES PRIMARY SCHOOL.
Children and Young Peoples Services,Head of Education and Skills,Transfer Payments,510034,School Children,05/12/2019,3676361-LACPP1920AUTUMN,"1,200.00",HETTON PRIMARY SCHOOL.
Children and Young Peoples Services,Head of Education and Skills,Transfer Payments,510034,School Children,05/12/2019,3676364-LACPP1920AUTUMN,600.00,HIGH TUNSTALL COLLEGE OF SCIENCE.
Children and Young Peoples Services,Head of Education and Skills,Transport,230007,Contract Hire,05/12/2019,3676365-16562,"3,598.74",HODGSONS COACH OPERATORS LTD.
Adult and Health Services,Public Health CC0450,Supplies and Services,384899,Miscellaneous Expenses,05/12/2019,3676366-CREE19/20MEN,"1,500.00",HOME ON THE RANGE LTD.
Adult and Health Services,Public Health CC0450,Supplies and Services,384899,Miscellaneous Expenses,05/12/2019,3676366-CREE19/20YOUTH,"1,500.00",HOME ON THE RANGE LTD.
Children and Young Peoples Services,Head of Education and Skills,Transport,230006,Contract Hire,05/12/2019,3676368-10,810.00,HORNDALE TAXIS LTD.
Adult and Health Services,Head of Adults,Transport,230005,Contract Hire,05/12/2019,3676368-7,559.92,HORNDALE TAXIS LTD.
Children and Young Peoples Services,Head of Education and Skills,Transport,230012,Contract Hire,05/12/2019,3676368-8,"1,299.60",HORNDALE TAXIS LTD.
Children and Young Peoples Services,Head of Education and Skills,Transport,230008,Contract Hire,05/12/2019,3676369-IR1911001,"2,259.20",I & R EXECUTIVE TRAVEL.
Children and Young Peoples Services,Head of Education and Skills,Transport,230016,Contract Hire,05/12/2019,3676369-IR1911002,"2,015.60",I & R EXECUTIVE TRAVEL.
Adult and Health Services,Head of Adults,Transport,230005,Contract Hire,05/12/2019,3676369-IR1911003,"1,900.00",I & R EXECUTIVE TRAVEL.
Resources BK0010,Digital and Customer Services,Supplies and Services,304337,Equipment and Materials,05/12/2019,3676372-SIN456310,"4,797.00",INFORMATION & DATA NETWORK SUPPLIES LTD (IDN).
Resources BK0010,Digital and Customer Services,Supplies and Services,304337,Equipment and Materials,05/12/2019,3676372-SIN456312,"4,827.00",INFORMATION & DATA NETWORK SUPPLIES LTD (IDN).
Resources BK0010,Digital and Customer Services,Stock A926,926900,Stock in hand-Inventory system,05/12/2019,3676373-4611611,"20,062.90",INSIGHT DIRECT (UK) LTD.
Adult and Health Services,Public Health CC0450,Supplies and Services,384899,Miscellaneous Expenses,05/12/2019,3676377-CREE19/20,"1,500.00",JACK DRUM ARTS LTD.
Children and Young Peoples Services,Head of Education and Skills,Transport,230006,Contract Hire,05/12/2019,3676380-DCC0013/11,720.00,JANICE BRADSHAW T/A JAN PRIVATE HIRE.
Regeneration and Local Services,Corporate Property and Land,Third Party Payments,430100,Rendered by Private Contractors,05/12/2019,3676382-42806,542.00,JBL SERVICES LTD.
Children and Young Peoples Services,Head of Education and Skills,Transport,230006,Contract Hire,05/12/2019,3676385-3,"1,451.40",JOHN BELL TAXI.
Children and Young Peoples Services,Head of Education and Skills,Transport,230007,Contract Hire,05/12/2019,3676386-92-2019,"1,861.20",JOHN CRAKE & SONS MINI BUSES LTD.
Adult and Health Services,Head of Adults,Transport,230005,Contract Hire,05/12/2019,3676386-95-2019,900.00,JOHN CRAKE & SONS MINI BUSES LTD.
Adult and Health Services,Head of Adults,Transport,230005,Contract Hire,05/12/2019,3676386-96-2019,900.00,JOHN CRAKE & SONS MINI BUSES LTD.
Dedicated Schools Grant BG0015,DSG High Needs Block,Transport,230010,Contract Hire,05/12/2019,3676388-008,"2,000.00",JOHN GARLAND.
Adult and Health Services,Head of Adults,Transport,230005,Contract Hire,05/12/2019,3676389-01112019,827.20,JOHN HUBBLE T/A HUBB`S TAXIS.
Children and Young Peoples Services,Head of Early Help Inclusion & Vulnerable Children.,Transport,230007,Contract Hire,05/12/2019,3676392-171,"1,180.00",JOHN ROBSON T/A ACE TAXIS.
Regeneration and Local Services,Corporate Property and Land,Construction work A908,908105,Construction work,05/12/2019,3676393-INSWOLSINGHAM-SCHOOL,"160,356.25",JOHN WADE (HAULAGE) LTD.
Regeneration and Local Services,Corporate Property and Land,Third Party Payments,430100,Rendered by Private Contractors,05/12/2019,3676394-SI-124,"1,400.00",JOHN WRAGG JOINERY & BUILDING SERVICES.
Children and Young Peoples Services,Head of Education and Skills,Transport,230009,Contract Hire,05/12/2019,3676395-7231203,"1,300.00",JOVIAL PRIVATE HIRE.
Children and Young Peoples Services,Head of Education and Skills,Transport,230008,Contract Hire,05/12/2019,3676395-E00503,"2,029.60",JOVIAL PRIVATE HIRE.
Children and Young Peoples Services,Head of Education and Skills,Transport,230008,Contract Hire,05/12/2019,3676395-M00926,"1,586.00",JOVIAL PRIVATE HIRE.
Children and Young Peoples Services,Head of Education and Skills,Transport,230008,Contract Hire,05/12/2019,3676395-M01525,"1,251.80",JOVIAL PRIVATE HIRE.
Children and Young Peoples Services,Head of Education and Skills,Transport,230008,Contract Hire,05/12/2019,3676395-M017725,933.40,JOVIAL PRIVATE HIRE.
Regeneration and Local Services,Corporate Property and Land,Supplies and Services,304221,Equipment and Materials,05/12/2019,3676397-PHBI147525,"1,667.02",JT DOVE LTD.
Regeneration and Local Services,Corporate Property and Land,Supplies and Services,304221,Equipment and Materials,05/12/2019,3676397-PHBII47526,"4,515.52",JT DOVE LTD.
Adult and Health Services,Public Health CC0450,Supplies and Services,384899,Miscellaneous Expenses,05/12/2019,3676398-CREE19/20,"1,500.00",JUBILEE FIELDS COMMUNITY ASSOCIATION.
Adult and Health Services,Public Health CC0450,Supplies and Services,384899,Miscellaneous Expenses,05/12/2019,3676399-CREE19/20APWOMEN,"1,500.00",JUST FOR WOMEN CENTRE.
Adult and Health Services,Public Health CC0450,Supplies and Services,384899,Miscellaneous Expenses,05/12/2019,3676399-CREE19/20CONSWOMEN,"1,500.00",JUST FOR WOMEN CENTRE.
Adult and Health Services,Public Health CC0450,Supplies and Services,384899,Miscellaneous Expenses,05/12/2019,3676399-CREE19/20STMEN,"1,500.00",JUST FOR WOMEN CENTRE.
Adult and Health Services,Public Health CC0450,Supplies and Services,384899,Miscellaneous Expenses,05/12/2019,3676399-CREE19/20STWOMEN,"1,500.00",JUST FOR WOMEN CENTRE.
Children and Young Peoples Services,Head of Education and Skills,Transport,230007,Contract Hire,05/12/2019,3676400-1031,"2,040.00",K & R TAXIS (STANLEY).
Children and Young Peoples Services,Head of Education and Skills,Transport,230008,Contract Hire,05/12/2019,3676400-1032,"2,480.00",K & R TAXIS (STANLEY).
Children and Young Peoples Services,Head of Education and Skills,Transport,230008,Contract Hire,05/12/2019,3676400-1033,"2,120.00",K & R TAXIS (STANLEY).
Children and Young Peoples Services,Head of Education and Skills,Transport,230008,Contract Hire,05/12/2019,3676400-1034,"3,186.00",K & R TAXIS (STANLEY).
Children and Young Peoples Services,Head of Education and Skills,Transport,230008,Contract Hire,05/12/2019,3676400-1035,"2,660.00",K & R TAXIS (STANLEY).
Children and Young Peoples Services,Head of Education and Skills,Transport,230008,Contract Hire,05/12/2019,3676400-1036,"2,460.00",K & R TAXIS (STANLEY).
Children and Young Peoples Services,Head of Education and Skills,Transport,230034,Contract Hire,05/12/2019,3676403-CTD018/19,900.00,KEVIN WALKER T/A CENTRAL TAXIS.
Regeneration and Local Services,Technical Services CM0300,Third Party Payments,430100,Rendered by Private Contractors,05/12/2019,3676404-20095,"10,943.78",KIELY BROS LTD.
Regeneration and Local Services,Environmental Services,Stock A926,926900,Stock in hand-Inventory system,05/12/2019,3676405-SI02-0249683,906.80,KILLGERM CHEMICALS LTD.
Adult and Health Services,Head of Adults,Transport,230005,Contract Hire,05/12/2019,3676409-003-SLD017,"2,380.00",KULDEEP MAHIL T/A KOLARS CAB.
Children and Young Peoples Services,Head of Education and Skills,Transport,230008,Contract Hire,05/12/2019,3676410-A019-NOV,672.00,LARS CARS LTD T/A STREETCARS.
Children and Young Peoples Services,Head of Education and Skills,Transport,230008,Contract Hire,05/12/2019,3676410-A136-NOV,792.00,LARS CARS LTD T/A STREETCARS.
Adult and Health Services,Head of Adults,Transport,230005,Contract Hire,05/12/2019,3676410-CLS043-NOV,732.00,LARS CARS LTD T/A STREETCARS.
Children and Young Peoples Services,Head of Education and Skills,Transport,230007,Contract Hire,05/12/2019,3676412-7828-3056,"3,591.00",LEE`S COACHES LTD.
Children and Young Peoples Services,Head of Education and Skills,Transport,230007,Contract Hire,05/12/2019,3676412-7828-3192,"1,890.50",LEE`S COACHES LTD.
Children and Young Peoples Services,Head of Education and Skills,Transport,230008,Contract Hire,05/12/2019,3676413-E031-KC1119,"3,303.72",LEE`S TAXIS..
Children and Young Peoples Services,Head of Education and Skills,Transport,230008,Contract Hire,05/12/2019,3676413-E148-RW1119,580.00,LEE`S TAXIS..
Children and Young Peoples Services,Head of Education and Skills,Transport,230012,Contract Hire,05/12/2019,3676413-S003-TA1019,"2,296.80",LEE`S TAXIS..
Regeneration and Local Services,Redundant Projects and Business Services,Premises,150005,Apportioned Exps of Operational Blds,05/12/2019,3676417-T00539/L00127NOV19,591.28,LOFTHOUSE & PARTNERS LTD.
Regeneration and Local Services,Redundant Projects and Business Services,Premises,150005,Apportioned Exps of Operational Blds,05/12/2019,3676417-T00540/L00127NOV19,591.28,LOFTHOUSE & PARTNERS LTD.
Regeneration and Local Services,Transport and Contracted Services,Construction work A908,908105,Construction work,05/12/2019,3676419-99831,"1,040.60",LUCION ENVIRONMENTAL LLP LTD.
Regeneration and Local Services,Technical Services CM0300,Third Party Payments,430100,Rendered by Private Contractors,05/12/2019,3676421-5831,"2,077.20",MAKEPEACE MOTORS.
Children and Young Peoples Services,Head of Education and Skills,Transport,230008,Contract Hire,05/12/2019,3676422-57,"1,697.40",MALCOLM CARR T/A CARLY CABS.
Regeneration and Local Services,Corporate Property and Land,Supplies and Services,304221,Equipment and Materials,05/12/2019,3676428-698422087,"1,849.00",METTLER TOLEDO LTD.
Children and Young Peoples Services,Head of Childrens Social Care,Supplies and Services,338044,Services,05/12/2019,3676432-405-1,"1,051.70",ML & R SERVICES LTD.
Regeneration and Local Services,Culture Sport and Tourism,Supplies and Services,324117,Provisions E324,05/12/2019,3676435-905486960,"1,443.12",MOLSON COORS BREWING COMPANY (UK) LTD.
Adult and Health Services,Head of Adults,Third Party Payments,478151,Purchase of Care,05/12/2019,3676436-01,"1,100.00",MOORLAND HOLDINGS (NE) LTD.
Children and Young Peoples Services,Head of Education and Skills,Transport,230034,Contract Hire,05/12/2019,3676437-AT204,"1,000.00",MR AG WILSON T/A ALAN`S TAXIS (DURHAM CITY).
Children and Young Peoples Services,Head of Education and Skills,Transport,230012,Contract Hire,05/12/2019,3676438-CHPK11-19,"1,774.00",MR CT WALKER T/A CW TAXIS.
Children and Young Peoples Services,Head of Education and Skills,Transport,230007,Contract Hire,05/12/2019,3676438-DJS11-19-2,"1,253.34",MR CT WALKER T/A CW TAXIS.
Children and Young Peoples Services,Head of Education and Skills,Transport,230006,Contract Hire,05/12/2019,3676438-DT211-19,918.80,MR CT WALKER T/A CW TAXIS.
Children and Young Peoples Services,Head of Education and Skills,Transport,230008,Contract Hire,05/12/2019,3676438-OAK111-19,"1,976.00",MR CT WALKER T/A CW TAXIS.
Children and Young Peoples Services,Head of Education and Skills,Transport,230007,Contract Hire,05/12/2019,3676439-088,720.00,MR LJ TARRY T/A TARRY`S TAXI`S.
Dedicated Schools Grant BG0015,DSG High Needs Block,Transport,230010,Contract Hire,05/12/2019,3676440-01-BL023NOV19,"1,501.00",MR MARK WILE T/A HARRY`S TAXIS.
Dedicated Schools Grant BG0015,DSG High Needs Block,Transport,230010,Contract Hire,05/12/2019,3676440-02-BL021NOV19,"1,062.80",MR MARK WILE T/A HARRY`S TAXIS.
Regeneration and Local Services,Technical Services CM0300,Supplies and Services,304221,Equipment and Materials,05/12/2019,3676448-0000084703,644.48,NAL LTD.
Children and Young Peoples Services,Head of Education and Skills,Transport,230008,Contract Hire,05/12/2019,3676452-58,"1,795.02",NEIL PASSMOOR T/A NEIL`S TAXI.
Children and Young Peoples Services,Head of Education and Skills,Transfer Payments,510034,School Children,05/12/2019,3676458-LACPP1920AUTUMN,600.00,NORTH EAST AUTISM SOCIETY.
Children and Young Peoples Services,Head of Education and Skills,Transport,230007,Contract Hire,05/12/2019,3676459-INV-6285,"2,500.00",NORTH EAST COACHWAYS LTD.
Children and Young Peoples Services,Head of Education and Skills,Transport,230003,Contract Hire,05/12/2019,3676459-INV-6286,"3,600.00",NORTH EAST COACHWAYS LTD.
Children and Young Peoples Services,Head of Education and Skills,Transport,230007,Contract Hire,05/12/2019,3676459-INV-6287,"2,274.80",NORTH EAST COACHWAYS LTD.
Regeneration and Local Services,Technical Services CM0300,Third Party Payments,430100,Rendered by Private Contractors,05/12/2019,3676460-72823,960.00,NORTH EAST GRANITE COMPANY LTD.
Regeneration and Local Services,Technical Services CM0300,Third Party Payments,430100,Rendered by Private Contractors,05/12/2019,3676463-20330844,931.19,NORTHERN POWERGRID (NORTHEAST) LTD.
Regeneration and Local Services,Technical Services CM0300,Third Party Payments,430100,Rendered by Private Contractors,05/12/2019,3676463-YD20330837,940.68,NORTHERN POWERGRID (NORTHEAST) LTD.
Regeneration and Local Services,Technical Services CM0300,Supplies and Services,338027,Services,05/12/2019,3676470-A190747,"1,065.96",OPENREACH LLU.
Regeneration and Local Services,Culture Sport and Tourism,Supplies and Services,384199,Miscellaneous Expenses,05/12/2019,3676473-INV-000002433,900.00,PAGESUITE LTD.
Regeneration and Local Services,Technical Services CM0300,Stock A926,926900,Stock in hand-Inventory system,05/12/2019,3676475-XL248638,"2,270.00",PARK ELECTRICAL DISTRIBUTORS LTD.
Regeneration and Local Services,Technical Services CM0300,Stock A926,926900,Stock in hand-Inventory system,05/12/2019,3676475-XL248643,"1,286.40",PARK ELECTRICAL DISTRIBUTORS LTD.
Regeneration and Local Services,Technical Services CM0300,Stock A926,926900,Stock in hand-Inventory system,05/12/2019,3676475-XL248644,"1,575.00",PARK ELECTRICAL DISTRIBUTORS LTD.
Children and Young Peoples Services,Head of Childrens Social Care,Supplies and Services,384199,Miscellaneous Expenses,05/12/2019,3676477-0078,720.00,PARTY PERFECT NORTH EAST LTD.
Adult and Health Services,Head of Adults,Transport,230005,Contract Hire,05/12/2019,3676478-89,960.00,PAUL B TAXIS.
Adult and Health Services,Head of Adults,Transport,230005,Contract Hire,05/12/2019,3676479-EAS150/11,"1,200.00",PAUL GREEN T/A GREEN TAXIS.
Children and Young Peoples Services,Head of Education and Skills,Transport,230009,Contract Hire,05/12/2019,3676480-7311-NOV,"1,980.00",PAUL WILSON.
Children and Young Peoples Services,Head of Education and Skills,Transport,230008,Contract Hire,05/12/2019,3676481-DCC272,"1,340.80",PAUL`S TAXIS..
Children and Young Peoples Services,Head of Education and Skills,Transport,230008,Contract Hire,05/12/2019,3676481-DCC273,"1,782.27",PAUL`S TAXIS..
Children and Young Peoples Services,Head of Education and Skills,Transport,230008,Contract Hire,05/12/2019,3676482-MO1203,"1,600.00",PB PRIVATE HIRE.
Children and Young Peoples Services,Head of Education and Skills,Transport,230008,Contract Hire,05/12/2019,3676482-NO7403,"1,898.19",PB PRIVATE HIRE.
Children and Young Peoples Services,Head of Education and Skills,Transfer Payments,510034,School Children,05/12/2019,3676483-LACPP1920AUTUMN,600.00,PEARTREE PROJECTS LTD.
Children and Young Peoples Services,Head of Education and Skills,Transfer Payments,510034,School Children,05/12/2019,3676484-LACPP1920AUTUMN,600.00,PELE TRUST T/A HEDDON ST ANDREWS C OF E PRIMARY SCHOOL.
Children and Young Peoples Services,Head of Education and Skills,Transport,230034,Contract Hire,05/12/2019,3676485-10,"1,560.00",PETER NAYLOR.
Regeneration and Local Services,Culture Sport and Tourism,Supplies and Services,338047,Services,05/12/2019,3676492-INV08952,833.33,PICTUREHOUSE CINEMAS LTD.
Regeneration and Local Services,Technical Services CM0300,Third Party Payments,430100,Rendered by Private Contractors,05/12/2019,3676494-5768,"4,331.17",PINKNEY BUILDING CONTRACTORS LTD.
Regeneration and Local Services,Technical Services CM0300,Third Party Payments,430100,Rendered by Private Contractors,05/12/2019,3676494-5770,"2,257.14",PINKNEY BUILDING CONTRACTORS LTD.
Regeneration and Local Services,Technical Services CM0300,Third Party Payments,430100,Rendered by Private Contractors,05/12/2019,3676494-5774,"4,331.17",PINKNEY BUILDING CONTRACTORS LTD.
Children and Young Peoples Services,Head of Education and Skills,Transfer Payments,510034,School Children,05/12/2019,3676495-LACPP1920AUTUMN,"1,200.00",PIPWORTH COMMUNITY PRIMARY SCHOOL.
Children and Young Peoples Services,Head of Education and Skills,Transport,230008,Contract Hire,05/12/2019,3676497-1331,"2,848.20",PODA TAXIS LTD.
Children and Young Peoples Services,Head of Education and Skills,Transport,230008,Contract Hire,05/12/2019,3676497-1332,"1,273.00",PODA TAXIS LTD.
Children and Young Peoples Services,Head of Education and Skills,Transport,230012,Contract Hire,05/12/2019,3676497-1333,"1,420.00",PODA TAXIS LTD.
Dedicated Schools Grant BG0015,DSG High Needs Block,Third Party Payments,440080,Other third party payments E440,05/12/2019,3676499-9013889,"73,917.33",PONTVILLE SCHOOL LTD.
Children and Young Peoples Services,Head of Education and Skills,Transport,230007,Contract Hire,05/12/2019,3676508-1355,"2,917.60",ROBERTS TOURS.
Children and Young Peoples Services,Head of Education and Skills,Transport,230007,Contract Hire,05/12/2019,3676508-1356,"3,076.60",ROBERTS TOURS.
Children and Young Peoples Services,Head of Education and Skills,Transport,230007,Contract Hire,05/12/2019,3676508-1357,"2,434.60",ROBERTS TOURS.
Transformation and Partnerships,Business Support,Supplies and Services,340001,Postages E340,05/12/2019,3676510-9059868252,"12,521.65",ROYAL MAIL GROUP PLC.
Adult and Health Services,Public Health CC0450,Supplies and Services,384899,Miscellaneous Expenses,05/12/2019,3676511-CREE19/20MEN,"1,500.00",RT COMMUNITY PROJECTS LTD.
Adult and Health Services,Public Health CC0450,Supplies and Services,384899,Miscellaneous Expenses,05/12/2019,3676511-CREE19/20WOMEN,"1,500.00",RT COMMUNITY PROJECTS LTD.
Children and Young Peoples Services,Head of Education and Skills,Transport,230007,Contract Hire,05/12/2019,3676513-5273/11,728.00,S DUNCAN PRIVATE HIRE.
Children and Young Peoples Services,Head of Education and Skills,Transport,230007,Contract Hire,05/12/2019,3676514-SKS1920-025,945.00,SAMUEL KINGS SCHOOL.
Children and Young Peoples Services,Head of Education and Skills,Transport,230007,Contract Hire,05/12/2019,3676514-SKS1920-033,840.00,SAMUEL KINGS SCHOOL.
Children and Young Peoples Services,Head of Education and Skills,Transfer Payments,510034,School Children,05/12/2019,3676515-LACPP1920AUTUMN,600.00,SANDFORD ST MARTIN`S CE VA PRIMARY SCHOOL.
Adult and Health Services,Public Health CC0450,Supplies and Services,384899,Miscellaneous Expenses,05/12/2019,3676520-CREE19/20,"1,500.00",SEAHAM EASTLEA & DISTRICT COMMUNITY ASSOCIATION.
Resources BK0010,Digital and Customer Services,Supplies and Services,338066,Services,05/12/2019,3676522-0033602518,"14,250.00",SERVELEC LTD.
Adult and Health Services,Public Health CC0450,Supplies and Services,384899,Miscellaneous Expenses,05/12/2019,3676525-CREE19/20MEN,"1,500.00",SHOTTON PARTNERSHIP 2000 LTD.
Adult and Health Services,Public Health CC0450,Supplies and Services,384899,Miscellaneous Expenses,05/12/2019,3676525-CREE19/20WOMEN,"1,500.00",SHOTTON PARTNERSHIP 2000 LTD.
Adult and Health Services,Head of Adults,Transport,230005,Contract Hire,05/12/2019,3676530-2012,"1,722.00",SIMONS TAXIS.
Children and Young Peoples Services,Head of Education and Skills,Transport,230012,Contract Hire,05/12/2019,3676530-2014,"1,736.00",SIMONS TAXIS.
Children and Young Peoples Services,Head of Education and Skills,Transport,230006,Contract Hire,05/12/2019,3676530-2016,"1,045.28",SIMONS TAXIS.
Adult and Health Services,Public Health CC0450,Supplies and Services,384899,Miscellaneous Expenses,05/12/2019,3676531-CREE19/20,"1,500.00",SINGLE HOMELESS ACTION INITIATIVE IN DURHAM LTD (SHAID).
Children and Young Peoples Services,Head of Education and Skills,Transport,230008,Contract Hire,05/12/2019,3676532-822A,"1,600.00",SJ MACKENZIE T/A SCOTTS TAXIS.
Children and Young Peoples Services,Head of Education and Skills,Transport,230008,Contract Hire,05/12/2019,3676532-823A,"1,539.00",SJ MACKENZIE T/A SCOTTS TAXIS.
Children and Young Peoples Services,Head of Education and Skills,Transport,230008,Contract Hire,05/12/2019,3676532-828A,"2,652.96",SJ MACKENZIE T/A SCOTTS TAXIS.
Children and Young Peoples Services,Head of Education and Skills,Transport,230008,Contract Hire,05/12/2019,3676532-829A,"2,645.50",SJ MACKENZIE T/A SCOTTS TAXIS.
Children and Young Peoples Services,Head of Education and Skills,Transport,230008,Contract Hire,05/12/2019,3676532-830A,"1,725.00",SJ MACKENZIE T/A SCOTTS TAXIS.
Adult and Health Services,Public Health CC0450,Supplies and Services,384899,Miscellaneous Expenses,05/12/2019,3676533-CREE19/20,"1,500.00",SPECTRUM LEISURE & COMMUNITY.
Adult and Health Services,Public Health CC0450,Supplies and Services,384899,Miscellaneous Expenses,05/12/2019,3676534-CREE19/20,"1,500.00",SPENNYMOOR YOUTH & COMMUNITY ASSOCIATION.
Children and Young Peoples Services,Head of Childrens Social Care,Third Party Payments,425028,Rendered by Voluntary Organisations,05/12/2019,3676535-1165,"16,498.25",SPORT WORKS LTD.
Children and Young Peoples Services,Head of Education and Skills,Transfer Payments,510034,School Children,05/12/2019,3676537-LACPP1920AUTUMN,600.00,ST AIDAN'S CE MEMORIAL PRIMARY SCHOOL.
Children and Young Peoples Services,Head of Education and Skills,Transport,230008,Contract Hire,05/12/2019,3676541-54751,"2,780.00",STANLEY TRAVEL (NORTH EAST) LTD.
Children and Young Peoples Services,Head of Education and Skills,Transport,230007,Contract Hire,05/12/2019,3676541-54752,951.20,STANLEY TRAVEL (NORTH EAST) LTD.
Children and Young Peoples Services,Head of Education and Skills,Transport,230007,Contract Hire,05/12/2019,3676543-6430,"1,890.50",STEPHEN MAUDE LTD T/A MAUDES COACHES.
Children and Young Peoples Services,Head of Education and Skills,Transport,230034,Contract Hire,05/12/2019,3676544-027,"1,330.00",STEVEN HENDERSON T/A HENDYS TAXIS.
Adult and Health Services,Head of Adults,Transport,230005,Contract Hire,05/12/2019,3676544-028,816.00,STEVEN HENDERSON T/A HENDYS TAXIS.
Children and Young Peoples Services,Head of Education and Skills,Transport,230006,Contract Hire,05/12/2019,3676545-00119/11,620.40,STEVES TAXIS.
Children and Young Peoples Services,Head of Education and Skills,Transfer Payments,510034,School Children,05/12/2019,3676547-LACPP1920AUTUMN-BARNES,600.00,SUNDERLAND CITY COUNCIL.
Regeneration and Local Services,Technical Services CM0300,Supplies and Services,332047,Printing Stationery and Gen Off Exps,05/12/2019,3676549-4638761,559.00,SUPPLIES TEAM LTD NOW KNOWN AS BANNER GROUP LTD.
Regeneration and Local Services,Corporate Property and Land,Supplies and Services,304221,Equipment and Materials,05/12/2019,3676551-286612,834.20,T CROSSLING & CO LTD.
Dedicated Schools Grant BG0015,DSG High Needs Block,Transport,230010,Contract Hire,05/12/2019,3676552-10/2019/005,"1,380.00",TARNS TAXIS LTD.
Adult and Health Services,Public Health CC0450,Supplies and Services,384899,Miscellaneous Expenses,05/12/2019,3676559-CREE19/20,"1,500.00",THE COMMUNITY CLUB.
Children and Young Peoples Services,Head of Childrens Social Care,Supplies and Services,338043,Services,05/12/2019,3676566-9932,"1,055.74",TMJ LEGAL SERVICES LLP.
Children and Young Peoples Services,Head of Education and Skills,Transport,230008,Contract Hire,05/12/2019,3676567-0002120,"1,600.00",TONY RIDLEY T/A COLORS TAXIS LTD.
Children and Young Peoples Services,Head of Education and Skills,Transport,230008,Contract Hire,05/12/2019,3676567-0002121/11,"1,700.00",TONY RIDLEY T/A COLORS TAXIS LTD.
Regeneration and Local Services,Corporate Property and Land,Supplies and Services,304221,Equipment and Materials,05/12/2019,3676569-32517,760.00,TOTAL PUMP SOLUTIONS LTD.
Regeneration and Local Services,Technical Services CM0300,Stock A926,926900,Stock in hand-Inventory system,05/12/2019,3676570-102777,"1,381.30",TOTAL RENTAL SOLUTIONS.
Regeneration and Local Services,Technical Services CM0300,Stock A926,926900,Stock in hand-Inventory system,05/12/2019,3676570-102778,"1,456.80",TOTAL RENTAL SOLUTIONS.
Regeneration and Local Services,Technical Services CM0300,Stock A926,926900,Stock in hand-Inventory system,05/12/2019,3676570-102780,"1,344.00",TOTAL RENTAL SOLUTIONS.
Children and Young Peoples Services,Head of Education and Skills,Transfer Payments,510034,School Children,05/12/2019,3676572-LACPP1920AUTUMN,600.00,TRINITY ACADEMY NEWCASTLE.
Children and Young Peoples Services,Head of Early Help Inclusion & Vulnerable Children.,Supplies and Services,344033,Telephones,05/12/2019,3676575-205986,572.70,UNIFY BUSINESS SOLUTIONS LTD.
Regeneration and Local Services,Culture Sport and Tourism,Supplies and Services,338047,Services,05/12/2019,3676577-22314316648-1,640.75,UNIVERSAL PICTURES INTERNATIONAL UK & EIRE LTD.
Adult and Health Services,Public Health CC0450,Supplies and Services,384899,Miscellaneous Expenses,05/12/2019,3676578-CREE19/20BCASTLE,"1,500.00",UPPER TEESDALE AGRICULTURAL SUPPORT SERVICES LTD (UTASS).
Adult and Health Services,Public Health CC0450,Supplies and Services,384899,Miscellaneous Expenses,05/12/2019,3676578-CREE19/20MIT,"1,500.00",UPPER TEESDALE AGRICULTURAL SUPPORT SERVICES LTD (UTASS).
Adult and Health Services,Public Health CC0450,Supplies and Services,384899,Miscellaneous Expenses,05/12/2019,3676578-CREE19/20STJOHN,"1,500.00",UPPER TEESDALE AGRICULTURAL SUPPORT SERVICES LTD (UTASS).
Regeneration and Local Services,Environmental Services,Transport,210057,Repair and Maintenance of Vehicles,05/12/2019,3676582-15111,530.18,VERSALIFT DISTRIBUTORS (UK) LTD.
Regeneration and Local Services,Technical Services CM0300,Third Party Payments,430100,Rendered by Private Contractors,05/12/2019,3676583-1047,721.76,VINOVIUM ASSOCIATES LTD.
Children and Young Peoples Services,Head of Education and Skills,Transfer Payments,510034,School Children,05/12/2019,3676585-LACPP1920AUTUMN,600.00,VISION ACADEMY LEARNING TRUST T/A WHINSTONE PRIMARY SCHOOL.
Regeneration and Local Services,Technical Services CM0300,Third Party Payments,430127,Rendered by Private Contractors,05/12/2019,3676588-47424,560.00,W MARLEY AGRICULTURAL CONTRACTORS LTD.
Adult and Health Services,Public Health CC0450,Supplies and Services,384899,Miscellaneous Expenses,05/12/2019,3676589-CREE19/20MEN,"1,500.00",WADDINGTON STREET CENTRE LTD.
Adult and Health Services,Public Health CC0450,Supplies and Services,384899,Miscellaneous Expenses,05/12/2019,3676589-CREE19/20WOMEN,"1,500.00",WADDINGTON STREET CENTRE LTD.
Regeneration and Local Services,Culture Sport and Tourism,Supplies and Services,338047,Services,05/12/2019,3676590-1796708,"3,491.75",WALT DISNEY CO LTD.
Regeneration and Local Services,Culture Sport and Tourism,Supplies and Services,338047,Services,05/12/2019,3676591-22848989,576.80,WARNER BROS ENTERTAINMENT UK LTD.
Regeneration and Local Services,Culture Sport and Tourism,Supplies and Services,338047,Services,05/12/2019,3676591-22848994,811.33,WARNER BROS ENTERTAINMENT UK LTD.
Transformation and Partnerships,Partnerships & Community Engagement Div.,Supplies and Services,384871,Miscellaneous Expenses,05/12/2019,3676593-CLSFARAHOCT-DE2019,"1,232.00",WAYMAN DEVELOPMENTS LTD T/A CHILDSPLAY PRIVATE NURSERY.
Children and Young Peoples Services,Head of Childrens Social Care,Third Party Payments,440046,Other third party payments E440,05/12/2019,3676594-INV-1464,"1,404.34",WE CARE RECRUITMENT SOLUTIONS LTD.
Children and Young Peoples Services,Head of Childrens Social Care,Third Party Payments,440046,Other third party payments E440,05/12/2019,3676594-INV-1674,610.80,WE CARE RECRUITMENT SOLUTIONS LTD.
Children and Young Peoples Services,Head of Childrens Social Care,Employees,080025,Agency Staff,05/12/2019,3676594-INV-1865,"2,381.44",WE CARE RECRUITMENT SOLUTIONS LTD.
Children and Young Peoples Services,Head of Childrens Social Care,Third Party Payments,440046,Other third party payments E440,05/12/2019,3676594-INV-1902,"1,873.92",WE CARE RECRUITMENT SOLUTIONS LTD.
Children and Young Peoples Services,Head of Childrens Social Care,Third Party Payments,440046,Other third party payments E440,05/12/2019,3676594-INV-1922,946.72,WE CARE RECRUITMENT SOLUTIONS LTD.
Children and Young Peoples Services,Head of Childrens Social Care,Third Party Payments,440046,Other third party payments E440,05/12/2019,3676594-INV-1922B,"1,424.96",WE CARE RECRUITMENT SOLUTIONS LTD.
Children and Young Peoples Services,Head of Childrens Social Care,Third Party Payments,440046,Other third party payments E440,05/12/2019,3676594-INV-2006,922.32,WE CARE RECRUITMENT SOLUTIONS LTD.
Children and Young Peoples Services,Head of Childrens Social Care,Third Party Payments,440046,Other third party payments E440,05/12/2019,3676594-INV-2017,"6,588.00",WE CARE RECRUITMENT SOLUTIONS LTD.
Children and Young Peoples Services,Head of Childrens Social Care,Third Party Payments,440046,Other third party payments E440,05/12/2019,3676594-INV-2031,"1,873.92",WE CARE RECRUITMENT SOLUTIONS LTD.
Regeneration and Local Services,Culture Sport and Tourism,Supplies and Services,304259,Equipment and Materials,05/12/2019,3676427-SIN064280,775.58,WF EDUCATION GROUP LTD T/A MAUDESPORT LTD.
Adult and Health Services,Public Health CC0450,Supplies and Services,384899,Miscellaneous Expenses,05/12/2019,3676595-CREE19/20MEN,"1,500.00",WINGATE & STATION TOWN FAMILY CENTRE.
Adult and Health Services,Public Health CC0450,Supplies and Services,384899,Miscellaneous Expenses,05/12/2019,3676595-CREE19/20WOMEN,"1,500.00",WINGATE & STATION TOWN FAMILY CENTRE.
Regeneration and Local Services,Development and Housing,Supplies and Services,338045,Services,05/12/2019,3676597-3426875,"4,319.00",WOMBLE BOND DICKINSON (UK) LLP.
Regeneration and Local Services,Culture Sport and Tourism,Supplies and Services,304337,Equipment and Materials,05/12/2019,3676603-I-0622815,"1,136.25",ZOGGS INTERNATIONAL LTD.
Children and Young Peoples Services,Head of Education and Skills,Transport,230008,Contract Hire,06/12/2019,3676605-111907,"2,139.00",24/7 TAXI SERVICES LTD.
Children and Young Peoples Services,Head of Education and Skills,Transport,230006,Contract Hire,06/12/2019,3676606-01/11,"1,896.00",A & P TAXIS.
Children and Young Peoples Services,Head of Education and Skills,Transport,230006,Contract Hire,06/12/2019,3676606-02/11,"1,565.00",A & P TAXIS.
Children and Young Peoples Services,Head of Education and Skills,Transport,230009,Contract Hire,06/12/2019,3676606-03/7357,950.00,A & P TAXIS.
Children and Young Peoples Services,Head of Childrens Social Care,Third Party Payments,425021,Rendered by Voluntary Organisations,06/12/2019,3676611-1911/01,"12,857.14",ACORN CARE (UK) LTD T/A ACORN RESIDENTIAL SERVICES.
Dedicated Schools Grant BG0015,DSG High Needs Block,Supplies and Services,384906,Miscellaneous Expenses,06/12/2019,3676612-CAS-12-2019-030,"14,000.00",ADVANCE LEARNING PARTNERSHIP.
Regeneration and Local Services,Technical Services CM0300,Supplies and Services,304221,Equipment and Materials,06/12/2019,3676613-29140384,"2,273.30",AGGREGATE INDUSTRIES UK LTD.
Regeneration and Local Services,Technical Services CM0300,Supplies and Services,304221,Equipment and Materials,06/12/2019,3676613-29140385,"1,188.28",AGGREGATE INDUSTRIES UK LTD.
Regeneration and Local Services,Technical Services CM0300,Supplies and Services,304221,Equipment and Materials,06/12/2019,3676613-29140386,"1,119.86",AGGREGATE INDUSTRIES UK LTD.
Regeneration and Local Services,Technical Services CM0300,Supplies and Services,304221,Equipment and Materials,06/12/2019,3676613-29140387,730.40,AGGREGATE INDUSTRIES UK LTD.
Regeneration and Local Services,Technical Services CM0300,Supplies and Services,304221,Equipment and Materials,06/12/2019,3676613-29140388,"1,076.18",AGGREGATE INDUSTRIES UK LTD.
Adult and Health Services,Head of Adults,Transport,230005,Contract Hire,06/12/2019,3676615-0027,"1,485.20",AIRPORT TAXIS 4U.
Children and Young Peoples Services,Head of Education and Skills,Transport,230008,Contract Hire,06/12/2019,3676632-735,"2,176.00",AT TAXIS LTD.
Regeneration and Local Services,Technical Services CM0300,Stock A926,926900,Stock in hand-Inventory system,06/12/2019,3676633-INV134633,679.02,AZTEC CHEMICALS LTD.
Children and Young Peoples Services,Head of Childrens Social Care,Third Party Payments,425021,Rendered by Voluntary Organisations,06/12/2019,3676637-BT0008,"18,783.60",BDT CARE SOLUTIONS LTD.
Children and Young Peoples Services,Head of Childrens Social Care,Third Party Payments,425021,Rendered by Voluntary Organisations,06/12/2019,3676637-LJB0009,"25,783.50",BDT CARE SOLUTIONS LTD.
Children and Young Peoples Services,Head of Education and Skills,Transport,230008,Contract Hire,06/12/2019,3676639-SMITH1NOVEMBER19,"2,411.44",BEELINE PRIVATE HIRE.
Children and Young Peoples Services,Head of Education and Skills,Transport,230016,Contract Hire,06/12/2019,3676639-SMITH2/NOVEMBER19,827.40,BEELINE PRIVATE HIRE.
Children and Young Peoples Services,Head of Education and Skills,Transport,230007,Contract Hire,06/12/2019,3676641-2-4408,"1,180.00",BENNETTS TAXIS.
Children and Young Peoples Services,Head of Education and Skills,Transport,230007,Contract Hire,06/12/2019,3676644-043,"2,400.00",BL CARS.
Children and Young Peoples Services,Head of Education and Skills,Transport,230034,Contract Hire,06/12/2019,3676645-27113,"1,109.49",BLUELINE TAXIS.
Children and Young Peoples Services,Head of Education and Skills,Transport,230008,Contract Hire,06/12/2019,3676645-27128,988.00,BLUELINE TAXIS.
Adult and Health Services,Head of Adults,Transport,230005,Contract Hire,06/12/2019,3676647-7095,990.00,BOBBY DOVE PRIVATE HIRE.
Children and Young Peoples Services,Head of Education and Skills,Transport,230008,Contract Hire,06/12/2019,3676650-DC14,"1,908.00",BOWES TRAVEL.
Dedicated Schools Grant BG0015,DSG High Needs Block,Third Party Payments,440080,Other third party payments E440,06/12/2019,3676653-2450,"17,943.00",BRECKENBROUGH SCHOOL.
Dedicated Schools Grant BG0015,DSG High Needs Block,Third Party Payments,440080,Other third party payments E440,06/12/2019,3676653-2451,"20,537.00",BRECKENBROUGH SCHOOL.
Dedicated Schools Grant BG0015,DSG High Needs Block,Third Party Payments,425005,Rendered by Voluntary Organisations,06/12/2019,3676653-2452,"20,354.00",BRECKENBROUGH SCHOOL.
Dedicated Schools Grant BG0015,DSG High Needs Block,Third Party Payments,425005,Rendered by Voluntary Organisations,06/12/2019,3676653-2453,"16,000.00",BRECKENBROUGH SCHOOL.
Children and Young Peoples Services,Head of Education and Skills,Transport,230008,Contract Hire,06/12/2019,3676655-BZ00328,"1,148.40",BREZ`S TAXIS.
Children and Young Peoples Services,Head of Education and Skills,Transport,230008,Contract Hire,06/12/2019,3676655-BZ00329,"1,179.60",BREZ`S TAXIS.
Children and Young Peoples Services,Head of Education and Skills,Transport,230008,Contract Hire,06/12/2019,3676659-S00603,"1,752.80",C & R TAXIS.
Children and Young Peoples Services,Head of Education and Skills,Transport,230008,Contract Hire,06/12/2019,3676659-W03003,"2,200.00",C & R TAXIS.
Children and Young Peoples Services,Head of Education and Skills,Transport,230008,Contract Hire,06/12/2019,3676659-W11206,"1,800.00",C & R TAXIS.
Children and Young Peoples Services,Head of Education and Skills,Transport,230008,Contract Hire,06/12/2019,3676660-BIL0178,"1,060.80",CA MUSGROVE.
Children and Young Peoples Services,Head of Education and Skills,Transport,230006,Contract Hire,06/12/2019,3676660-BIL0179,928.00,CA MUSGROVE.
Adult and Health Services,Head of Adults,Supplies and Services,338366,Services,06/12/2019,3676662-63899,"1,011.35",CARE ABILITY HEALTHCARE LTD.
Adult and Health Services,Head of Adults,Supplies and Services,338366,Services,06/12/2019,3676662-63953,"2,834.00",CARE ABILITY HEALTHCARE LTD.
Adult and Health Services,Head of Adults,Supplies and Services,338366,Services,06/12/2019,3676662-63954,"3,187.50",CARE ABILITY HEALTHCARE LTD.
Adult and Health Services,Head of Adults,Supplies and Services,338366,Services,06/12/2019,3676662-63955,"1,856.30",CARE ABILITY HEALTHCARE LTD.
Adult and Health Services,Head of Adults,Supplies and Services,338366,Services,06/12/2019,3676662-63956,"1,908.70",CARE ABILITY HEALTHCARE LTD.
Adult and Health Services,Head of Adults,Supplies and Services,338366,Services,06/12/2019,3676662-63957,968.05,CARE ABILITY HEALTHCARE LTD.
Adult and Health Services,Head of Adults,Supplies and Services,338366,Services,06/12/2019,3676662-63958,"3,063.50",CARE ABILITY HEALTHCARE LTD.
Children and Young Peoples Services,Head of Education and Skills,Transfer Payments,510028,School Children,06/12/2019,3676663-CAS-12-2019-035,"8,217.00",CASTLE KINDERGARTEN LTD.
Regeneration and Local Services,Business Durham CL0850,Supplies and Services,304259,Equipment and Materials,06/12/2019,3676664-6421,"1,726.32",CATHEDRAL LOCK & SAFE SERVICES LTD.
Regeneration and Local Services,Technical Services CM0300,Supplies and Services,304221,Equipment and Materials,06/12/2019,3676666-3011813127,"1,616.52",CEMEX UK MATERIALS LTD.
Children and Young Peoples Services,Head of Education and Skills,Transport,230008,Contract Hire,06/12/2019,3676671-036,"4,313.26",CHANNER`S CABS.
Regeneration and Local Services,Technical Services CM0300,Stock A926,926900,Stock in hand-Inventory system,06/12/2019,3676672-83802,630.00,CHANTER BIOMED UK LTD.
Children and Young Peoples Services,Head of Education and Skills,Transport,230007,Contract Hire,06/12/2019,3676673-3-3382,"1,426.60",CHAPMAN TRAVEL.
Children and Young Peoples Services,Head of Education and Skills,Transport,230006,Contract Hire,06/12/2019,3676673-3-F748,"1,620.00",CHAPMAN TRAVEL.
Children and Young Peoples Services,Head of Education and Skills,Transport,230008,Contract Hire,06/12/2019,3676674-SS3/11,"2,520.00",CHIPPERS TAXIS.
Children and Young Peoples Services,Head of Education and Skills,Transport,230031,Contract Hire,06/12/2019,3676676-46855-8022,"1,949.40",CHRISTOPHER JAMES GRIERSON T/A GRIERSONS COACHES.
Children and Young Peoples Services,Head of Childrens Social Care,Third Party Payments,440039,Other third party payments E440,06/12/2019,3676679-3204,800.00,CITY OF SUNDERLAND YMCA LTD.
Children and Young Peoples Services,Head of Childrens Social Care,Third Party Payments,440039,Other third party payments E440,06/12/2019,3676679-3205,800.00,CITY OF SUNDERLAND YMCA LTD.
Children and Young Peoples Services,Head of Childrens Social Care,Third Party Payments,440038,Other third party payments E440,06/12/2019,3676679-3207,800.00,CITY OF SUNDERLAND YMCA LTD.
Resources BK0010,Legal & Democratic Services,Supplies and Services,338025,Services,06/12/2019,3676684-S44954-0I410,"1,520.00",CO-OPERATIVE FUNERAL CARE.
Regeneration and Local Services,Business Durham CL0850,Premises,120021,Energy Costs,06/12/2019,3676694-14525510,752.75,CORONA ENERGY RETAIL 2 LTD.
Regeneration and Local Services,Business Durham CL0850,Premises,120021,Energy Costs,06/12/2019,3676695-14525365,702.59,CORONA ENERGY RETAIL 2 LTD.
Regeneration and Local Services,Business Durham CL0850,Premises,120021,Energy Costs,06/12/2019,3676695-14525546,722.94,CORONA ENERGY RETAIL 2 LTD.
Regeneration and Local Services,Business Durham CL0850,Premises,120021,Energy Costs,06/12/2019,3676695-14525571,"1,300.41",CORONA ENERGY RETAIL 2 LTD.
Children and Young Peoples Services,Head of Education and Skills,Transport,230003,Contract Hire,06/12/2019,3676697-DCC/4021/NOV19,"2,564.40",COUNTY COACHES.
Children and Young Peoples Services,Head of Education and Skills,Transport,230003,Contract Hire,06/12/2019,3676697-DCC/4025/NOV19,"2,233.40",COUNTY COACHES.
Regeneration and Local Services,Business Durham CL0850,Supplies and Services,368008,Incentives to Industrialists,06/12/2019,3676698-RED-12-2019-034,"3,009.02",COUNTY DURHAM ENGINEERING & MANUFACTURING NETWORK LTD (CDEMN).
Children and Young Peoples Services,Head of Education and Skills,Transport,230008,Contract Hire,06/12/2019,3676701-109762,"2,065.40",CROFT BUSINESS SERVICES (UK) LTD T/A CROFT TAXIS.
Children and Young Peoples Services,Head of Education and Skills,Transport,230006,Contract Hire,06/12/2019,3676701-109764,"4,199.18",CROFT BUSINESS SERVICES (UK) LTD T/A CROFT TAXIS.
Children and Young Peoples Services,Head of Education and Skills,Transport,230008,Contract Hire,06/12/2019,3676701-109765,"2,503.50",CROFT BUSINESS SERVICES (UK) LTD T/A CROFT TAXIS.
Dedicated Schools Grant BG0015,DSG High Needs Block,Transport,230010,Contract Hire,06/12/2019,3676701-109766,"2,675.40",CROFT BUSINESS SERVICES (UK) LTD T/A CROFT TAXIS.
Children and Young Peoples Services,Head of Education and Skills,Transport,230008,Contract Hire,06/12/2019,3676701-109770,"2,682.61",CROFT BUSINESS SERVICES (UK) LTD T/A CROFT TAXIS.
Children and Young Peoples Services,Head of Education and Skills,Transport,230008,Contract Hire,06/12/2019,3676701-109772,"3,076.48",CROFT BUSINESS SERVICES (UK) LTD T/A CROFT TAXIS.
Children and Young Peoples Services,Head of Education and Skills,Transport,230008,Contract Hire,06/12/2019,3676701-109773,"2,859.59",CROFT BUSINESS SERVICES (UK) LTD T/A CROFT TAXIS.
Children and Young Peoples Services,Head of Education and Skills,Transport,230035,Contract Hire,06/12/2019,3676707-BEC1119/2,520.00,D IRVING T/A BJ TAXIS.
Children and Young Peoples Services,Head of Education and Skills,Transport,230008,Contract Hire,06/12/2019,3676708-1650,"1,600.00",DA TAXIS.
Children and Young Peoples Services,Head of Education and Skills,Transport,230008,Contract Hire,06/12/2019,3676708-1651,"1,924.80",DA TAXIS.
Children and Young Peoples Services,Head of Education and Skills,Transport,230008,Contract Hire,06/12/2019,3676709-A118,"2,015.60",DAVID FOREMAN T/A DAVES TAXIS.
Children and Young Peoples Services,Head of Education and Skills,Transport,230008,Contract Hire,06/12/2019,3676709-A119,"1,870.00",DAVID FOREMAN T/A DAVES TAXIS.
Children and Young Peoples Services,Head of Education and Skills,Transport,230008,Contract Hire,06/12/2019,3676709-A120,"1,350.00",DAVID FOREMAN T/A DAVES TAXIS.
Children and Young Peoples Services,Head of Education and Skills,Transfer Payments,510028,School Children,06/12/2019,3676710-CAS-12-2019-036,"18,000.00",DAYPARK LTD T/A YELLOW WELLIES.
Children and Young Peoples Services,Head of Education and Skills,Transport,230008,Contract Hire,06/12/2019,3676712-003-E040,"2,925.00",DEXTERS PRIVATE HIRE.
Children and Young Peoples Services,Head of Education and Skills,Transport,230007,Contract Hire,06/12/2019,3676715-28997,"2,965.20",DURHAM CITY COACHES.
Regeneration and Local Services,Culture Sport and Tourism,Supplies and Services,384199,Miscellaneous Expenses,06/12/2019,3676719-50936,"1,120.00",DURHAM ST NICHOLAS PCC.
Children and Young Peoples Services,Head of Childrens Social Care,Third Party Payments,425021,Rendered by Voluntary Organisations,06/12/2019,3676721-AM013,"19,042.86",DUTY OF CARE LTD.
Children and Young Peoples Services,Head of Childrens Social Care,Third Party Payments,425021,Rendered by Voluntary Organisations,06/12/2019,3676721-AM014,"18,428.57",DUTY OF CARE LTD.
Children and Young Peoples Services,Head of Childrens Social Care,Third Party Payments,425021,Rendered by Voluntary Organisations,06/12/2019,3676721-CD028,"21,428.57",DUTY OF CARE LTD.
Children and Young Peoples Services,Head of Childrens Social Care,Third Party Payments,425021,Rendered by Voluntary Organisations,06/12/2019,3676721-HP006,"18,428.57",DUTY OF CARE LTD.
Children and Young Peoples Services,Head of Childrens Social Care,Third Party Payments,425021,Rendered by Voluntary Organisations,06/12/2019,3676721-KT009,"22,500.00",DUTY OF CARE LTD.
Children and Young Peoples Services,Head of Childrens Social Care,Third Party Payments,425021,Rendered by Voluntary Organisations,06/12/2019,3676721-MP030,"19,042.86",DUTY OF CARE LTD.
Children and Young Peoples Services,Head of Childrens Social Care,Third Party Payments,425021,Rendered by Voluntary Organisations,06/12/2019,3676721-MP031,"18,428.57",DUTY OF CARE LTD.
Children and Young Peoples Services,Head of Education and Skills,Transport,230008,Contract Hire,06/12/2019,3676724-2911201901,"3,799.00",EAST DURHAM TAXIS.
Children and Young Peoples Services,Head of Education and Skills,Transport,230008,Contract Hire,06/12/2019,3676724-2911201902,"2,520.00",EAST DURHAM TAXIS.
Children and Young Peoples Services,Head of Education and Skills,Transport,230006,Contract Hire,06/12/2019,3676724-2911201903,"2,680.00",EAST DURHAM TAXIS.
Children and Young Peoples Services,Head of Education and Skills,Transport,230008,Contract Hire,06/12/2019,3676724-2911201904,"2,584.00",EAST DURHAM TAXIS.
Children and Young Peoples Services,Head of Education and Skills,Transport,230008,Contract Hire,06/12/2019,3676724-2911201905,"3,680.00",EAST DURHAM TAXIS.
Adult and Health Services,Head of Adults,Transport,230005,Contract Hire,06/12/2019,3676724-2911201906,"2,496.00",EAST DURHAM TAXIS.
Children and Young Peoples Services,Head of Education and Skills,Transport,230012,Contract Hire,06/12/2019,3676724-2911201907,"2,369.00",EAST DURHAM TAXIS.
Resources BK0010,Legal & Democratic Services,Supplies and Services,384199,Miscellaneous Expenses,06/12/2019,3676735-66884,"2,141.67",ELIOR UK PLC.
Adult and Health Services,Head of Adults,Third Party Payments,478151,Purchase of Care,06/12/2019,3676737-KWVOIDS/PERIOD8-AMENDMENT,"1,344.64",EMBRACING CARE.
Regeneration and Local Services,Corporate Property and Land,Third Party Payments,430100,Rendered by Private Contractors,06/12/2019,3676753-11192,"1,150.00",FROSTREE LTD.
Children and Young Peoples Services,Head of Education and Skills,Transport,230008,Contract Hire,06/12/2019,3676763-003-W024,"2,044.00",GMC TAXIS NORTH EAST.
Children and Young Peoples Services,Head of Education and Skills,Third Party Payments,440999,Other third party payments E440,06/12/2019,3676767-YEI26-Q3-2019,"83,083.04",GROUNDWORK NORTH EAST.
Dedicated Schools Grant BG0015,DSG High Needs Block,Third Party Payments,440999,Other third party payments E440,06/12/2019,3676773-SIVA1833,"7,125.00",HARTLEPOOL COLLEGE OF FURTHER EDUCATION.
Adult and Health Services,Commissioning inc Supporting People,Third Party Payments,479111,Purchase of Care,06/12/2019,3676777-1101013161,"71,516.00",HOME GROUP LTD.
Children and Young Peoples Services,Head of Childrens Social Care,Third Party Payments,425021,Rendered by Voluntary Organisations,06/12/2019,3676780-0000015379,"19,547.10",HORIZON CARE & EDUCATION.
Children and Young Peoples Services,Head of Childrens Social Care,Third Party Payments,425023,Rendered by Voluntary Organisations,06/12/2019,3676782-5277,"3,520.00",HOWARD HOUSE CARE LTD.
Children and Young Peoples Services,Head of Childrens Social Care,Third Party Payments,425023,Rendered by Voluntary Organisations,06/12/2019,3676782-5282,"2,981.20",HOWARD HOUSE CARE LTD.
Regeneration and Local Services,Technical Services CM0300,Supplies and Services,304221,Equipment and Materials,06/12/2019,3676790-709978,896.00,INSTARMAC GROUP PLC.
Regeneration and Local Services,Corporate Property and Land,Premises,108099,Service Repairs and Maintenance,06/12/2019,3676791-90029528,614.82,INTEGRATED UTILITY SERVICES LTD.*
Regeneration and Local Services,Technical Services CM0300,Third Party Payments,430100,Rendered by Private Contractors,06/12/2019,3676796-23507,"46,122.07",JACK COUPE & SONS LTD T/A COUPE LINE.
Regeneration and Local Services,Technical Services CM0300,Construction work A908,908105,Construction work,06/12/2019,3676796-23610,939.60,JACK COUPE & SONS LTD T/A COUPE LINE.
Children and Young Peoples Services,Head of Education and Skills,Transport,230008,Contract Hire,06/12/2019,3676797-S045-NOVEMBER,960.00,JAY WILSON T/A BLACKS PRIVATE HIRE.
Children and Young Peoples Services,Head of Education and Skills,Transport,230008,Contract Hire,06/12/2019,3676801-29/11/19E,"2,357.52",JL EBDON. T/A DIAL-A-CAB.
Children and Young Peoples Services,Head of Education and Skills,Transport,230008,Contract Hire,06/12/2019,3676801-29/11/2019A,"1,970.00",JL EBDON. T/A DIAL-A-CAB.
Children and Young Peoples Services,Head of Education and Skills,Transport,230008,Contract Hire,06/12/2019,3676801-29/11/2019B,"2,720.00",JL EBDON. T/A DIAL-A-CAB.
Children and Young Peoples Services,Head of Education and Skills,Transport,230008,Contract Hire,06/12/2019,3676801-29/11/2019C,"2,200.60",JL EBDON. T/A DIAL-A-CAB.
Children and Young Peoples Services,Head of Education and Skills,Transport,230008,Contract Hire,06/12/2019,3676801-29/11/2019D,"1,700.00",JL EBDON. T/A DIAL-A-CAB.
Children and Young Peoples Services,Head of Education and Skills,Transport,230008,Contract Hire,06/12/2019,3676801-29/11/2019F,"2,928.00",JL EBDON. T/A DIAL-A-CAB.
Children and Young Peoples Services,Head of Education and Skills,Transport,230016,Contract Hire,06/12/2019,3676801-29/11/2019H,"2,860.00",JL EBDON. T/A DIAL-A-CAB.
Children and Young Peoples Services,Head of Education and Skills,Transport,230006,Contract Hire,06/12/2019,3676805-CORPTRAVNOV19,990.00,JOHN W CROOK T/A CORPORATE TRAVEL.
Regeneration and Local Services,Development and Housing,Premises,108099,Service Repairs and Maintenance,06/12/2019,3676806-DEMOLITIONDEC19,"19,903.42",JOHN WADE (HAULAGE) LTD.
Regeneration and Local Services,Technical Services CM0300,Supplies and Services,304221,Equipment and Materials,06/12/2019,3676808-BII305871,900.00,JT DOVE LTD.
Regeneration and Local Services,Technical Services CM0300,Supplies and Services,304221,Equipment and Materials,06/12/2019,3676808-G0I1951/D,"4,762.47",JT DOVE LTD.
Regeneration and Local Services,Technical Services CM0300,Stock A926,926900,Stock in hand-Inventory system,06/12/2019,3676808-GO11981/D,674.20,JT DOVE LTD.
Dedicated Schools Grant BG0015,DSG High Needs Block,Transport,230010,Contract Hire,06/12/2019,3676811-1038,"1,776.00",K & R TAXIS (STANLEY).
Dedicated Schools Grant BG0015,DSG High Needs Block,Transport,230010,Contract Hire,06/12/2019,3676811-1038-A,"1,568.00",K & R TAXIS (STANLEY).
Children and Young Peoples Services,Head of Education and Skills,Transport,230005,Contract Hire,06/12/2019,3676819-7767,"3,161.00",LEE`S COACHES LTD.
Adult and Health Services,Commissioning inc Supporting People,Third Party Payments,470111,Purchase of Care,06/12/2019,3676820-RINVTP/00530723,"4,308.63",LEONARD CHESHIRE DISABILITY.
Adult and Health Services,Commissioning inc Supporting People,Third Party Payments,470111,Purchase of Care,06/12/2019,3676820-RINVTP/00530729,"4,308.63",LEONARD CHESHIRE DISABILITY.
Resources BK0010,Digital and Customer Services,Supplies and Services,342051,Computers and Communications,06/12/2019,3676830-INV-10-000000494,"6,500.00",LUMI AGM UK LTD.
Dedicated Schools Grant BG0015,DSG High Needs Block,Transport,230010,Contract Hire,06/12/2019,3676831-203,"1,964.00",LUMLEY TAXIS.
Regeneration and Local Services,Technical Services CM0300,Supplies and Services,304221,Equipment and Materials,06/12/2019,3676837-Z000449629,"1,033.40",MARSHALLS MONO LTD.
Regeneration and Local Services,Development and Housing,Supplies and Services,338066,Services,06/12/2019,3676840-INV-19013,"3,500.00",MGH CARD LLP.
Regeneration and Local Services,Culture Sport and Tourism,Supplies and Services,324001,Provisions E324,06/12/2019,3676841-905562107,"1,027.01",MOLSON COORS BREWING COMPANY (UK) LTD.
Transformation and Partnerships,Partnerships & Community Engagement Div.,Premises,120021,Energy Costs,06/12/2019,3676842-TAP-12-2019-002,"5,244.10",MOON BEEVER SOLICITORS.
Adult and Health Services,Head of Adults,Transport,230005,Contract Hire,06/12/2019,3676843-EDB111-19,633.96,MR CT WALKER T/A CW TAXIS.
Children and Young Peoples Services,Head of Education and Skills,Transport,230008,Contract Hire,06/12/2019,3676843-EL111-19,"2,191.50",MR CT WALKER T/A CW TAXIS.
Children and Young Peoples Services,Head of Education and Skills,Transport,230008,Contract Hire,06/12/2019,3676843-MEAD111-19,"1,846.04",MR CT WALKER T/A CW TAXIS.
Children and Young Peoples Services,Head of Education and Skills,Transport,230008,Contract Hire,06/12/2019,3676844-M127/001,"1,897.50",MR DANIEL HUTCHINSON T/A ALPHACABS.
Children and Young Peoples Services,Head of Education and Skills,Transport,230008,Contract Hire,06/12/2019,3676845-201920193,"1,843.00",MR DOMINICK JONES T/A DJ PRIVATE HIRE.
Children and Young Peoples Services,Head of Education and Skills,Transport,230035,Contract Hire,06/12/2019,3676846-KDK/NOV19,889.60,MR IAN KELSEY T/A KDK TAXIS.
Children and Young Peoples Services,Head of Education and Skills,Transport,230007,Contract Hire,06/12/2019,3676848-119,"1,101.05",MR JOHN ALLINSON T/A AALPHA TAXIS.
Children and Young Peoples Services,Head of Education and Skills,Transport,230006,Contract Hire,06/12/2019,3676848-120,544.00,MR JOHN ALLINSON T/A AALPHA TAXIS.
Children and Young Peoples Services,Head of Education and Skills,Transport,230006,Contract Hire,06/12/2019,3676848-121,"1,125.60",MR JOHN ALLINSON T/A AALPHA TAXIS.
Dedicated Schools Grant BG0015,DSG High Needs Block,Transport,230010,Contract Hire,06/12/2019,3676851-17,"2,368.00",MR TERENCE DOUGHERTY T/A TERRYS TAXIS.
Adult and Health Services,Head of Adults,Transport,230005,Contract Hire,06/12/2019,3676858-250,"2,500.00",NEVILLE FORBES T/A FORBES TAXIS.
Resources BK0010,Legal & Democratic Services,Supplies and Services,338045,Services,06/12/2019,3676870-914675184,"1,329.95",NORTHUMBRIAN WATER LTD.
Children and Young Peoples Services,Head of Childrens Social Care,Third Party Payments,425021,Rendered by Voluntary Organisations,06/12/2019,3676874-DB/12/19,"21,428.57",NUEVAVIDA NE LTD.
Regeneration and Local Services,Technical Services CM0300,Stock A926,926900,Stock in hand-Inventory system,06/12/2019,3676883-XL248676,732.20,PARK ELECTRICAL DISTRIBUTORS LTD.
Regeneration and Local Services,Technical Services CM0300,Stock A926,926900,Stock in hand-Inventory system,06/12/2019,3676883-XL248679,"1,950.00",PARK ELECTRICAL DISTRIBUTORS LTD.
Children and Young Peoples Services,Head of Education and Skills,Transport,230006,Contract Hire,06/12/2019,3676884-88,560.00,PAUL B TAXIS.
Dedicated Schools Grant BG0015,DSG High Needs Block,Transport,230035,Contract Hire,06/12/2019,3676885-SC-502,800.00,PAUL BURRELL T/A PAUL BURRELL TAXIS.
Children and Young Peoples Services,Head of Education and Skills,Transport,230007,Contract Hire,06/12/2019,3676887-11,"1,182.50",PETER NAYLOR.
Children and Young Peoples Services,Head of Education and Skills,Transport,230007,Contract Hire,06/12/2019,3676887-9,"1,640.08",PETER NAYLOR.
Children and Young Peoples Services,Head of Education and Skills,Supplies and Services,312011,Newspapers books and periodicals E312,06/12/2019,3676889-1767213,"1,470.00",PETERS LTD.
Children and Young Peoples Services,Head of Education and Skills,Transport,230008,Contract Hire,06/12/2019,3676892-52,"1,460.94",PHILLIP BOYD T/A FILS TAXIS.
Children and Young Peoples Services,Head of Education and Skills,Transport,230008,Contract Hire,06/12/2019,3676892-52-A,511.90,PHILLIP BOYD T/A FILS TAXIS.
Children and Young Peoples Services,Head of Early Help Inclusion & Vulnerable Children.,Supplies and Services,308011,Furniture,06/12/2019,3676896-SI/63382,557.26,PINEAPPLE CONTRACTS.
Children and Young Peoples Services,Head of Early Help Inclusion & Vulnerable Children.,Supplies and Services,308011,Furniture,06/12/2019,3676896-SI/63383,"1,114.52",PINEAPPLE CONTRACTS.
Regeneration and Local Services,Culture Sport and Tourism,Construction work A908,908105,Construction work,06/12/2019,3676898-INV-2019/356,"1,900.00",POWDERHALL BRONZE LTD.
Regeneration and Local Services,Corporate Property and Land,Premises,108099,Service Repairs and Maintenance,06/12/2019,3676899-12046,"2,700.00",PREMIER CELL FIT T/A LIVEWIRE GATES & DOORS.
Regeneration and Local Services,Technical Services CM0300,Third Party Payments,430100,Rendered by Private Contractors,06/12/2019,3676900-162431,"3,501.43",PREMIER TRAFFIC MANAGEMENT LTD.
Regeneration and Local Services,Transport and Contracted Services,Fees,901002,Consultants fees 901002,06/12/2019,3676903-1766,"2,150.00",PRODAR SURVEYS LTD.
Children and Young Peoples Services,Head of Early Help Inclusion & Vulnerable Children.,Premises,108135,Service Repairs and Maintenance,06/12/2019,3676904-51453794,539.40,PROTOCOL EDUCATION LTD.
Children and Young Peoples Services,Head of Early Help Inclusion & Vulnerable Children.,Premises,108135,Service Repairs and Maintenance,06/12/2019,3676904-51453795,994.45,PROTOCOL EDUCATION LTD.
Transformation and Partnerships,Business Support,Supplies and Services,332029,Printing Stationery and Gen Off Exps,06/12/2019,3676908-17764,775.00,RADECAL SIGNS GRAPHICS & ADVERTISING.
Transformation and Partnerships,Business Support,Supplies and Services,332029,Printing Stationery and Gen Off Exps,06/12/2019,3676908-17817,"2,030.00",RADECAL SIGNS GRAPHICS & ADVERTISING.
Regeneration and Local Services,Corporate Property and Land,Third Party Payments,430100,Rendered by Private Contractors,06/12/2019,3676915-54483,"9,485.00",RJ UTILITY SERVICES LTD.
Regeneration and Local Services,Corporate Property and Land,Third Party Payments,430100,Rendered by Private Contractors,06/12/2019,3676915-54484,"1,345.00",RJ UTILITY SERVICES LTD.
Children and Young Peoples Services,Head of Childrens Social Care,Third Party Payments,425021,Rendered by Voluntary Organisations,06/12/2019,3676918-5105,"33,472.00",ROC FAMILY SUPPORT LTD.
Children and Young Peoples Services,Head of Childrens Social Care,Third Party Payments,440038,Other third party payments E440,06/12/2019,3676918-5106,550.00,ROC FAMILY SUPPORT LTD.
Children and Young Peoples Services,Head of Childrens Social Care,Third Party Payments,440038,Other third party payments E440,06/12/2019,3676918-5122,"1,086.31",ROC FAMILY SUPPORT LTD.
Dedicated Schools Grant BG0015,DSG High Needs Block,Supplies and Services,384199,Miscellaneous Expenses,06/12/2019,3676928-26,"3,720.00",SHARON HOWARD T/A SH COUNSELLING SERVICES.
Transformation and Partnerships,Business Support,Supplies and Services,332029,Printing Stationery and Gen Off Exps,06/12/2019,3676931-24832,675.00,SIMPLY STRIPES (THE SIGNMAKERS) LTD.
Children and Young Peoples Services,Childrens Services Operational Support,Supplies and Services,384199,Miscellaneous Expenses,06/12/2019,3676943-01008000908785,"1,920.00",STHREE PARTNERSHIP LLP T/A PROGRESSIVE.
Regeneration and Local Services,Technical Services CM0300,Third Party Payments,430100,Rendered by Private Contractors,06/12/2019,3676944-124796,"1,361.66",STONEGRAVE AGGREGATES LTD.
Regeneration and Local Services,Technical Services CM0300,Third Party Payments,430100,Rendered by Private Contractors,06/12/2019,3676944-125012,"1,298.70",STONEGRAVE AGGREGATES LTD.
Regeneration and Local Services,Technical Services CM0300,Third Party Payments,430100,Rendered by Private Contractors,06/12/2019,3676944-125066,"1,209.78",STONEGRAVE AGGREGATES LTD.
Regeneration and Local Services,Environmental Services,Supplies and Services,304259,Equipment and Materials,06/12/2019,3676944-125374,542.88,STONEGRAVE AGGREGATES LTD.
Regeneration and Local Services,Corporate Property and Land,Third Party Payments,430100,Rendered by Private Contractors,06/12/2019,3676947-180406,587.00,SUPATINT LTD T/A SUPATINT WINDOW FILMS & BLINDS.
Children and Young Peoples Services,Head of Early Help Inclusion & Vulnerable Children.,Employees,080025,Agency Staff,06/12/2019,3676954-2339992,"1,703.50",TEACHING PERSONNEL LTD.
Regeneration and Local Services,Technical Services CM0300,Stock A926,926900,Stock in hand-Inventory system,06/12/2019,3676963-NSIN00024841,"3,997.75",THOMAS OWEN & SONS (NEWCASTLE) LTD.
Regeneration and Local Services,Corporate Property and Land,Supplies and Services,304221,Equipment and Materials,06/12/2019,3676966-32536,"1,320.00",TOTAL PUMP SOLUTIONS LTD.
Children and Young Peoples Services,Head of Early Help Inclusion & Vulnerable Children.,Supplies and Services,308011,Furniture,06/12/2019,3676968-17996,762.00,TOUGH FURNITURE LTD.
Resources BK0010,Legal & Democratic Services,Supplies and Services,338042,Services,06/12/2019,3676970-263052/INVGM221,"5,000.00",TRINITY CHAMBERS.
Regeneration and Local Services,Transport and Contracted Services,Supplies and Services,304245,Equipment and Materials,06/12/2019,3676973-3IN/10346888,"15,219.35",TUNSTALL HEALTHCARE (UK) LTD.
Adult and Health Services,Commissioning inc Supporting People,Supplies and Services,352001,Conference Expenses,06/12/2019,3676977-91588617,700.00,UNIVERSITY OF NORTHUMBRIA.*
Regeneration and Local Services,Corporate Property and Land,Third Party Payments,430100,Rendered by Private Contractors,06/12/2019,3676987-49600,"4,165.81",WILLOWCRETE MANUFACTURING COMPANY LTD (MFG).
Children and Young Peoples Services,Head of Childrens Social Care,Third Party Payments,425021,Rendered by Voluntary Organisations,06/12/2019,3676995-05495,"24,360.00",YOUNG FOUNDATIONS LTD.
Children and Young Peoples Services,Head of Childrens Social Care,Third Party Payments,425023,Rendered by Voluntary Organisations,06/12/2019,3676995-05568,"19,680.00",YOUNG FOUNDATIONS LTD.
Children and Young Peoples Services,Head of Childrens Social Care,Third Party Payments,425021,Rendered by Voluntary Organisations,06/12/2019,3676995-05602,"19,285.71",YOUNG FOUNDATIONS LTD.
Children and Young Peoples Services,Head of Childrens Social Care,Third Party Payments,425023,Rendered by Voluntary Organisations,06/12/2019,3676995-05609,"7,242.86",YOUNG FOUNDATIONS LTD.
Children and Young Peoples Services,Head of Education and Skills,Transport,230012,Contract Hire,09/12/2019,3677031-1/11/19,"1,485.20",ABA TAXIS.
Regeneration and Local Services,Technical Services CM0300,Supplies and Services,304221,Equipment and Materials,09/12/2019,3677038-29148062,"1,354.20",AGGREGATE INDUSTRIES UK LTD.
Regeneration and Local Services,Technical Services CM0300,Supplies and Services,304221,Equipment and Materials,09/12/2019,3677038-29148063,588.04,AGGREGATE INDUSTRIES UK LTD.
Regeneration and Local Services,Technical Services CM0300,Supplies and Services,304221,Equipment and Materials,09/12/2019,3677038-29148064,612.44,AGGREGATE INDUSTRIES UK LTD.
Regeneration and Local Services,Technical Services CM0300,Supplies and Services,304221,Equipment and Materials,09/12/2019,3677038-29148065,779.36,AGGREGATE INDUSTRIES UK LTD.
Regeneration and Local Services,Technical Services CM0300,Supplies and Services,304221,Equipment and Materials,09/12/2019,3677038-29154305,"1,118.74",AGGREGATE INDUSTRIES UK LTD.
Regeneration and Local Services,Technical Services CM0300,Supplies and Services,304221,Equipment and Materials,09/12/2019,3677038-29154306,600.24,AGGREGATE INDUSTRIES UK LTD.
Regeneration and Local Services,Technical Services CM0300,Supplies and Services,304221,Equipment and Materials,09/12/2019,3677038-29154307,982.10,AGGREGATE INDUSTRIES UK LTD.
Regeneration and Local Services,Technical Services CM0300,Supplies and Services,304221,Equipment and Materials,09/12/2019,3677038-29154310,834.00,AGGREGATE INDUSTRIES UK LTD.
Regeneration and Local Services,Culture Sport and Tourism,Supplies and Services,304259,Equipment and Materials,09/12/2019,3677041-167483,"1,330.00",ALBANY OFFICE EQUIPMENT (WHOLESALE) LTD.
Regeneration and Local Services,Transport and Contracted Services,Third Party Payments,430106,Rendered by Private Contractors,09/12/2019,3677053-116154,"34,297.43",ARRIVA NORTHUMBRIA LTD.
Regeneration and Local Services,Transport and Contracted Services,Third Party Payments,430106,Rendered by Private Contractors,09/12/2019,3677053-116217,"31,525.60",ARRIVA NORTHUMBRIA LTD.
Children and Young Peoples Services,Head of Education and Skills,Transport,230009,Contract Hire,09/12/2019,3677059-290119,"2,040.00",AVALON TAXIS.
Regeneration and Local Services,Transport and Contracted Services,Supplies and Services,384540,Miscellaneous Expenses,09/12/2019,3677072-09509,"2,125.00",BISSELL DISPLAY.
Children and Young Peoples Services,Head of Education and Skills,Transport,230006,Contract Hire,09/12/2019,3677073-F780-NOV,"1,280.00",BL TAXIS.
Regeneration and Local Services,Transport and Contracted Services,Fees,901002,Consultants fees 901002,09/12/2019,3677075-SIN011381,"98,991.78",BLOOM PROCUREMENT SERVICES LTD (FORMERLY NEPRO LTD).
Adult and Health Services,Head of Adults,Transport,230005,Contract Hire,09/12/2019,3677076-27081,672.00,BLUELINE TAXIS.
Children and Young Peoples Services,Head of Education and Skills,Transport,230009,Contract Hire,09/12/2019,3677079-003/7360,800.00,BOWBURN TAXIS.
Regeneration and Local Services,Technical Services CM0300,Supplies and Services,338044,Services,09/12/2019,3677086-6017121625,"1,507.79",CAPITA PROPERTY & INFRASTRUCTURE LTD.
Regeneration and Local Services,Environmental Services,Transport,210057,Repair and Maintenance of Vehicles,09/12/2019,3677090-237402,"1,739.47",CARRS BILLINGTON AGRICULTURE.
Regeneration and Local Services,Environmental Services,Transport,210057,Repair and Maintenance of Vehicles,09/12/2019,3677090-237663,589.14,CARRS BILLINGTON AGRICULTURE.
Regeneration and Local Services,Technical Services CM0300,Supplies and Services,304221,Equipment and Materials,09/12/2019,3677096-3011836373,"1,215.24",CEMEX UK MATERIALS LTD.
Transformation and Partnerships,Partnerships & Community Engagement Div.,Cap Exp on Grants & Other Financial Assistance (REFCUS),918004,Contributions to other bodies 918004,09/12/2019,3677102-VOUCHER19NB-CHES035,"1,159.55",CHESTER MOOR VILLAGE SCHEME.
Regeneration and Local Services,Development and Housing,Supplies and Services,338035,Services,09/12/2019,3677109-805387350,805.00,CITY & GUILDS OF LONDON INSTITUTE.
Regeneration and Local Services,Technical Services CM0300,Stock A926,926004,Stock,09/12/2019,3677115-400020406,"2,904.90",CLEVELAND POTASH LTD T/A ICL FERTILIZERS.
Regeneration and Local Services,Development and Housing,Supplies and Services,332047,Printing Stationery and Gen Off Exps,09/12/2019,3677121-WEB62099,"2,205.83",COLENA LTD T/A HELIGUY.
Regeneration and Local Services,Corporate Property and Land,Third Party Payments,430100,Rendered by Private Contractors,09/12/2019,3677124-8704,"4,930.00",COMMERCIAL COVERINGS LTD.
Regeneration and Local Services,Culture Sport and Tourism,Third Party Payments,430100,Rendered by Private Contractors,09/12/2019,3677126-INV03987,876.20,COMPETITION LINE UK LTD T/A LIFESTYLE FITNESS.
Children and Young Peoples Services,Head of Education and Skills,Transport,230007,Contract Hire,09/12/2019,3677135-DCC/4003/NOV19,"1,930.80",COUNTY COACHES.
Children and Young Peoples Services,Head of Education and Skills,Transport,230003,Contract Hire,09/12/2019,3677135-DCC/4016/NOV19,"2,274.80",COUNTY COACHES.
Children and Young Peoples Services,Head of Education and Skills,Transport,230006,Contract Hire,09/12/2019,3677140-109767,"2,014.80",CROFT BUSINESS SERVICES (UK) LTD T/A CROFT TAXIS.
Children and Young Peoples Services,Head of Education and Skills,Transport,230008,Contract Hire,09/12/2019,3677144-1652,"1,330.00",DA TAXIS.
Children and Young Peoples Services,Head of Education and Skills,Transport,230012,Contract Hire,09/12/2019,3677145-376,"1,077.30",DA TRAVEL.
Regeneration and Local Services,Corporate Property and Land,Supplies and Services,304221,Equipment and Materials,09/12/2019,3677146-SIN172177,"1,521.25",DALESAUNA LTD.
Children and Young Peoples Services,Head of Education and Skills,Transport,230007,Contract Hire,09/12/2019,3677148-G003,800.00,DAVID BRIDDICK T/A COUNDONS TAXIS.
Children and Young Peoples Services,Head of Education and Skills,Transport,230007,Contract Hire,09/12/2019,3677148-H003,638.40,DAVID BRIDDICK T/A COUNDONS TAXIS.
Resources BK0010,Digital and Customer Services,Stock A926,926900,Stock in hand-Inventory system,09/12/2019,3677151-7402573617,"11,463.50",DELL COMPUTER CORPORATION LTD.
Resources BK0010,Digital and Customer Services,Stock A926,926900,Stock in hand-Inventory system,09/12/2019,3677151-7402573640,685.40,DELL COMPUTER CORPORATION LTD.
Resources BK0010,Digital and Customer Services,Vehicles Equipment Furniture and Fittings,912701,Computer equipment,09/12/2019,3677151-7402573716,"46,443.70",DELL COMPUTER CORPORATION LTD.
Regeneration and Local Services,Environmental Services,Transport,210057,Repair and Maintenance of Vehicles,09/12/2019,3677153-96381012,548.90,DENNIS EAGLE LTD T/A TERBERG MATEC (UK) LTD.
Regeneration and Local Services,Environmental Services,Transport,210057,Repair and Maintenance of Vehicles,09/12/2019,3677154-DE11265707,528.13,DENNIS EAGLE LTD.
Children and Young Peoples Services,Head of Education and Skills,Transport,230034,Contract Hire,09/12/2019,3677155-11/2019-4403COVER,750.00,DIANE GOOCH T/A COLLINS TAXIS.
Regeneration and Local Services,Environmental Services,Cap Exp on Grants & Other Financial Assistance (REFCUS),918501,Exp assets not owned by authority,09/12/2019,3677157-INV-1505,"106,968.41",DINSDALE MOORLAND SPECIALISTS.
Children and Young Peoples Services,Head of Education and Skills,Transport,230003,Contract Hire,09/12/2019,3677168-28990,"2,900.00",DURHAM CITY COACHES.
Children and Young Peoples Services,Head of Education and Skills,Transport,230007,Contract Hire,09/12/2019,3677168-28992,"2,064.20",DURHAM CITY COACHES.
Children and Young Peoples Services,Head of Education and Skills,Transport,230007,Contract Hire,09/12/2019,3677168-28993,"2,833.00",DURHAM CITY COACHES.
Children and Young Peoples Services,Head of Childrens Social Care,Supplies and Services,384199,Miscellaneous Expenses,09/12/2019,3677171-AWARDSNIGHT-6/10/2019,"1,125.00",DURHAM INDOOR BOWLING COMMUNITY ASSOCIATION LTD.
Regeneration and Local Services,Culture Sport and Tourism,Supplies and Services,384199,Miscellaneous Expenses,09/12/2019,3677174-SI-345,"3,800.00",DURHAM SCENIC WORKSHOPS LTD.
Regeneration and Local Services,Corporate Property and Land,Supplies and Services,304221,Equipment and Materials,09/12/2019,3677181-059-255218,"3,793.12",EDMUNDSON ELECTRICAL LTD.
Regeneration and Local Services,Corporate Property and Land,Supplies and Services,304221,Equipment and Materials,09/12/2019,3677181-059-255224,"1,486.20",EDMUNDSON ELECTRICAL LTD.
Regeneration and Local Services,Technical Services CM0300,Stock A926,926900,Stock in hand-Inventory system,09/12/2019,3677181-059-255256,920.00,EDMUNDSON ELECTRICAL LTD.
Regeneration and Local Services,Environmental Services,Supplies and Services,338027,Services,09/12/2019,3677185-1606-2,"14,977.50",ELEMENT ENERGY LTD.
Regeneration and Local Services,Culture Sport and Tourism,Supplies and Services,338047,Services,09/12/2019,3677188-GALA49,"3,284.39",REDACTED - PAYMENT TO INDIVIDUAL
Regeneration and Local Services,Corporate Property and Land,Supplies and Services,304221,Equipment and Materials,09/12/2019,3677189-SIN018098,"8,873.13",ENERGY CONSERVATION SOLUTIONS LTD T/A ENERGYS.
Regeneration and Local Services,Technical Services CM0300,Supplies and Services,304221,Equipment and Materials,09/12/2019,3677190-1911\100,"2,378.66",EPPLETON QUARRY PRODUCTS LTD.
Regeneration and Local Services,Technical Services CM0300,Supplies and Services,304221,Equipment and Materials,09/12/2019,3677190-1911\101,"2,689.11",EPPLETON QUARRY PRODUCTS LTD.
Children and Young Peoples Services,Head of Education and Skills,Supplies and Services,338094,Services,09/12/2019,3677193-0000000078,545.60,EXCEL ACADEMY PARTNERSHIP T/A FRAMWELLGATE SCHOOL DURHAM.
Children and Young Peoples Services,Head of Education and Skills,Transport,230008,Contract Hire,09/12/2019,3677198-011-W048,"1,504.00",FRANK ATKINSON T/A FJ MINIBUS TRAVEL.
Children and Young Peoples Services,Head of Education and Skills,Transport,230007,Contract Hire,09/12/2019,3677207-21918,"2,471.80",GARNETTS LTD (COACHES).
Children and Young Peoples Services,Head of Education and Skills,Transport,230003,Contract Hire,09/12/2019,3677207-21921-3301,"3,580.00",GARNETTS LTD (COACHES).
Children and Young Peoples Services,Head of Education and Skills,Transport,230003,Contract Hire,09/12/2019,3677207-21921-3302,"3,580.00",GARNETTS LTD (COACHES).
Children and Young Peoples Services,Head of Education and Skills,Transport,230003,Contract Hire,09/12/2019,3677207-21921-3303,"3,580.00",GARNETTS LTD (COACHES).
Children and Young Peoples Services,Head of Education and Skills,Transport,230007,Contract Hire,09/12/2019,3677207-21924,"2,831.00",GARNETTS LTD (COACHES).
Children and Young Peoples Services,Head of Education and Skills,Transport,230008,Contract Hire,09/12/2019,3677207-21926-S011,"3,180.00",GARNETTS LTD (COACHES).
Children and Young Peoples Services,Head of Education and Skills,Transport,230008,Contract Hire,09/12/2019,3677207-21926-W093,"3,480.00",GARNETTS LTD (COACHES).
Children and Young Peoples Services,Head of Education and Skills,Transport,230008,Contract Hire,09/12/2019,3677207-21926-W099,"3,700.00",GARNETTS LTD (COACHES).
Children and Young Peoples Services,Head of Education and Skills,Transport,230003,Contract Hire,09/12/2019,3677207-21937-3020,"2,736.00",GARNETTS LTD (COACHES).
Children and Young Peoples Services,Head of Education and Skills,Transport,230003,Contract Hire,09/12/2019,3677207-21937-3024,"2,261.00",GARNETTS LTD (COACHES).
Children and Young Peoples Services,Head of Education and Skills,Transport,230003,Contract Hire,09/12/2019,3677207-21937-3027,"2,413.00",GARNETTS LTD (COACHES).
Children and Young Peoples Services,Head of Education and Skills,Transport,230003,Contract Hire,09/12/2019,3677207-21937-3028,"2,641.00",GARNETTS LTD (COACHES).
Children and Young Peoples Services,Head of Education and Skills,Transport,230007,Contract Hire,09/12/2019,3677207-21937-3029,"2,717.00",GARNETTS LTD (COACHES).
Children and Young Peoples Services,Head of Education and Skills,Transport,230007,Contract Hire,09/12/2019,3677207-21937-3199,"2,584.00",GARNETTS LTD (COACHES).
Children and Young Peoples Services,Head of Education and Skills,Transport,230007,Contract Hire,09/12/2019,3677207-21938-4034,"2,510.28",GARNETTS LTD (COACHES).
Children and Young Peoples Services,Head of Education and Skills,Transport,230007,Contract Hire,09/12/2019,3677207-21938-4035,"2,313.82",GARNETTS LTD (COACHES).
Children and Young Peoples Services,Head of Education and Skills,Transport,230007,Contract Hire,09/12/2019,3677207-21938-4036,"2,510.28",GARNETTS LTD (COACHES).
Children and Young Peoples Services,Head of Education and Skills,Transport,230007,Contract Hire,09/12/2019,3677207-21938-4037,"4,628.02",GARNETTS LTD (COACHES).
Children and Young Peoples Services,Head of Education and Skills,Transport,230007,Contract Hire,09/12/2019,3677207-21938-4038,"2,313.82",GARNETTS LTD (COACHES).
Children and Young Peoples Services,Head of Education and Skills,Transport,230007,Contract Hire,09/12/2019,3677207-21969-4227,"3,401.00",GARNETTS LTD (COACHES).
Children and Young Peoples Services,Head of Education and Skills,Transport,230007,Contract Hire,09/12/2019,3677207-21969-4404,"13,604.00",GARNETTS LTD (COACHES).
Children and Young Peoples Services,Head of Education and Skills,Transport,230007,Contract Hire,09/12/2019,3677207-21970,"6,023.00",GARNETTS LTD (COACHES).
Children and Young Peoples Services,Head of Education and Skills,Transport,230003,Contract Hire,09/12/2019,3677207-21971-3004,"3,116.00",GARNETTS LTD (COACHES).
Children and Young Peoples Services,Head of Education and Skills,Transport,230003,Contract Hire,09/12/2019,3677207-21971-3005,"5,662.00",GARNETTS LTD (COACHES).
Children and Young Peoples Services,Head of Education and Skills,Transport,230003,Contract Hire,09/12/2019,3677207-21971-3008,"3,211.00",GARNETTS LTD (COACHES).
Children and Young Peoples Services,Head of Education and Skills,Transport,230003,Contract Hire,09/12/2019,3677207-21971-3203,"3,021.00",GARNETTS LTD (COACHES).
Children and Young Peoples Services,Head of Education and Skills,Transport,230003,Contract Hire,09/12/2019,3677207-21971-3223,"6,042.00",GARNETTS LTD (COACHES).
Children and Young Peoples Services,Head of Education and Skills,Transport,230003,Contract Hire,09/12/2019,3677207-21971-3262,"2,983.00",GARNETTS LTD (COACHES).
Children and Young Peoples Services,Head of Education and Skills,Transport,230003,Contract Hire,09/12/2019,3677207-21971-3333,"2,622.00",GARNETTS LTD (COACHES).
Children and Young Peoples Services,Head of Education and Skills,Transport,230007,Contract Hire,09/12/2019,3677207-21972,"3,739.01",GARNETTS LTD (COACHES).
Children and Young Peoples Services,Head of Education and Skills,Transport,230007,Contract Hire,09/12/2019,3677207-21973,"3,598.03",GARNETTS LTD (COACHES).
Children and Young Peoples Services,Head of Education and Skills,Transport,230034,Contract Hire,09/12/2019,3677208-GS003-28/11/19,"1,386.00",GARY JACKSON PRIVATE HIRE.
Children and Young Peoples Services,Head of Education and Skills,Transport,230007,Contract Hire,09/12/2019,3677208-ST003,956.08,GARY JACKSON PRIVATE HIRE.
Children and Young Peoples Services,Head of Education and Skills,Transport,230008,Contract Hire,09/12/2019,3677210-RG001,"1,850.00",GAVIN ELLIOTT T/A LOCATION TAXIS.
Dedicated Schools Grant BG0015,DSG High Needs Block,Transport,230010,Contract Hire,09/12/2019,3677215-17,"2,200.00",GERARD MCLOUGHLIN T/A GMAC TAXIS.
Children and Young Peoples Services,Head of Education and Skills,Transport,230008,Contract Hire,09/12/2019,3677215-18,660.00,GERARD MCLOUGHLIN T/A GMAC TAXIS.
Children and Young Peoples Services,Head of Education and Skills,Transport,230007,Contract Hire,09/12/2019,3677217-71696,"8,712.06",GO GATESHEAD LTD.
Regeneration and Local Services,Technical Services CM0300,Stock A926,926900,Stock in hand-Inventory system,09/12/2019,3677220-06/032500,670.70,GREENHAM TRADING LTD.
Regeneration and Local Services,Transport and Contracted Services,Supplies and Services,384540,Miscellaneous Expenses,09/12/2019,3677222-INV-0241,"3,522.00",GRM MAPPING LTD.
Adult and Health Services,Head of Adults,Supplies and Services,304259,Equipment and Materials,09/12/2019,3677225-INV0177509,510.00,GV MULTIMEDIA LTD.
Transformation and Partnerships,Partnerships & Community Engagement Div.,Supplies and Services,384871,Miscellaneous Expenses,09/12/2019,3677229-09/02,506.40,HAPPY TIMES DAYCARE LTD.
Transformation and Partnerships,Partnerships & Community Engagement Div.,Supplies and Services,384871,Miscellaneous Expenses,09/12/2019,3677229-09/03,506.40,HAPPY TIMES DAYCARE LTD.
Adult and Health Services,Public Health CC0450,Third Party Payments,460803,Contract Payments,09/12/2019,3677232-2510032315,"954,094.42",HARROGATE & DISTRICT NHS FOUNDATION TRUST.
Children and Young Peoples Services,Head of Education and Skills,Transport,230008,Contract Hire,09/12/2019,3677235-3-W041,"2,625.50",HENRY FOREMAN T/A HENRY`S TAXIS.
Children and Young Peoples Services,Head of Education and Skills,Transport,230007,Contract Hire,09/12/2019,3677238-16945,"3,798.67",HODGSONS COACH OPERATORS LTD.
Children and Young Peoples Services,Head of Education and Skills,Transport,230007,Contract Hire,09/12/2019,3677238-16946,"2,308.50",HODGSONS COACH OPERATORS LTD.
Children and Young Peoples Services,Head of Education and Skills,Transport,230007,Contract Hire,09/12/2019,3677238-16947,"3,481.37",HODGSONS COACH OPERATORS LTD.
Resources BK0010,Digital and Customer Services,Supplies and Services,304303,Equipment and Materials,09/12/2019,3677244-4615405,831.57,INSIGHT DIRECT (UK) LTD.
Resources BK0010,Digital and Customer Services,Stock A926,926900,Stock in hand-Inventory system,09/12/2019,3677244-4616534,740.00,INSIGHT DIRECT (UK) LTD.
Resources BK0010,Digital and Customer Services,Vehicles Equipment Furniture and Fittings,912701,Computer equipment,09/12/2019,3677244-4618043,628.00,INSIGHT DIRECT (UK) LTD.
Children and Young Peoples Services,Head of Education and Skills,Supplies and Services,324117,Provisions E324,09/12/2019,3677252-5442,623.80,J MORAN LTD T/A CAFFE VINCI.
Children and Young Peoples Services,Head of Education and Skills,Transport,230008,Contract Hire,09/12/2019,3677254-0729,"1,540.00",JACKSON`S TAXI.
Children and Young Peoples Services,Head of Education and Skills,Transport,230008,Contract Hire,09/12/2019,3677254-0731,"2,446.00",JACKSON`S TAXI.
Children and Young Peoples Services,Head of Education and Skills,Transport,230008,Contract Hire,09/12/2019,3677254-0732,"1,700.00",JACKSON`S TAXI.
Children and Young Peoples Services,Head of Education and Skills,Transport,230006,Contract Hire,09/12/2019,3677254-0733,"1,980.00",JACKSON`S TAXI.
Regeneration and Local Services,Technical Services CM0300,Construction work A908,908105,Construction work,09/12/2019,3677255-BL000000-018,"16,450.00",JACOBS UK LTD.
Children and Young Peoples Services,Head of Education and Skills,Transport,230034,Contract Hire,09/12/2019,3677257-1641,"1,132.02",JDS PRIVATE HIRE DURHAM.
Children and Young Peoples Services,Head of Education and Skills,Transport,230007,Contract Hire,09/12/2019,3677257-1642,"1,273.00",JDS PRIVATE HIRE DURHAM.
Dedicated Schools Grant BG0015,DSG High Needs Block,Transport,230035,Contract Hire,09/12/2019,3677257-1643,"1,200.00",JDS PRIVATE HIRE DURHAM.
Children and Young Peoples Services,Head of Education and Skills,Transport,230009,Contract Hire,09/12/2019,3677257-1644,771.21,JDS PRIVATE HIRE DURHAM.
Children and Young Peoples Services,Head of Education and Skills,Transport,230009,Contract Hire,09/12/2019,3677257-1645,"1,330.00",JDS PRIVATE HIRE DURHAM.
Children and Young Peoples Services,Head of Education and Skills,Transport,230008,Contract Hire,09/12/2019,3677257-1646,"2,181.80",JDS PRIVATE HIRE DURHAM.
Children and Young Peoples Services,Head of Education and Skills,Transport,230008,Contract Hire,09/12/2019,3677257-1647,"2,600.00",JDS PRIVATE HIRE DURHAM.
Children and Young Peoples Services,Head of Education and Skills,Transport,230012,Contract Hire,09/12/2019,3677257-1650,"1,421.60",JDS PRIVATE HIRE DURHAM.
Children and Young Peoples Services,Head of Education and Skills,Transport,230008,Contract Hire,09/12/2019,3677257-1651,"1,612.60",JDS PRIVATE HIRE DURHAM.
Children and Young Peoples Services,Head of Education and Skills,Transport,230008,Contract Hire,09/12/2019,3677257-1652,"1,778.40",JDS PRIVATE HIRE DURHAM.
Children and Young Peoples Services,Head of Education and Skills,Transport,230008,Contract Hire,09/12/2019,3677257-1653,"1,613.00",JDS PRIVATE HIRE DURHAM.
Children and Young Peoples Services,Head of Education and Skills,Transport,230008,Contract Hire,09/12/2019,3677257-1654,"1,605.00",JDS PRIVATE HIRE DURHAM.
Children and Young Peoples Services,Head of Education and Skills,Transport,230008,Contract Hire,09/12/2019,3677257-1655,"1,964.60",JDS PRIVATE HIRE DURHAM.
Children and Young Peoples Services,Head of Education and Skills,Transport,230008,Contract Hire,09/12/2019,3677257-1656,"1,440.00",JDS PRIVATE HIRE DURHAM.
Children and Young Peoples Services,Head of Education and Skills,Transport,230008,Contract Hire,09/12/2019,3677257-1657,"1,613.00",JDS PRIVATE HIRE DURHAM.
Children and Young Peoples Services,Head of Education and Skills,Transport,230008,Contract Hire,09/12/2019,3677257-1658,"1,360.00",JDS PRIVATE HIRE DURHAM.
Children and Young Peoples Services,Head of Education and Skills,Transport,230006,Contract Hire,09/12/2019,3677257-1659,"2,176.00",JDS PRIVATE HIRE DURHAM.
Children and Young Peoples Services,Head of Education and Skills,Transport,230008,Contract Hire,09/12/2019,3677257-1661,"3,259.60",JDS PRIVATE HIRE DURHAM.
Children and Young Peoples Services,Head of Education and Skills,Transport,230008,Contract Hire,09/12/2019,3677257-1662,"2,509.05",JDS PRIVATE HIRE DURHAM.
Children and Young Peoples Services,Head of Education and Skills,Transport,230008,Contract Hire,09/12/2019,3677257-1663,"3,120.00",JDS PRIVATE HIRE DURHAM.
Children and Young Peoples Services,Head of Education and Skills,Transport,230008,Contract Hire,09/12/2019,3677258-2943,"1,820.60",JEFF ANDERSON COACHES LTD.
Children and Young Peoples Services,Head of Education and Skills,Transport,230008,Contract Hire,09/12/2019,3677258-2944,"1,717.80",JEFF ANDERSON COACHES LTD.
Children and Young Peoples Services,Head of Education and Skills,Transport,230008,Contract Hire,09/12/2019,3677258-2945,"1,929.80",JEFF ANDERSON COACHES LTD.
Resources BK0010,People & Talent Management,Supplies and Services,304999,Equipment and Materials,09/12/2019,3677263-14058,"1,571.00",JPS SYSTEMS N E LTD.
Regeneration and Local Services,Technical Services CM0300,Supplies and Services,304221,Equipment and Materials,09/12/2019,3677265-CTI21452,840.49,JT DOVE LTD.
Children and Young Peoples Services,Head of Early Help Inclusion & Vulnerable Children.,Transport,230007,Contract Hire,09/12/2019,3677272-011119,"1,701.64",KEVIN EDMUNDSON.
Regeneration and Local Services,Corporate Property and Land,Construction work A908,908105,Construction work,09/12/2019,3677274-10003625,"699,172.28",KIER PROPERTY DEVELOPMENTS LTD.
Regeneration and Local Services,Environmental Services,Stock A926,926900,Stock in hand-Inventory system,09/12/2019,3677275-SI02-0250109,846.35,KILLGERM CHEMICALS LTD.
Children and Young Peoples Services,Head of Education and Skills,Transport,230006,Contract Hire,09/12/2019,3677282-4D/F785,"3,020.00",L & R PRIVATE HIRE.
Regeneration and Local Services,Environmental Services,Transport,230005,Contract Hire,09/12/2019,3677285-4495379,"1,900.00",LEEDS COMMERCIAL LTD.
Children and Young Peoples Services,Head of Education and Skills,Transport,230007,Contract Hire,09/12/2019,3677290-4148,646.00,LINCAB TAXIS.
Children and Young Peoples Services,Head of Education and Skills,Transport,230007,Contract Hire,09/12/2019,3677290-4152,"2,007.00",LINCAB TAXIS.
Children and Young Peoples Services,Head of Education and Skills,Transport,230034,Contract Hire,09/12/2019,3677290-4155,"1,247.80",LINCAB TAXIS.
Children and Young Peoples Services,Head of Education and Skills,Transport,230009,Contract Hire,09/12/2019,3677290-4157,646.00,LINCAB TAXIS.
Resources BK0010,Finance & Transactional Services,Supplies and Services,384180,Miscellaneous Expenses,09/12/2019,3677297-0348767,"4,003.77",LOOMIS UK LTD.
Resources BK0010,Finance & Transactional Services,Supplies and Services,384180,Miscellaneous Expenses,09/12/2019,3677297-0352541,650.53,LOOMIS UK LTD.
Regeneration and Local Services,Culture Sport and Tourism,Construction work A908,908105,Construction work,09/12/2019,3677298-99969,660.00,LUCION ENVIRONMENTAL LLP LTD.
Children and Young Peoples Services,Head of Education and Skills,Construction work A908,908105,Construction work,09/12/2019,3677298-99981,880.00,LUCION ENVIRONMENTAL LLP LTD.
Resources BK0010,Digital and Customer Services,Supplies and Services,344137,Telephones,09/12/2019,3677300-12414722,"60,185.21",MAINTEL EUROPE LTD.
Children and Young Peoples Services,Head of Education and Skills,Supplies and Services,338027,Services,09/12/2019,3677313-DCC3005,"1,710.00",MIKE REDSHAW EDUCATION CONSULTANT.
Children and Young Peoples Services,Head of Childrens Social Care,Third Party Payments,440038,Other third party payments E440,09/12/2019,3677317-MOV-043,840.40,MOVING ON (DURHAM) LTD..
Children and Young Peoples Services,Head of Education and Skills,Transport,230008,Contract Hire,09/12/2019,3677318-DT411-19,"1,206.12",MR CT WALKER T/A CW TAXIS.
Children and Young Peoples Services,Head of Education and Skills,Transport,230008,Contract Hire,09/12/2019,3677318-EL211-19,"2,489.80",MR CT WALKER T/A CW TAXIS.
Children and Young Peoples Services,Head of Education and Skills,Transport,230007,Contract Hire,09/12/2019,3677319-165,760.00,MR DAVID CULLEN T/A JED`S TAXIS.
Children and Young Peoples Services,Head of Education and Skills,Transport,230006,Contract Hire,09/12/2019,3677319-167,504.00,MR DAVID CULLEN T/A JED`S TAXIS.
Children and Young Peoples Services,Head of Education and Skills,Transport,230012,Contract Hire,09/12/2019,3677320-E136-NOV,962.20,MR DEREK HENDERSON.
Adult and Health Services,Head of Adults,Transport,230005,Contract Hire,09/12/2019,3677321-201943,689.52,MR JR FORT T/A JRF TAXIS.
Adult and Health Services,Head of Adults,Transport,230005,Contract Hire,09/12/2019,3677321-201944,607.95,MR JR FORT T/A JRF TAXIS.
Children and Young Peoples Services,Childrens Services Operational Support,Supplies and Services,338089,Services,09/12/2019,3677323-DPSW151943,"1,758.00",MRS A GLADMAN T/A SAFEGUARDING CHILDREN TRAINING & CONSULTANCY LTD.
Regeneration and Local Services,Transport and Contracted Services,Third Party Payments,430108,Rendered by Private Contractors,09/12/2019,3677328-1800009898327,"54,993.46",NEWCASTLE UPON TYNE CITY COUNCIL.
Resources BK0010,Legal & Democratic Services,Supplies and Services,338101,Services,09/12/2019,3677329-H0326770,"6,265.00",NEWCASTLE UPON TYNE HOSPITALS NHS FOUNDATION TRUST.
Regeneration and Local Services,Development and Housing,Supplies and Services,336005,Advertising E336,09/12/2019,3677330-31566329,885.07,NEWSQUEST (YORKSHIRE & NORTH EAST) LTD.
Adult and Health Services,Public Health CC0450,Supplies and Services,384155,Miscellaneous Expenses,09/12/2019,3677331-1000062498,"73,950.37",NHS BUSINESS SERVICES AUTHORITY (NHSBSA).
Dedicated Schools Grant BG0015,DSG High Needs Block,Third Party Payments,425005,Rendered by Voluntary Organisations,09/12/2019,3677335-0000050030,"21,540.31",NORTH EAST AUTISM SOCIETY.
Children and Young Peoples Services,Head of Education and Skills,Transport,230007,Contract Hire,09/12/2019,3677336-INV-6213,"1,980.00",NORTH EAST COACHWAYS LTD.
Resources BK0010,Legal & Democratic Services,Supplies and Services,384199,Miscellaneous Expenses,09/12/2019,3677341-23119200,"6,998.17",NORTH TYNESIDE COUNCIL.
Regeneration and Local Services,Business Durham CL0850,Construction work A908,908201,Capital - Public Utilities - Electricity Services,09/12/2019,3677342-DI20331068,"117,719.61",NORTHERN POWERGRID (NORTHEAST) LTD.
Regeneration and Local Services,Business Durham CL0850,Premises,120009,Energy Costs,09/12/2019,3677345-67400366,612.69,OPUS ENERGY LTD.
Regeneration and Local Services,Technical Services CM0300,Stock A926,926900,Stock in hand-Inventory system,09/12/2019,3677351-XL248758,653.76,PARK ELECTRICAL DISTRIBUTORS LTD.
Regeneration and Local Services,Technical Services CM0300,Stock A926,926900,Stock in hand-Inventory system,09/12/2019,3677351-XL248811,"1,540.86",PARK ELECTRICAL DISTRIBUTORS LTD.
Regeneration and Local Services,Technical Services CM0300,Stock A926,926900,Stock in hand-Inventory system,09/12/2019,3677351-XL248812,821.00,PARK ELECTRICAL DISTRIBUTORS LTD.
Children and Young Peoples Services,Head of Education and Skills,Transport,230006,Contract Hire,09/12/2019,3677355-A039-NOV,960.00,PAUL GREEN T/A GREEN TAXIS.
Children and Young Peoples Services,Head of Education and Skills,Transport,230007,Contract Hire,09/12/2019,3677361-12,"1,056.40",PETER NAYLOR.
Children and Young Peoples Services,Head of Education and Skills,Transport,230034,Contract Hire,09/12/2019,3677362-637,"1,667.20",PETERLEE EXECUTIVE CARS.
Regeneration and Local Services,Technical Services CM0300,Third Party Payments,430100,Rendered by Private Contractors,09/12/2019,3677372-162428,"8,967.94",PREMIER TRAFFIC MANAGEMENT LTD.
Regeneration and Local Services,Environmental Services,Supplies and Services,304221,Equipment and Materials,09/12/2019,3677374-20366,"1,926.38",PROBRUSH T/A NORTHERN MUNICIPAL SPARES LTD.
Regeneration and Local Services,Technical Services CM0300,Third Party Payments,430100,Rendered by Private Contractors,09/12/2019,3677375-127204,550.00,PROTECTOR SECURITY GROUP LTD.
Regeneration and Local Services,Technical Services CM0300,Supplies and Services,304221,Equipment and Materials,09/12/2019,3677375-127205,550.00,PROTECTOR SECURITY GROUP LTD.
Regeneration and Local Services,Technical Services CM0300,Supplies and Services,304221,Equipment and Materials,09/12/2019,3677375-127307,"2,115.12",PROTECTOR SECURITY GROUP LTD.
Regeneration and Local Services,Technical Services CM0300,Third Party Payments,430100,Rendered by Private Contractors,09/12/2019,3677377-12269,"3,094.96",QUANTUM POWER CONNECTIONS LTD.
Regeneration and Local Services,Technical Services CM0300,Third Party Payments,430100,Rendered by Private Contractors,09/12/2019,3677377-12270,"1,547.48",QUANTUM POWER CONNECTIONS LTD.
Children and Young Peoples Services,Head of Education and Skills,Supplies and Services,384199,Miscellaneous Expenses,09/12/2019,3677380-INV-0090,"3,875.00",RAW DIGITAL TRAINING LTD.
Regeneration and Local Services,Business Durham CL0850,Premises,108099,Service Repairs and Maintenance,09/12/2019,3677384-INV-2423,"1,120.00",REDWOOD CABLE PROJECTS LTD.
Regeneration and Local Services,Technical Services CM0300,Stock A926,926900,Stock in hand-Inventory system,09/12/2019,3677408-20201000002188,818.09,SCARAB SWEEPERS LTD.
Regeneration and Local Services,Technical Services CM0300,Third Party Payments,460224,Contract Payments,09/12/2019,3677412-20632,"188,023.54",SEYMOUR (CIVIL ENGINEERING CONTRACTORS) LTD.
Children and Young Peoples Services,Head of Education and Skills,Transport,230007,Contract Hire,09/12/2019,3677414-5275/11,"2,200.00",SHAUN MILLS T/A ASM TRAVEL.
Regeneration and Local Services,Culture Sport and Tourism,Supplies and Services,324117,Provisions E324,09/12/2019,3677421-0000064484,977.90,SNOWSHOCK LTD.
Regeneration and Local Services,Technical Services CM0300,Third Party Payments,430100,Rendered by Private Contractors,09/12/2019,3677431-125155,"1,298.64",STONEGRAVE AGGREGATES LTD.
Regeneration and Local Services,Technical Services CM0300,Third Party Payments,430100,Rendered by Private Contractors,09/12/2019,3677431-125341,"1,298.74",STONEGRAVE AGGREGATES LTD.
Regeneration and Local Services,Technical Services CM0300,Third Party Payments,430100,Rendered by Private Contractors,09/12/2019,3677431-125407,"1,325.20",STONEGRAVE AGGREGATES LTD.
Regeneration and Local Services,Technical Services CM0300,Construction work A908,908105,Construction work,09/12/2019,3677436-90014151,"3,694.94",SWARCO TRAFFIC LTD.
Regeneration and Local Services,Transport and Contracted Services,Third Party Payments,430108,Rendered by Private Contractors,09/12/2019,3677436-90014177,821.99,SWARCO TRAFFIC LTD.
Resources BK0010,Finance & Transactional Services,Supplies and Services,342033,Computers and Communications,09/12/2019,3677439-131902,"4,348.60",SWITCHSHOP LTD.
Resources BK0010,Finance & Transactional Services,Supplies and Services,342033,Computers and Communications,09/12/2019,3677439-131903,"4,348.60",SWITCHSHOP LTD.
Resources BK0010,Finance & Transactional Services,Supplies and Services,342033,Computers and Communications,09/12/2019,3677439-131904,"1,739.44",SWITCHSHOP LTD.
Adult and Health Services,Commissioning inc Supporting People,Supplies and Services,342225,Computers and Communications,09/12/2019,3677439-131908,"3,016.20",SWITCHSHOP LTD.
Regeneration and Local Services,Technical Services CM0300,Supplies and Services,304221,Equipment and Materials,09/12/2019,3677444-9041111150,616.25,TARMAC TRADING LTD.
Regeneration and Local Services,Culture Sport and Tourism,Third Party Payments,430131,Rendered by Private Contractors,09/12/2019,3677453-TT/20193,580.00,TERESA DONNELLAN T/A T TRAINING.
Children and Young Peoples Services,Head of Education and Skills,Supplies and Services,384199,Miscellaneous Expenses,09/12/2019,3677462-RITHIR/00015149,"2,495.65",THIRTEEN HOUSING GROUP LTD.
Children and Young Peoples Services,Head of Education and Skills,Supplies and Services,384199,Miscellaneous Expenses,09/12/2019,3677462-RITHIR/00015150,"1,494.26",THIRTEEN HOUSING GROUP LTD.
Regeneration and Local Services,Environmental Services,Supplies and Services,328041,Clothing uniforms and laundry E328,09/12/2019,3677463-NSIN00024933,546.00,THOMAS OWEN & SONS (NEWCASTLE) LTD.
Regeneration and Local Services,Environmental Services,Supplies and Services,304221,Equipment and Materials,09/12/2019,3677463-NSIN00025029,611.23,THOMAS OWEN & SONS (NEWCASTLE) LTD.
Regeneration and Local Services,Environmental Services,Supplies and Services,304221,Equipment and Materials,09/12/2019,3677463-NSIN00025030,"1,401.39",THOMAS OWEN & SONS (NEWCASTLE) LTD.
Regeneration and Local Services,Technical Services CM0300,Stock A926,926900,Stock in hand-Inventory system,09/12/2019,3677465-102785,"1,125.00",TOTAL RENTAL SOLUTIONS.
Regeneration and Local Services,Environmental Services,Transport,230005,Contract Hire,09/12/2019,3677468-20561,975.00,TRASH UK LTD.
Regeneration and Local Services,Environmental Services,Transport,230005,Contract Hire,09/12/2019,3677468-20593,975.00,TRASH UK LTD.
Regeneration and Local Services,Environmental Services,Supplies and Services,342215,Computers and Communications,09/12/2019,3677478-44124,"3,405.55",UK TELEMATICS LTD.
Regeneration and Local Services,Technical Services CM0300,Third Party Payments,430127,Rendered by Private Contractors,09/12/2019,3677487-47442,546.00,W MARLEY AGRICULTURAL CONTRACTORS LTD.
Children and Young Peoples Services,Head of Education and Skills,Transport,230006,Contract Hire,09/12/2019,3677488-F702-NOV,"1,453.50",WAINE SANDERSON T/A 1A CAB.
Children and Young Peoples Services,Head of Childrens Social Care,Third Party Payments,425041,Rendered by Voluntary Organisations,09/12/2019,3677490-10242262,"14,333.00",WARWICKSHIRE COUNTY COUNCIL.
Regeneration and Local Services,Culture Sport and Tourism,Supplies and Services,304259,Equipment and Materials,09/12/2019,3677307-SIN064466,715.75,WF EDUCATION GROUP LTD T/A MAUDESPORT LTD.
Regeneration and Local Services,Technical Services CM0300,Supplies and Services,304221,Equipment and Materials,09/12/2019,3677492-49592,"3,088.50",WILLOWCRETE MANUFACTURING COMPANY LTD (MFG).
Regeneration and Local Services,Technical Services CM0300,Stock A926,926900,Stock in hand-Inventory system,09/12/2019,3677493-64482548,834.48,WOLSELEY UK LTD.
Regeneration and Local Services,Technical Services CM0300,Third Party Payments,430100,Rendered by Private Contractors,09/12/2019,3677500-145335872,"14,725.00",ZG LIGHTING (UK) LTD.
Regeneration and Local Services,Culture Sport and Tourism,Supplies and Services,304337,Equipment and Materials,09/12/2019,3677502-I-0623297,640.53,ZOGGS INTERNATIONAL LTD.
Regeneration and Local Services,Culture Sport and Tourism,Supplies and Services,304337,Equipment and Materials,09/12/2019,3677502-I-0623298,790.35,ZOGGS INTERNATIONAL LTD.
Regeneration and Local Services,Culture Sport and Tourism,Supplies and Services,304337,Equipment and Materials,09/12/2019,3677502-I-0623305,"1,065.03",ZOGGS INTERNATIONAL LTD.
Children and Young Peoples Services,Head of Education and Skills,Supplies and Services,342055,Computers and Communications,10/12/2019,3678249-730002,"5,280.00",ACCESS UK LTD.
Dedicated Schools Grant BG0015,DSG High Needs Block,Central Support and Other Recharges,689988,Unclassified E690,10/12/2019,3678250-NOVEMBER2019TOPUP,"3,207.34",ACRE RIGG ACADEMY.
Resources BK0010,Legal & Democratic Services,Supplies and Services,340001,Postages E340,10/12/2019,3678252-PSI0114063,"2,545.98",ADARE SEC LTD.
Dedicated Schools Grant BG0015,DSG High Needs Block,Central Support and Other Recharges,689988,Unclassified E690,10/12/2019,3678253-NOVEMBER2019TOPUP,"2,780.38",ADVANCE LEARNING PARTNERSHIP.
Regeneration and Local Services,Technical Services CM0300,Supplies and Services,304221,Equipment and Materials,10/12/2019,3678256-29154308,991.00,AGGREGATE INDUSTRIES UK LTD.
Regeneration and Local Services,Technical Services CM0300,Supplies and Services,304221,Equipment and Materials,10/12/2019,3678256-29161302,990.00,AGGREGATE INDUSTRIES UK LTD.
Children and Young Peoples Services,Head of Education and Skills,Transport,230006,Contract Hire,10/12/2019,3678260-3-F805NOV,765.00,ANDREW ROBSON`S TAXI.
Regeneration and Local Services,Environmental Services,Transport,210057,Repair and Maintenance of Vehicles,10/12/2019,3678273-35173161,554.05,BELL TRUCK SALES LTD T/A BELL TRUCK & VAN.
Regeneration and Local Services,Transport and Contracted Services,Supplies and Services,304245,Equipment and Materials,10/12/2019,3678274-DHP0069,"1,873.00",BERNICIA GROUP LTD.
Children and Young Peoples Services,Head of Education and Skills,Transfer Payments,510025,School Children,10/12/2019,3678279-NOVEMBER2019TOPUP,"2,694.28",BLUE SKY CHILDCARE.
Children and Young Peoples Services,Head of Education and Skills,Transport,230008,Contract Hire,10/12/2019,3678281-7096,"3,122.40",BOBBY DOVE PRIVATE HIRE.
Children and Young Peoples Services,Head of Education and Skills,Transfer Payments,510025,School Children,10/12/2019,3678285-NOVEMBER2019TOPUP,808.28,BRIGHT STAR NURSERY.
Children and Young Peoples Services,Head of Education and Skills,Transfer Payments,510027,School Children,10/12/2019,3678287-NOVEMBER2019TOPUP1,"2,155.42",BUDDIES CHILDCARE CENTRE.
Children and Young Peoples Services,Head of Education and Skills,Transfer Payments,510027,School Children,10/12/2019,3678287-NOVEMBER2019TOPUP2,"3,233.13",BUDDIES CHILDCARE CENTRE.
Children and Young Peoples Services,Head of Education and Skills,Transfer Payments,510027,School Children,10/12/2019,3678288-NOVEMBER2019TOPUP1,"2,424.85",BUSY BEARS LTD.
Children and Young Peoples Services,Head of Education and Skills,Transfer Payments,510025,School Children,10/12/2019,3678288-NOVEMBER2019TOPUP2,"5,388.56",BUSY BEARS LTD.
Children and Young Peoples Services,Head of Education and Skills,Transfer Payments,510025,School Children,10/12/2019,3678289-NOVEMBER2019TOPUP,"2,694.28",BUSY BEES (DURHAM) LTD.
Children and Young Peoples Services,Head of Education and Skills,Transfer Payments,510025,School Children,10/12/2019,3678295-NOVEMBER2019TOPUP,"2,303.51",CASTLE KINDERGARTEN LTD.
Children and Young Peoples Services,Head of Education and Skills,Transfer Payments,510026,School Children,10/12/2019,3678296-NOVEMBER2019TOPUP1,"1,077.71",CASTLE VIEW PRIVATE DAY NURSERY LTD.
Children and Young Peoples Services,Head of Education and Skills,Transfer Payments,510025,School Children,10/12/2019,3678296-NOVEMBER2019TOPUP2,"2,694.28",CASTLE VIEW PRIVATE DAY NURSERY LTD.
Regeneration and Local Services,Environmental Services,Transport,210057,Repair and Maintenance of Vehicles,10/12/2019,3678302-359152,"1,099.01",CHATFIELDS T/A EVANS HALSHAW.
Dedicated Schools Grant BG0015,DSG High Needs Block,Central Support and Other Recharges,689989,Unclassified E690,10/12/2019,3678306-NOVEMBER2019TOPUP,"3,729.46",CHILTON ACADEMY.
Dedicated Schools Grant BG0015,DSG High Needs Block,Central Support and Other Recharges,689988,Unclassified E690,10/12/2019,3678312-NOVEMBER2019TOPUP1,"4,053.38",CLEVES CROSS LEARNING TRUST T/A ROSA STREET PRIMARY SCHOOL.
Dedicated Schools Grant BG0015,DSG High Needs Block,Central Support and Other Recharges,689989,Unclassified E690,10/12/2019,3678312-NOVEMBER2019TOPUP2,"2,649.27",CLEVES CROSS LEARNING TRUST T/A ROSA STREET PRIMARY SCHOOL.
Dedicated Schools Grant BG0015,DSG High Needs Block,Central Support and Other Recharges,689995,Unclassified E690,10/12/2019,3678312-NOVEMBER2019TOPUP3,"6,896.91",CLEVES CROSS LEARNING TRUST T/A ROSA STREET PRIMARY SCHOOL.
Dedicated Schools Grant BG0015,DSG High Needs Block,Central Support and Other Recharges,689988,Unclassified E690,10/12/2019,3678313-NOVEMBER2019TOPUP1,"1,872.02",CLEVES CROSS LEARNING TRUST.
Dedicated Schools Grant BG0015,DSG High Needs Block,Central Support and Other Recharges,689989,Unclassified E690,10/12/2019,3678313-NOVEMBER2019TOPUP2,"1,321.63",CLEVES CROSS LEARNING TRUST.
Children and Young Peoples Services,Head of Education and Skills,Transfer Payments,510025,School Children,10/12/2019,3678313-NOVEMBER2019TOPUP3,950.70,CLEVES CROSS LEARNING TRUST.
Children and Young Peoples Services,Head of Education and Skills,Transfer Payments,510027,School Children,10/12/2019,3678313-NOVEMBER2019TOPUP4,"1,901.39",CLEVES CROSS LEARNING TRUST.
Regeneration and Local Services,Culture Sport and Tourism,Supplies and Services,384199,Miscellaneous Expenses,10/12/2019,3678315-GALA10-04/12/19,600.00,REDACTED - PAYMENT TO INDIVIDUAL
Children and Young Peoples Services,Head of Education and Skills,Transfer Payments,510025,School Children,10/12/2019,3678317-NOVEMBER2019TOPUP,"2,694.28",CORECARE FISHBURN LTD.
Children and Young Peoples Services,Head of Education and Skills,Transfer Payments,510025,School Children,10/12/2019,3678318-NOVEMBER2019TOPUP,"2,836.08",COUNDON & LEEHOLME EARLY YEARS CENTRE LTD.
Children and Young Peoples Services,Head of Education and Skills,Transfer Payments,510026,School Children,10/12/2019,3678321-NOVEMBER2019TOPUP,"1,347.14",CRAGHEAD DEVELOPMENT TRUST.
Children and Young Peoples Services,Head of Education and Skills,Transfer Payments,510026,School Children,10/12/2019,3678327-NOVEMBER2019TOPUP1,"2,694.28",DAYPARK LTD T/A YELLOW WELLIES.
Children and Young Peoples Services,Head of Education and Skills,Transfer Payments,510025,School Children,10/12/2019,3678327-NOVEMBER2019TOPUP2,"1,350.28",DAYPARK LTD T/A YELLOW WELLIES.
Children and Young Peoples Services,Head of Education and Skills,Transfer Payments,510027,School Children,10/12/2019,3678328-NOVEMBER2019TOPUP1,"2,424.85",DAYPARK LTD T/A YELLOW WELLIES.
Children and Young Peoples Services,Head of Education and Skills,Transfer Payments,510025,School Children,10/12/2019,3678328-NOVEMBER2019TOPUP2,"2,424.85",DAYPARK LTD T/A YELLOW WELLIES.
Dedicated Schools Grant BG0015,DSG High Needs Block,Central Support and Other Recharges,689989,Unclassified E690,10/12/2019,3678330-NOVEMBER2019TOPUP,554.54,DENE HOUSE PRIMARY SCHOOL (ACADEMY).
Dedicated Schools Grant BG0015,DSG High Needs Block,Central Support and Other Recharges,689988,Unclassified E690,10/12/2019,3678330-NOVEMBER2019TOPUP1,"8,359.76",DENE HOUSE PRIMARY SCHOOL (ACADEMY).
Dedicated Schools Grant BG0015,DSG High Needs Block,Central Support and Other Recharges,689995,Unclassified E690,10/12/2019,3678330-NOVEMBER2019TOPUP2,"4,051.55",DENE HOUSE PRIMARY SCHOOL (ACADEMY).
Regeneration and Local Services,Environmental Services,Transport,210057,Repair and Maintenance of Vehicles,10/12/2019,3678331-96380831,744.53,DENNIS EAGLE LTD T/A TERBERG MATEC (UK) LTD.
Regeneration and Local Services,Environmental Services,Stock A926,926004,Stock,10/12/2019,3678331-96381011,"1,050.26",DENNIS EAGLE LTD T/A TERBERG MATEC (UK) LTD.
Regeneration and Local Services,Environmental Services,Transport,210057,Repair and Maintenance of Vehicles,10/12/2019,3678332-DE11264592,611.50,DENNIS EAGLE LTD.
Regeneration and Local Services,Environmental Services,Third Party Payments,430101,Rendered by Private Contractors,10/12/2019,3678334-IV1205361,"1,578.67",DIRECT TYRE MANAGEMENT LTD (DTM).
Resources BK0010,Legal & Democratic Services,Supplies and Services,338105,Services,10/12/2019,3678339-FF24619HMC,500.00,DR JENNIFER BOLTON.
Regeneration and Local Services,Environmental Services,Supplies and Services,384974,Miscellaneous Expenses,10/12/2019,3678340-NEI-EXP-12-2019-001,"40,000.00",DRIVER & VEHICLE STANDARDS AGENCY (DVSA).
Regeneration and Local Services,Culture Sport and Tourism,Supplies and Services,338047,Services,10/12/2019,3678343-6/19,"1,980.45",DURHAM DRAMATIC SOCIETY.
Dedicated Schools Grant BG0015,DSG High Needs Block,Central Support and Other Recharges,689988,Unclassified E690,10/12/2019,3678344-NOVEMBER2019TOPUP,"2,121.08",DURHAM MARTYRS MULTI ACADEMY TRUST T/A ST LEONARD`S CATHOLIC SCHOOL.
Children and Young Peoples Services,Head of Education and Skills,Transfer Payments,510026,School Children,10/12/2019,3678347-NOVEMBER2019TOPUP1,"2,485.74",EARLY LEARNERS PRIVATE DAY NURSERY.
Children and Young Peoples Services,Head of Education and Skills,Transfer Payments,510027,School Children,10/12/2019,3678347-NOVEMBER2019TOPUP2,638.61,EARLY LEARNERS PRIVATE DAY NURSERY.
Regeneration and Local Services,Culture Sport and Tourism,Supplies and Services,384700,Miscellaneous Expenses,10/12/2019,3678348-2007,"3,240.00",EAST DURHAM LIFE LTD.
Children and Young Peoples Services,Head of Education and Skills,Transfer Payments,510025,School Children,10/12/2019,3678349-NOVEMBER2019TOPUP,"2,118.94",EDEN GARDEN NURSERY.
Dedicated Schools Grant BG0015,DSG High Needs Block,Supplies and Services,384906,Miscellaneous Expenses,10/12/2019,3678350-CAS-12-2019-046,"17,582.00",EDEN LEARNING TRUST T/A WOODHAM ACADEMY.
Children and Young Peoples Services,Head of Education and Skills,Transfer Payments,510026,School Children,10/12/2019,3678356-NOVEMBER2019TOPUP1,720.93,EMERALDS LITTLE GEMS DAYCARE LTD.
Children and Young Peoples Services,Head of Education and Skills,Transfer Payments,510027,School Children,10/12/2019,3678356-NOVEMBER2019TOPUP2,"6,196.84",EMERALDS LITTLE GEMS DAYCARE LTD.
Children and Young Peoples Services,Head of Education and Skills,Transfer Payments,510025,School Children,10/12/2019,3678356-NOVEMBER2019TOPUP3,851.47,EMERALDS LITTLE GEMS DAYCARE LTD.
Children and Young Peoples Services,Head of Education and Skills,Transfer Payments,510026,School Children,10/12/2019,3678357-NOVEMBER2019TOPUP1,"1,792.58",EMERALDS LITTLE GEMS DAYCARE LTD.
Children and Young Peoples Services,Head of Education and Skills,Transfer Payments,510026,School Children,10/12/2019,3678357-NOVEMBER2019TOPUP2,"3,233.13",EMERALDS LITTLE GEMS DAYCARE LTD.
Regeneration and Local Services,Culture Sport and Tourism,Supplies and Services,338047,Services,10/12/2019,3678359-4366,"4,074.17",ENGLISH TOURING OPERA LTD.
Regeneration and Local Services,Culture Sport and Tourism,Supplies and Services,338047,Services,10/12/2019,3678359-4367,552.00,ENGLISH TOURING OPERA LTD.
Regeneration and Local Services,Culture Sport and Tourism,Supplies and Services,338047,Services,10/12/2019,3678360-20194165LB,"30,000.00",ENTERTAINMENT UNLIMITED.
Dedicated Schools Grant BG0015,DSG High Needs Block,Central Support and Other Recharges,689988,Unclassified E690,10/12/2019,3678364-NOVEMBER2019TOPUP,"10,386.26",EXCEL ACADEMY PARTNERSHIP T/A FRAMWELLGATE SCHOOL DURHAM.
Children and Young Peoples Services,Head of Education and Skills,Transfer Payments,510025,School Children,10/12/2019,3678365-NOVEMBER2019TOPUP,"4,310.85",EXPLORERS DAY CARE.
Regeneration and Local Services,Culture Sport and Tourism,Fees,901002,Consultants fees 901002,10/12/2019,3678367-131459/03,795.00,FAIRHURST (CONSULTING ENGINEERS).
Regeneration and Local Services,Corporate Property and Land,Supplies and Services,338027,Services,10/12/2019,3678367-135206/02,595.00,FAIRHURST (CONSULTING ENGINEERS).
Children and Young Peoples Services,Head of Education and Skills,Transport,230009,Contract Hire,10/12/2019,3678370-0482,760.00,FMR SILVA PITA.
Children and Young Peoples Services,Head of Education and Skills,Transport,230007,Contract Hire,10/12/2019,3678370-0483,508.44,FMR SILVA PITA.
Children and Young Peoples Services,Head of Education and Skills,Transport,230008,Contract Hire,10/12/2019,3678372-11-A154,"1,504.00",G ANGHEL T/A A TAXI.
Children and Young Peoples Services,Head of Education and Skills,Transport,230009,Contract Hire,10/12/2019,3678372-12-7368,"1,281.00",G ANGHEL T/A A TAXI.
Regeneration and Local Services,Environmental Services,Stock A926,926004,Stock,10/12/2019,3678376-IN222848,"1,503.81",GB LUBRICANTS LTD.
Regeneration and Local Services,Environmental Services,Stock A926,926004,Stock,10/12/2019,3678376-IN223017,882.68,GB LUBRICANTS LTD.
Children and Young Peoples Services,Head of Education and Skills,Transfer Payments,510026,School Children,10/12/2019,3678380-NOVEMBER2019TOPUP,"2,216.37",GIANT STEPS LTD.
Resources BK0010,Digital and Customer Services,Fees,901002,Consultants fees 901002,10/12/2019,3678382-711,"1,750.00",GLOW CREATIVE LTD.
Regeneration and Local Services,Culture Sport and Tourism,Supplies and Services,384199,Miscellaneous Expenses,10/12/2019,3678383-0001,741.00,REDACTED - PAYMENT TO INDIVIDUAL
Children and Young Peoples Services,Head of Education and Skills,Transport,230008,Contract Hire,10/12/2019,3678384-03-W082,"2,400.00",GRAHAM WILLIAMS T/A BUS 2 MINIBUS HIRE.
Children and Young Peoples Services,Head of Education and Skills,Transfer Payments,510026,School Children,10/12/2019,3678389-NOVEMBER2019TOPUP,"2,155.42",HAPPYTIMES DAYCARE.
Children and Young Peoples Services,Head of Education and Skills,Transfer Payments,510025,School Children,10/12/2019,3678393-NOVEMBER2019TOPUP2,"3,802.78",HARTSIDE PRIMARY ACADEMY.
Dedicated Schools Grant BG0015,DSG Early Years Block,Transfer Payments,510032,School Children,10/12/2019,3678394-16249,"1,224.00",HARTSIDE PRIMARY ACADEMY.
Children and Young Peoples Services,Head of Education and Skills,Transfer Payments,510026,School Children,10/12/2019,3678394-NOVEMBER2019TOPUP1,"3,802.78",HARTSIDE PRIMARY ACADEMY.
Children and Young Peoples Services,Head of Education and Skills,Transfer Payments,510025,School Children,10/12/2019,3678395-NOVEMBER2019TOPUP,"3,233.13",HAYSTACKS NURSERY..
Regeneration and Local Services,Environmental Services,Transport,210057,Repair and Maintenance of Vehicles,10/12/2019,3678397-1445785827,872.61,HILTI (GB) LTD.
Children and Young Peoples Services,Head of Education and Skills,Transfer Payments,510025,School Children,10/12/2019,3678398-NOVEMBER2019TOPUP,"4,041.42",HIPPITOTS LTD.
Regeneration and Local Services,Transport and Contracted Services,Third Party Payments,430106,Rendered by Private Contractors,10/12/2019,3678405-16867,"3,972.84",HODGSONS COACH OPERATORS LTD.
Children and Young Peoples Services,Head of Education and Skills,Transfer Payments,510025,School Children,10/12/2019,3678409-NOVEMBER2019TOPUP,"2,722.64",HOUSE OF EDEN LTD.
Adult and Health Services,Public Health CC0450,Third Party Payments,460803,Contract Payments,10/12/2019,3678412-519/20/1801,"749,504.20",HUMANKIND CHARITY.
Regeneration and Local Services,Technical Services CM0300,Third Party Payments,430127,Rendered by Private Contractors,10/12/2019,3678414-2696,"1,036.50",IAN C LIDDLE.
Regeneration and Local Services,Technical Services CM0300,Third Party Payments,430127,Rendered by Private Contractors,10/12/2019,3678414-2697,850.00,IAN C LIDDLE.
Regeneration and Local Services,Environmental Services,Third Party Payments,430100,Rendered by Private Contractors,10/12/2019,3678414-2698,990.00,IAN C LIDDLE.
Children and Young Peoples Services,Head of Education and Skills,Supplies and Services,375001,Private Finance Initiative,10/12/2019,3678418-ISD0300,"643,692.20",INSPIREDSPACES DURHAM (PROJECTCO1) LTD.
Children and Young Peoples Services,Head of Education and Skills,Supplies and Services,375001,Private Finance Initiative,10/12/2019,3678418-ISD0301,"2,968.20",INSPIREDSPACES DURHAM (PROJECTCO1) LTD.
Dedicated Schools Grant BG0015,DSG High Needs Block,Transport,230010,Contract Hire,10/12/2019,3678426-1648,"1,050.00",JDS PRIVATE HIRE DURHAM.
Children and Young Peoples Services,Head of Education and Skills,Transport,230006,Contract Hire,10/12/2019,3678426-1660,"1,783.40",JDS PRIVATE HIRE DURHAM.
Children and Young Peoples Services,Head of Education and Skills,Transport,230007,Contract Hire,10/12/2019,3678427-2946,"1,542.04",JEFF ANDERSON COACHES LTD.
Regeneration and Local Services,Environmental Services,Supplies and Services,304259,Equipment and Materials,10/12/2019,3678430-65,765.00,JH ORGANICS T/A P HUTCHINSON & SONS
Children and Young Peoples Services,Head of Education and Skills,Transfer Payments,510025,School Children,10/12/2019,3678432-NOVEMBER2019TOPUP,"3,233.13",JOANNE HARDY T/A DAYBREAK NURSERY.
Children and Young Peoples Services,Head of Education and Skills,Transport,230008,Contract Hire,10/12/2019,3678433-009,"2,400.00",JOHN GARLAND.
Children and Young Peoples Services,Head of Education and Skills,Transport,230008,Contract Hire,10/12/2019,3678433-010,"1,200.00",JOHN GARLAND.
Children and Young Peoples Services,Head of Education and Skills,Transport,230034,Contract Hire,10/12/2019,3678433-011,"1,600.00",JOHN GARLAND.
Children and Young Peoples Services,Head of Education and Skills,Transfer Payments,510026,School Children,10/12/2019,3678439-NOVEMBER2019TOPUP,"4,310.85",KELLOE PHOENIX CENTRE (CHILDCARE).
Dedicated Schools Grant BG0015,DSG High Needs Block,Central Support and Other Recharges,689988,Unclassified E690,10/12/2019,3678440-NOVEMBER2019TOPUP1,699.36,KING JAMES I ACADEMY.
Dedicated Schools Grant BG0015,DSG High Needs Block,Central Support and Other Recharges,689995,Unclassified E690,10/12/2019,3678440-NOVEMBER2019TOPUP2,"6,000.00",KING JAMES I ACADEMY.
Children and Young Peoples Services,Head of Education and Skills,Transfer Payments,510027,School Children,10/12/2019,3678445-NOVEMBER2019TOPUP,"4,849.70",LEADGATE CHILD CENTRE LTD.
Children and Young Peoples Services,Head of Education and Skills,Transport,230005,Contract Hire,10/12/2019,3678447-7872,"1,657.00",LEE`S COACHES LTD.
Children and Young Peoples Services,Head of Education and Skills,Transfer Payments,510025,School Children,10/12/2019,3678448-NOVEMBER2019TOPUP,"8,767.72",LITTLE STARS EARLY YEARS.
Children and Young Peoples Services,Head of Education and Skills,Transfer Payments,510026,School Children,10/12/2019,3678449-NOVEMBER2019TOPUP1,"1,146.66",LITTLE WAVES DAY NURSERY LTD.
Children and Young Peoples Services,Head of Education and Skills,Transfer Payments,510025,School Children,10/12/2019,3678449-NOVEMBER2019TOPUP2,"4,041.42",LITTLE WAVES DAY NURSERY LTD.
Children and Young Peoples Services,Head of Education and Skills,Transport,230012,Contract Hire,10/12/2019,3678450-4659,"1,500.00",LOCAL TRANSPORT LTD.
Children and Young Peoples Services,Head of Education and Skills,Transport,230008,Contract Hire,10/12/2019,3678450-4660,"1,900.00",LOCAL TRANSPORT LTD.
Children and Young Peoples Services,Head of Education and Skills,Transport,230008,Contract Hire,10/12/2019,3678450-4661,"1,570.00",LOCAL TRANSPORT LTD.
Children and Young Peoples Services,Head of Education and Skills,Transport,230012,Contract Hire,10/12/2019,3678450-4662,"1,200.00",LOCAL TRANSPORT LTD.
Children and Young Peoples Services,Head of Education and Skills,Transport,230008,Contract Hire,10/12/2019,3678450-4663,"2,300.00",LOCAL TRANSPORT LTD.
Children and Young Peoples Services,Head of Education and Skills,Transport,230007,Contract Hire,10/12/2019,3678462-0251,"1,426.20",MICKS TAXIS - MURTON.
Children and Young Peoples Services,Head of Education and Skills,Transport,230034,Contract Hire,10/12/2019,3678462-0252,"1,088.00",MICKS TAXIS - MURTON.
Adult and Health Services,Head of Adults,Third Party Payments,478151,Purchase of Care,10/12/2019,3678468-02,"2,000.00",MOORLAND HOLDINGS (NE) LTD.
Children and Young Peoples Services,Head of Education and Skills,Transport,230012,Contract Hire,10/12/2019,3678471-087-N227,"1,549.40",MR LJ TARRY T/A TARRY`S TAXI`S.
Children and Young Peoples Services,Head of Education and Skills,Transport,230006,Contract Hire,10/12/2019,3678472-0041,"2,200.00",MR PM MULLEN T/A CATHEDRAL TAXIS.
Resources BK0010,Digital and Customer Services,Supplies and Services,344033,Telephones,10/12/2019,3678481-202788,"1,491.22",NETWORKS 2 BUSINESS LTD.
Children and Young Peoples Services,Head of Education and Skills,Transfer Payments,510026,School Children,10/12/2019,3678482-NOVEMBER2019TOPUP,"1,616.57",NEW BEGINNINGS (MOORSIDE) CO LTD.
Dedicated Schools Grant BG0015,DSG High Needs Block,Central Support and Other Recharges,689988,Unclassified E690,10/12/2019,3678483-NOVEMBER2019DEBIT,"6,914.78",NEW COLLEGE ACADEMIES TRUST - CONSETT ACADEMY.
Dedicated Schools Grant BG0015,DSG High Needs Block,Central Support and Other Recharges,689986,Unclassified E690,10/12/2019,3678483-NOVEMBER2019TOPUP1,"9,355.03",NEW COLLEGE ACADEMIES TRUST - CONSETT ACADEMY.
Dedicated Schools Grant BG0015,DSG High Needs Block,Central Support and Other Recharges,689988,Unclassified E690,10/12/2019,3678483-NOVEMBER2019TOPUP2,"4,231.34",NEW COLLEGE ACADEMIES TRUST - CONSETT ACADEMY.
Regeneration and Local Services,Transport and Contracted Services,Third Party Payments,430100,Rendered by Private Contractors,10/12/2019,3678490-00010257,"17,261.43",NSL LTD.
Regeneration and Local Services,Transport and Contracted Services,Third Party Payments,430100,Rendered by Private Contractors,10/12/2019,3678490-00010258,"4,328.83",NSL LTD.
Regeneration and Local Services,Transport and Contracted Services,Third Party Payments,430100,Rendered by Private Contractors,10/12/2019,3678490-00010260,"3,213.55",NSL LTD.
Regeneration and Local Services,Transport and Contracted Services,Third Party Payments,430100,Rendered by Private Contractors,10/12/2019,3678490-00010262,"54,493.09",NSL LTD.
Regeneration and Local Services,Transport and Contracted Services,Third Party Payments,430100,Rendered by Private Contractors,10/12/2019,3678490-00010265,"1,761.15",NSL LTD.
Regeneration and Local Services,Transport and Contracted Services,Third Party Payments,430100,Rendered by Private Contractors,10/12/2019,3678490-00010339,"26,003.75",NSL LTD.
Regeneration and Local Services,Transport and Contracted Services,Third Party Payments,430100,Rendered by Private Contractors,10/12/2019,3678490-00010352,"3,000.00",NSL LTD.
Regeneration and Local Services,Transport and Contracted Services,Third Party Payments,430100,Rendered by Private Contractors,10/12/2019,3678490-00010375,"6,902.78",NSL LTD.
Regeneration and Local Services,Transport and Contracted Services,Third Party Payments,430100,Rendered by Private Contractors,10/12/2019,3678490-00010376,"1,550.53",NSL LTD.
